Service,Expense Subtype,Merchant Name,Expense Invoice Date,Total Expense
OTHER - ADULTS,Catering Food & Drink,TESCO STORES 5999,04/01/2016,116.72
DAY CENTRES,Building-Others,TVLICENSING.CO.UK,05/01/2016,145.50
BALANCE SHEET,VAT,MEDIWORLD LIMITED,05/01/2016,54.00
BALANCE SHEET,VAT,SAINSBURY'S S/MKT,05/01/2016,38.50
BALANCE SHEET,VAT,Amazon UK Marketplace,05/01/2016,0.00
BALANCE SHEET,VAT,Amazon UK Retail,05/01/2016,2.36
BALANCE SHEET,VAT,WWW.STAPLES.CO.UK,05/01/2016,24.33
LIBRARIES & ARCHIVE,Education-Library Books,Amazon UK Retail,05/01/2016,11.97
LIBRARIES & ARCHIVE,Education-Supplies,Amazon UK Marketplace,05/01/2016,5.00
LIBRARIES & ARCHIVE,Education-Supplies,Amazon UK Retail,05/01/2016,11.79
REVENUE & BENEFITS,Stationery,WWW.STAPLES.CO.UK,05/01/2016,121.64
OLDER PEOPLE,Catering Food & Drink,JS ONLINE GROCERY,06/01/2016,118.25
BALANCE SHEET,Personal,WWW.POSTURITE.CO.UK,06/01/2016,-6.59
BALANCE SHEET,VAT,WWW.POSTURITE.CO.UK,06/01/2016,0.00
BALANCE SHEET,VAT,SAINSBURY'S S/MKT,06/01/2016,0.50
CHILDREN LOOKED AFTER,Travel/Subsistence,TRAINLINE,06/01/2016,22.13
LIBRARIES & ARCHIVE,Education-Library Books,Amazon UK Marketplace,06/01/2016,12.68
FINANCIAL PLANNING AND MANAGEMENT,Stationery,WWW.POSTURITE.CO.UK,06/01/2016,32.95
FINANCIAL PLANNING AND MANAGEMENT,Travel/Subsistence,OYSTER BUS AUTOTOP,06/01/2016,20.00
FINANCIAL PLANNING AND MANAGEMENT,Travel/Subsistence,TSGN,06/01/2016,50.00
HOUSING MANAGEMENT SERVICES,Catering Equipment,SAINSBURY'S S/MKT,06/01/2016,2.50
HOUSING MANAGEMENT SERVICES,Use of Public Transport,LUL TICKET MACHINE,06/01/2016,100.00
OLDER PEOPLE,Catering Food & Drink,ICELAND,07/01/2016,81.15
OLDER PEOPLE,Catering Food & Drink,MN WEST NORWOOD HALAL,07/01/2016,216.83
OLDER PEOPLE,Financial Services,ATM BARCLAYS BANK PLC,07/01/2016,300.00
BALANCE SHEET,VAT,THE CONSORTIUM/WMS,07/01/2016,64.95
BALANCE SHEET,VAT,Amazon UK Marketplace,07/01/2016,0.00
BALANCE SHEET,VAT,ACCESS SELF STORAG,07/01/2016,0.00
BALANCE SHEET,VAT,AO RETAIL LIMITED,07/01/2016,32.00
BALANCE SHEET,VAT,CURRYS ONLINE,07/01/2016,106.50
CHILDREN LOOKED AFTER,Accommodation,GUINNESS NORTHERN,07/01/2016,197.00
CHILDREN LOOKED AFTER,Domestic Goods-Other,AO RETAIL LIMITED,07/01/2016,159.99
CHILDREN LOOKED AFTER,Domestic Goods-Other,ARGOS RETAIL GROUP,07/01/2016,264.67
CHILDREN LOOKED AFTER,Domestic Goods-Other,ARGOS RETAIL GROUP,07/01/2016,937.05
CHILDREN LOOKED AFTER,Domestic Goods-Other,CURRYS ONLINE,07/01/2016,781.49
CHILDREN LOOKED AFTER,Facilities-Printing,Amazon UK Retail,07/01/2016,64.99
CHILDREN LOOKED AFTER,Facilities-Storage,ACCESS SELF STORAG,07/01/2016,106.44
CHILDREN LOOKED AFTER,Haulage,EASY SHIPPING LTD,07/01/2016,96.00
QUALITY ASSURANCE & PERFORMANCE,Travel/Subsistence,OYSTER AUTOTOPUP,07/01/2016,40.00
QUALITY ASSURANCE & PERFORMANCE,Travel/Subsistence,VIRGINTRAINSEC SERVCS,07/01/2016,-18.10
QUALITY ASSURANCE & PERFORMANCE,Travel/Subsistence,VIRGINTRAINSEC SERVCS,07/01/2016,10.90
YOUTH OFFENDING SERVICE,Stationery,Amazon UK Marketplace,07/01/2016,9.99
YOUTH OFFENDING SERVICE,Travel/Subsistence,NISA LOCAL,07/01/2016,183.60
SCHOOL & EDUCATION IMPROVEMENT SERVICE,Domestic Goods-Other,Amazon UK Marketplace,07/01/2016,107.50
SCHOOL & EDUCATION IMPROVEMENT SERVICE,Education-Library Books,"Amazon Svcs Europe,SAR",07/01/2016,24.90
SCHOOL & EDUCATION IMPROVEMENT SERVICE,Education-Library Books,Amazon UK Marketplace,07/01/2016,37.89
SCHOOL & EDUCATION IMPROVEMENT SERVICE,Facilities-Market Research,THE CONSORTIUM/WMS,07/01/2016,324.74
CORPORATE AFFAIRS,Domestic Goods-Other,Amazon UK Marketplace,07/01/2016,29.85
INTERNAL AUDIT,Financial Services,GRO HM PASSPORT OFFICE,07/01/2016,27.75
OLDER PEOPLE,Financial Services,CASH ADVANCE FEE,08/01/2016,8.85
PUBLIC HEALTH - ADULTS,Healthcare Services,CCILEGAL.CO.UK-IVR,08/01/2016,203.64
BALANCE SHEET,VAT,Amazon UK Marketplace,08/01/2016,3.82
BALANCE SHEET,VAT,Amazon UK Retail,08/01/2016,8.97
CHILDREN SAFEGUARDING & ASSESSMENTS,Travel/Subsistence,AMERICAN AIR0019365777707,08/01/2016,"1,118.85"
CHILDREN SAFEGUARDING & ASSESSMENTS,Travel/Subsistence,EXPEDIA 110596514785,08/01/2016,56.00
LIBRARIES & ARCHIVE,Travel/Subsistence,OYSTER BUS AUTOTOP,08/01/2016,20.00
LIBRARIES & ARCHIVE,Catering Food & Drink,TESCO STORES 6791,08/01/2016,18.80
REVENUE & BENEFITS,Domestic Goods-Other,Amazon UK Marketplace,08/01/2016,19.14
REVENUE & BENEFITS,Travel/Subsistence,WEST COAST TRAINS,08/01/2016,48.40
NEIGHBOURHOODS,Facilities-Printing,Amazon UK Retail,08/01/2016,36.12
NEIGHBOURHOODS,Financial Services,WWW.ICO.GOV.UK,08/01/2016,35.00
SENIOR MANAGEMENT - NEIGHBOURHOODS & GROWTH,Domestic Goods-Commercial,Amazon UK Retail,08/01/2016,95.19
INTEGRATED DISABILITY,IT Office Equipment,Amazon UK Retail,09/01/2016,21.48
REVENUE & BENEFITS,Travel/Subsistence,OYSTER AUTOTOPUP,09/01/2016,20.00
INTEGRATED DISABILITY,Facilities-Printing,Amazon UK Retail,11/01/2016,13.08
INTEGRATED DISABILITY,Facilities-Printing,Amazon UK Retail,11/01/2016,13.08
INTEGRATED DISABILITY,Facilities-Printing,Amazon UK Retail,11/01/2016,13.09
BALANCE SHEET,Personal,Amazon UK Retail,11/01/2016,-2.61
BALANCE SHEET,Personal,Amazon UK Retail,11/01/2016,-2.61
BALANCE SHEET,VAT,Amazon UK Retail,11/01/2016,2.61
CHILDREN SAFEGUARDING & ASSESSMENTS,Financial Services,GRO HM PASSPORT OFFICE,11/01/2016,23.40
LIBRARIES & ARCHIVE,Education-Other,SUPREME STORES,11/01/2016,210.18
POLICY & COMMUNICATIONS,Facilities-Printing,CENNOX SIGNAGE,11/01/2016,144.00
BALANCE SHEET,VAT,WWW.PAYOCS.CO.UK,12/01/2016,8.71
CHILDREN SAFEGUARDING & ASSESSMENTS,Accommodation,TRAVELODGE AGENT,12/01/2016,170.40
LIBRARIES & ARCHIVE,Education-Other,CASH ADVANCE FEE,12/01/2016,8.85
LIBRARIES & ARCHIVE,Education-Other,SAIN - BRIXTON LAMBERT R,12/01/2016,300.00
SCHOOL & EDUCATION IMPROVEMENT SERVICE,Domestic Goods-Other,Amazon UK Marketplace,12/01/2016,51.28
SCHOOL & EDUCATION IMPROVEMENT SERVICE,Domestic Goods-Other,Amazon UK Marketplace,12/01/2016,32.90
SCHOOL & EDUCATION IMPROVEMENT SERVICE,Education-Library Books,Amazon UK Marketplace,12/01/2016,9.00
SCHOOL & EDUCATION IMPROVEMENT SERVICE,Facilities-Printing,Amazon UK Retail,12/01/2016,431.65
POLICY & COMMUNICATIONS,Accommodation,IBIS LONDON EXCEL,12/01/2016,483.00
HOUSING MANAGEMENT SERVICES,Cleaning-Specialist,WWW.PAYOCS.CO.UK,12/01/2016,43.54
DAY CENTRES,Financial Services,SAIN - BRIXTON,13/01/2016,400.00
INTEGRATED DISABILITY,Travel/Subsistence,NEWS AT NINE,13/01/2016,150.00
OLDER PEOPLE,Catering Food & Drink,SAINSBURYS,13/01/2016,21.35
OTHER - ADULTS,Domestic Goods-Other,ARGOS RETAIL GROUP,13/01/2016,218.94
OTHER - ADULTS,Education-Supplies,Amazon UK Marketplace,13/01/2016,164.36
BALANCE SHEET,VAT,COMPLETESAVE.CO.UK,13/01/2016,0.00
BALANCE SHEET,VAT,DAILY.CO.UK,13/01/2016,15.78
BALANCE SHEET,VAT,EMAP LTD-SUBSCRIPTIONS,13/01/2016,0.00
BALANCE SHEET,VAT,PANTHEON,13/01/2016,0.00
BALANCE SHEET,VAT,1&1 INTERNET LIMITED,13/01/2016,11.99
BALANCE SHEET,VAT,NEWS AT NINE,13/01/2016,0.00
CHILDREN LOOKED AFTER,Financial Services,GRO HM PASSPORT OFFICE,13/01/2016,27.75
EARLY YEARS AND PARENTING,IT Services,1&1 INTERNET LIMITED,13/01/2016,59.97
LIBRARIES & ARCHIVE,Travel/Subsistence,OYSTER BUS AUTOTOP,13/01/2016,40.00
REVENUE & BENEFITS,IT Services,SURVEYMONKEY.COM,13/01/2016,26.00
POLICY & COMMUNICATIONS,Books/Publications/Resources,EMAP LTD-SUBSCRIPTIONS,13/01/2016,249.00
POLICY & COMMUNICATIONS,IT Services,DAILY.CO.UK,13/01/2016,78.89
POLICY & COMMUNICATIONS,IT Services,PANTHEON,13/01/2016,17.69
POLICY & COMMUNICATIONS,Facilities-Retail,COMPLETESAVE.CO.UK,13/01/2016,15.00
HUMAN RESOURCES & ORGANISATIONAL DEVELOPMENT (HRA),Consultancy-Other,PAYPAL *MARGARET,13/01/2016,250.00
HOUSING CAPITAL & ASSET MANAGEMENT,Legal Services-Other,HMCOURTS-SERVICE.G,13/01/2016,280.00
HOUSING CAPITAL & ASSET MANAGEMENT,Legal Services-Other,HMCOURTS-SERVICE.G,13/01/2016,20.00
HOUSING CAPITAL & ASSET MANAGEMENT,Legal Services-Other,HMCOURTS-SERVICE.G,13/01/2016,120.00
HOUSING CAPITAL & ASSET MANAGEMENT,Legal Services-Other,HMCOURTS-SERVICE.G,13/01/2016,60.00
HOUSING CAPITAL & ASSET MANAGEMENT,Legal Services-Other,HMCOURTS-SERVICE.G,13/01/2016,140.00
HOUSING CAPITAL & ASSET MANAGEMENT,Legal Services-Other,HMCOURTS-SERVICE.G,13/01/2016,60.00
HOUSING CAPITAL & ASSET MANAGEMENT,Legal Services-Other,HMCOURTS-SERVICE.G,13/01/2016,340.00
HOUSING CAPITAL & ASSET MANAGEMENT,Legal Services-Other,HMCOURTS-SERVICE.G,13/01/2016,60.00
HOUSING CAPITAL & ASSET MANAGEMENT,Legal Services-Other,HMCOURTS-SERVICE.G,13/01/2016,340.00
HOUSING CAPITAL & ASSET MANAGEMENT,Legal Services-Other,HMCOURTS-SERVICE.G,13/01/2016,240.00
DAY CENTRES,Financial Services,CASH ADVANCE FEE,14/01/2016,11.80
CHILDREN LOOKED AFTER,IT Consumables,Amazon UK Marketplace,14/01/2016,31.96
LIBRARIES & ARCHIVE,Education-Library Books,"Amazon Svcs Europe,SAR",14/01/2016,18.87
LIBRARIES & ARCHIVE,Education-Library Books,Amazon UK Marketplace,14/01/2016,46.75
LIBRARIES & ARCHIVE,Education-Library Books,Amazon UK Marketplace,14/01/2016,10.60
LIBRARIES & ARCHIVE,Education-Library Books,Amazon UK Retail,14/01/2016,16.10
ENVIRONMENT,Books/Publications/Resources,LAND REGISTRY,14/01/2016,6.00
ENVIRONMENT,Use of Public Transport,LUL TICKET MACHINE,14/01/2016,60.00
INTEGRATED DISABILITY,Financial Services,HSBC/THORNTON HEATH,15/01/2016,400.00
PUBLIC HEALTH - ADULTS,Conference Expenses,GOV.UK/PHE,15/01/2016,115.00
PUBLIC HEALTH - ADULTS,Conference Expenses,HYDE HOUSING ASSOCIATI,15/01/2016,245.00
BALANCE SHEET,VAT,HSBC/THORNTON HEATH,15/01/2016,0.00
BALANCE SHEET,VAT,Amazon UK Marketplace,15/01/2016,15.87
LIBRARIES & ARCHIVE,Catering Food & Drink,TESCO STORES 6791,15/01/2016,21.19
REVENUE & BENEFITS,Education-Library Books,Amazon UK Marketplace,15/01/2016,35.38
HOUSING MANAGEMENT SERVICES,Building-Tools,Amazon UK Marketplace,15/01/2016,79.35
LIBRARIES & ARCHIVE,Education-Library Books,Amazon UK Marketplace,16/01/2016,8.40
LIBRARIES & ARCHIVE,Education-Library Books,Amazon UK Marketplace,16/01/2016,9.14
REVENUE & BENEFITS,Education-Library Books,Amazon UK Marketplace,17/01/2016,6.76
BALANCE SHEET,VAT,CASH ADVANCE FEE,18/01/2016,11.80
BALANCE SHEET,VAT,Amazon UK Marketplace,18/01/2016,23.25
BALANCE SHEET,VAT,FAST KEY SERVICES,18/01/2016,1.58
CHILDREN LOOKED AFTER,Taxi Fares,WWW.ADDISONLEE.COM,18/01/2016,12.00
CHILDREN LOOKED AFTER,Taxi Fares,WWW.ADDISONLEE.COM,18/01/2016,2.50
LIBRARIES & ARCHIVE,Education-Library Books,TRFSA *THOMSONREUTERS,18/01/2016,475.00
SCHOOL & EDUCATION IMPROVEMENT SERVICE,Books/Publications/Resources,MORLEYS,18/01/2016,8.00
SCHOOL & EDUCATION IMPROVEMENT SERVICE,HMRC Fees,MORLEYS,18/01/2016,1.60
INTERNAL AUDIT,Consultancy-Business,FAST KEY SERVICES,18/01/2016,7.92
"PLANNING, TRANSPORT & DEVELOPMENT",Conference Expenses,WWW.ABE.ORG.UK,18/01/2016,150.00
HOUSING MANAGEMENT SERVICES,Domestic Goods-Other,Amazon UK Marketplace,18/01/2016,116.25
BALANCE SHEET,VAT,DAILY.CO.UK,19/01/2016,4.40
BALANCE SHEET,VAT,PANTHEON,19/01/2016,0.00
BALANCE SHEET,VAT,FAST KEY SERVICES,19/01/2016,1.12
CHILDREN LOOKED AFTER,Consultancy-Business,FAST KEY SERVICES,19/01/2016,5.62
CHILDREN SAFEGUARDING & ASSESSMENTS,Financial Services,GRO HM PASSPORT OFFICE,19/01/2016,18.50
CHILDREN SAFEGUARDING & ASSESSMENTS,Financial Services,GRO HM PASSPORT OFFICE,19/01/2016,-18.50
EARLY HELP,Stationery,FLOOR FASHION LTD,19/01/2016,70.00
LIBRARIES & ARCHIVE,Education-Library Books,Amazon UK Retail,19/01/2016,42.23
LIBRARIES & ARCHIVE,Education-Library Books,Amazon UK Retail,19/01/2016,18.98
PROPERTY & FINANCIAL TRANSACTION SERVICES,Stationery,RICS COM GBP CYBS,19/01/2016,320.00
FINANCIAL PLANNING AND MANAGEMENT,Financial Services,LAND REGISTRY,19/01/2016,3.00
FINANCIAL PLANNING AND MANAGEMENT,Financial Services,LAND REGISTRY,19/01/2016,3.00
POLICY & COMMUNICATIONS,IT Services,DAILY.CO.UK,19/01/2016,21.98
POLICY & COMMUNICATIONS,IT Services,PANTHEON,19/01/2016,18.12
HOUSING MANAGEMENT SERVICES,Building-General,B & Q,19/01/2016,76.79
MENTAL HEALTH,Accommodation,TRAVELODGE AGENT,20/01/2016,409.90
MENTAL HEALTH,Accommodation,TRAVELODGE AGENT,20/01/2016,354.07
MENTAL HEALTH,Accommodation,TRAVELODGE AGENT,20/01/2016,420.18
MENTAL HEALTH,Accommodation,TRAVELODGE AGENT,20/01/2016,368.78
MENTAL HEALTH,Accommodation,TRAVELODGE AGENT,20/01/2016,405.73
MENTAL HEALTH,Financial Services,HSBC/M&S BRIXTON,20/01/2016,100.00
MENTAL HEALTH,Financial Services-Banking,CASH ADVANCE FEE,20/01/2016,2.95
MENTAL HEALTH,Legal Services-Other,HMCOURTS-SERVICE.G,20/01/2016,20.00
MENTAL HEALTH,Legal Services-Other,HMCOURTS-SERVICE.G,20/01/2016,20.00
MENTAL HEALTH,Legal Services-Other,HMCOURTS-SERVICE.G,20/01/2016,20.00
MENTAL HEALTH,Legal Services-Other,HMCOURTS-SERVICE.G,20/01/2016,20.00
MENTAL HEALTH,Legal Services-Other,HMCOURTS-SERVICE.G,20/01/2016,60.00
MENTAL HEALTH,Legal Services-Other,HMCOURTS-SERVICE.G,20/01/2016,40.00
MENTAL HEALTH,Travel/Subsistence,LONDON & SOUTH EAS,20/01/2016,25.80
MENTAL HEALTH,Travel/Subsistence,LONDON & SOUTH EAS,20/01/2016,32.90
MENTAL HEALTH,Travel/Subsistence,LONDON & SOUTH EAS,20/01/2016,149.10
MENTAL HEALTH,Travel/Subsistence,LONDON & SOUTH EAS,20/01/2016,-76.80
MENTAL HEALTH,Travel/Subsistence,LOROL - HONOR OAK PARK,20/01/2016,29.10
MENTAL HEALTH,Travel/Subsistence,OYSTER AUTOTOPUP,20/01/2016,20.00
BALANCE SHEET,VAT,CURRYS T/SALES,20/01/2016,269.99
BALANCE SHEET,VAT,TRAVELODGE AGENT,20/01/2016,75.75
BALANCE SHEET,VAT,TRAVELODGE AGENT,20/01/2016,64.58
BALANCE SHEET,VAT,TRAVELODGE AGENT,20/01/2016,76.92
BALANCE SHEET,VAT,TRAVELODGE AGENT,20/01/2016,68.42
BALANCE SHEET,VAT,TRAVELODGE AGENT,20/01/2016,74.92
BALANCE SHEET,VAT,WWW.SOCITM.NET,20/01/2016,150.00
BALANCE SHEET,VAT,WWW.CLOTHES2ORDER.COM,20/01/2016,23.51
BALANCE SHEET,VAT,WWW.CLOTHES2ORDER.COM,20/01/2016,23.51
CHILDREN LOOKED AFTER,Accommodation,HOLIDAY INNS,20/01/2016,187.00
LIBRARIES & ARCHIVE,Clothing-Children/Adults,WWW.CLOTHES2ORDER.COM,20/01/2016,117.56
LIBRARIES & ARCHIVE,Clothing-Children/Adults,WWW.CLOTHES2ORDER.COM,20/01/2016,117.56
LIBRARIES & ARCHIVE,Education-Library Books,Amazon UK Marketplace,20/01/2016,12.79
PROPERTY & FINANCIAL TRANSACTION SERVICES,Professional & Advisory Services,WWW.SOCITM.NET,20/01/2016,750.00
CORPORATE AFFAIRS,Travel/Subsistence,LUL TICKET MACHINE,20/01/2016,50.00
CORPORATE AFFAIRS,Travel/Subsistence,LUL TICKET MACHINE,20/01/2016,50.00
HOUSING MANAGEMENT SERVICES,Domestic Goods-Other,CURRYS T/SALES,20/01/2016,0.00
HOUSING CAPITAL & ASSET MANAGEMENT,Legal Services-Other,HMCOURTS-SERVICE.G,20/01/2016,220.00
BALANCE SHEET,VAT,CURRYS ONLINE,21/01/2016,79.83
BALANCE SHEET,VAT,CURRYS ONLINE,21/01/2016,138.16
BALANCE SHEET,VAT,Amazon UK Retail,21/01/2016,13.61
BALANCE SHEET,VAT,EDUSENTIALS LIMITED,21/01/2016,51.19
CHILDREN LOOKED AFTER,Building-Floors,BUDGET CARPETS 2,21/01/2016,365.00
CHILDREN LOOKED AFTER,Building-Timber,HOMEBASE LTD,21/01/2016,456.43
CHILDREN LOOKED AFTER,Clothing-Uniforms,TRAFALGAR EUROTECH LTD,21/01/2016,38.25
CHILDREN LOOKED AFTER,Domestic Goods-Other,AO RETAIL LIMITED,21/01/2016,383.00
CHILDREN LOOKED AFTER,Domestic Goods-Other,ARGOS DIRECT,21/01/2016,-149.99
CHILDREN LOOKED AFTER,Domestic Goods-Other,ARGOS DIRECT,21/01/2016,-412.88
CHILDREN LOOKED AFTER,Domestic Goods-Other,ARGOS RETAIL GROUP,21/01/2016,283.94
CHILDREN LOOKED AFTER,Domestic Goods-Other,ARGOS RETAIL GROUP,21/01/2016,627.82
CHILDREN LOOKED AFTER,Domestic Goods-Other,ARGOS RETAIL GROUP,21/01/2016,"1,573.22"
CHILDREN LOOKED AFTER,Domestic Goods-Other,CHARLES H FOX,21/01/2016,254.00
CHILDREN LOOKED AFTER,Domestic Goods-Other,CURRYS ONLINE,21/01/2016,463.00
CHILDREN LOOKED AFTER,Domestic Goods-Other,CURRYS ONLINE,21/01/2016,399.16
CHILDREN LOOKED AFTER,Domestic Goods-Other,CURRYS ONLINE,21/01/2016,690.79
CHILDREN LOOKED AFTER,Domestic Goods-Other,DENNIS WILLIAMS LTD,21/01/2016,64.40
CHILDREN LOOKED AFTER,Domestic Goods-Other,TESCO DIRECT,21/01/2016,43.00
CHILDREN LOOKED AFTER,Education-Library Books,Amazon UK Marketplace,21/01/2016,21.44
CHILDREN LOOKED AFTER,Education-Other,WWW.BIRMINGHAM.GOV.UK,21/01/2016,12.00
CHILDREN LOOKED AFTER,Facilities-Printing,Amazon UK Retail,21/01/2016,74.73
CHILDREN LOOKED AFTER,Furniture-Domestic Furniture,BRIXTON FURNITURE CENT,21/01/2016,305.00
CHILDREN LOOKED AFTER,IT Software,BUYITDIRECT CO UK,21/01/2016,298.38
CHILDREN LOOKED AFTER,Vehicle Maintenance,WWW.COMAPRETHEMANANDTH,21/01/2016,58.08
LIBRARIES & ARCHIVE,Domestic Goods-Other,Amazon UK Marketplace,21/01/2016,2.81
LIBRARIES & ARCHIVE,Education-Library Books,"Amazon Svcs Europe,SAR",21/01/2016,5.13
LIBRARIES & ARCHIVE,Education-Library Books,"Amazon Svcs Europe,SAR",21/01/2016,3.30
LIBRARIES & ARCHIVE,Education-Library Books,Amazon UK Marketplace,21/01/2016,11.61
LIBRARIES & ARCHIVE,Education-Library Books,Amazon UK Marketplace,21/01/2016,5.61
LIBRARIES & ARCHIVE,Education-Library Books,Amazon UK Marketplace,21/01/2016,30.12
LIBRARIES & ARCHIVE,Education-Library Books,Amazon UK Marketplace,21/01/2016,5.57
LIBRARIES & ARCHIVE,Education-Library Books,Amazon UK Marketplace,21/01/2016,2.80
LIBRARIES & ARCHIVE,Education-Library Books,Amazon UK Retail,21/01/2016,6.29
LIBRARIES & ARCHIVE,Education-Library Books,Amazon UK Retail,21/01/2016,18.07
LIBRARIES & ARCHIVE,Education-Library Books,Amazon UK Retail,21/01/2016,5.36
LIBRARIES & ARCHIVE,Education-Library Books,Amazon UK Retail,21/01/2016,19.85
LIBRARIES & ARCHIVE,Education-Other,EDUSENTIALS LIMITED,21/01/2016,255.95
LIBRARIES & ARCHIVE,Education-Library Books,Amazon UK Marketplace,21/01/2016,3.19
LIBRARIES & ARCHIVE,Education-Library Books,Amazon UK Retail,21/01/2016,7.56
LIBRARIES & ARCHIVE,Catering Equipment,Amazon UK Retail,21/01/2016,68.05
LIBRARIES & ARCHIVE,Education-Arts/Crafts,Amazon UK Marketplace,21/01/2016,29.05
LIBRARIES & ARCHIVE,Education-Arts/Crafts,Amazon UK Marketplace,21/01/2016,13.35
LIBRARIES & ARCHIVE,Education-Arts/Crafts,Amazon UK Marketplace,21/01/2016,13.96
LIBRARIES & ARCHIVE,Education-Library Books,Amazon UK Retail,21/01/2016,20.82
LIBRARIES & ARCHIVE,Education-Library Books,Amazon UK Retail,21/01/2016,75.90
LIBRARIES & ARCHIVE,Education-Other,"Amazon Svcs Europe,SAR",21/01/2016,7.21
LIBRARIES & ARCHIVE,Education-Other,Amazon UK Marketplace,21/01/2016,3.91
LIBRARIES & ARCHIVE,Education-Supplies,Amazon UK Marketplace,21/01/2016,4.82
FINANCIAL PLANNING AND MANAGEMENT,Professional subscriptions,WWW.CIMAGLOBAL.COM,21/01/2016,264.00
HOMES & COMMUNITIES,Use of Public Transport,TRAINLINE,21/01/2016,60.79
INTEGRATED DISABILITY,Domestic Goods-Other,MORLEYS,22/01/2016,84.95
INTEGRATED DISABILITY,Domestic Goods-Other,TK MAXX,22/01/2016,29.99
BALANCE SHEET,Personal,MORLEYS,22/01/2016,-16.99
BALANCE SHEET,VAT,Amazon UK Marketplace,22/01/2016,1.17
BALANCE SHEET,VAT,Amazon UK Marketplace,22/01/2016,1.25
BALANCE SHEET,VAT,DEMCO EUROPE LTD,22/01/2016,73.80
CHILDREN SAFEGUARDING & ASSESSMENTS,Financial Services,GRO HM PASSPORT OFFICE,22/01/2016,70.20
LIBRARIES & ARCHIVE,Domestic Goods-Other,Amazon UK Marketplace,22/01/2016,22.99
LIBRARIES & ARCHIVE,Education-Other,Amazon UK Marketplace,22/01/2016,14.88
LIBRARIES & ARCHIVE,Furniture-Office Furniture,DEMCO EUROPE LTD,22/01/2016,369.00
PROPERTY & FINANCIAL TRANSACTION SERVICES,Education-Library Books,Amazon UK Marketplace,22/01/2016,6.23
PROPERTY & FINANCIAL TRANSACTION SERVICES,Stationery,Amazon UK Marketplace,22/01/2016,5.83
FINANCIAL PLANNING AND MANAGEMENT,Professional subscriptions,ACCA,22/01/2016,221.00
PROCUREMENT,Education-Other,WWW.CIPS.ORG,22/01/2016,139.17
FINANCIAL PLANNING AND MANAGEMENT,Travel/Subsistence,OYSTER BUS AUTOTOP,24/01/2016,20.00
INTEGRATED DISABILITY,Financial Services,SAIN - BRIXTON,25/01/2016,400.00
INTEGRATED DISABILITY,Domestic Goods-Other,Amazon UK Marketplace,25/01/2016,32.03
BALANCE SHEET,VAT,LB LAM OP,25/01/2016,13.99
BALANCE SHEET,VAT,R.S.P.C.A.,25/01/2016,21.67
BALANCE SHEET,VAT,SAIN - BRIXTON,25/01/2016,0.00
LIBRARIES & ARCHIVE,Education-Library Books,Amazon UK Marketplace,25/01/2016,20.24
LIBRARIES & ARCHIVE,Facilities-Advertising,WH SMITH,25/01/2016,79.28
LIBRARIES & ARCHIVE,Facilities-Advertising,WH SMITH,25/01/2016,190.00
FINANCIAL PLANNING AND MANAGEMENT,Food/refreshment - meetings,SAINSBURYS S/MKTS,25/01/2016,6.15
HOUSING MANAGEMENT SERVICES,Education-Other,LB LAM OP,25/01/2016,69.95
HOUSING MANAGEMENT SERVICES,Education-Other,R.S.P.C.A.,25/01/2016,108.33
INTEGRATED DISABILITY,Financial Services,CASH ADVANCE FEE,26/01/2016,11.80
BALANCE SHEET,VAT,DEMCO EUROPE,26/01/2016,83.05
LIBRARIES & ARCHIVE,Education-Library Books,Amazon UK Retail,26/01/2016,-75.90
LIBRARIES & ARCHIVE,Furniture-Office Furniture,DEMCO EUROPE,26/01/2016,415.25
FINANCIAL PLANNING AND MANAGEMENT,Travel/Subsistence,LUL TICKET MACHINE,26/01/2016,20.00
INTERNAL AUDIT,Travel/Subsistence,OYSTER AUTOTOPUP,26/01/2016,60.00
INTERNAL AUDIT,Travel/Subsistence,OYSTER AUTOTOPUP,26/01/2016,20.00
INTERNAL AUDIT,Travel/Subsistence,OYSTER AUTOTOPUP,26/01/2016,20.00
INTERNAL AUDIT,Travel/Subsistence,OYSTER AUTOTOPUP,26/01/2016,40.00
INTERNAL AUDIT,Travel/Subsistence,OYSTER AUTOTOPUP,26/01/2016,40.00
INTERNAL AUDIT,Travel/Subsistence,TFL CC/LEZ CHARGE,26/01/2016,11.50
YOUTH OFFENDING SERVICE,Travel/Subsistence,LUL TICKET MACHINE,27/01/2016,50.00
YOUTH OFFENDING SERVICE,Books/Publications/Resources,HTTP://SHOP.ICAN.ORG.U,27/01/2016,79.97
SCHOOL & EDUCATION IMPROVEMENT SERVICE,Stationery,Amazon UK Marketplace,27/01/2016,51.69
FINANCIAL PLANNING AND MANAGEMENT,Domestic Goods-Other,ARGOS RETAIL GROUP,27/01/2016,23.94
FINANCIAL PLANNING AND MANAGEMENT,Domestic Goods-Other,Amazon UK Marketplace,27/01/2016,85.94
FINANCIAL PLANNING AND MANAGEMENT,Domestic Goods-Other,Amazon UK Marketplace,27/01/2016,18.20
FINANCIAL PLANNING AND MANAGEMENT,Education-Library Books,Amazon UK Marketplace,27/01/2016,6.77
FINANCIAL PLANNING AND MANAGEMENT,Facilities-Printing,Amazon UK Retail,27/01/2016,40.73
FINANCIAL PLANNING AND MANAGEMENT,Facilities-Printing,Amazon UK Retail,27/01/2016,34.48
FINANCIAL PLANNING AND MANAGEMENT,Travel/Subsistence,NEW SOUTHERN RAILW,27/01/2016,30.00
ENVIRONMENT,Books/Publications/Resources,LAND REGISTRY,27/01/2016,6.00
ENVIRONMENT,Books/Publications/Resources,LAND REGISTRY,27/01/2016,3.00
ENVIRONMENT,Books/Publications/Resources,LAND REGISTRY,27/01/2016,12.00
ENVIRONMENT,Use of Public Transport,LONDON & SOUTH EAS,27/01/2016,30.00
ENVIRONMENT,Use of Public Transport,LONDON & SOUTH EAS,27/01/2016,30.00
HOUSING CAPITAL & ASSET MANAGEMENT,Legal Services-Other,HMCOURTS-SERVICE.G,27/01/2016,120.00
HOUSING CAPITAL & ASSET MANAGEMENT,Legal Services-Other,HMCOURTS-SERVICE.G,27/01/2016,80.00
OTHER - ADULTS,Domestic Goods-Other,Amazon UK Marketplace,28/01/2016,62.71
OTHER - ADULTS,Domestic Goods-Other,Amazon UK Retail,28/01/2016,12.29
BALANCE SHEET,VAT,Amazon UK Retail,28/01/2016,2.45
BALANCE SHEET,VAT,THE READING AGENCY,28/01/2016,0.48
QUALITY ASSURANCE & PERFORMANCE,Accommodation,HOLIDAY INN,28/01/2016,255.00
QUALITY ASSURANCE & PERFORMANCE,Domestic Goods-Other,ARGOS,28/01/2016,24.99
QUALITY ASSURANCE & PERFORMANCE,Domestic Goods-Other,ARGOS,28/01/2016,-24.99
QUALITY ASSURANCE & PERFORMANCE,Travel/Subsistence,GOV.UK/DART-CHARGE,28/01/2016,5.00
QUALITY ASSURANCE & PERFORMANCE,Travel/Subsistence,LONDON & SOUTH EAS,28/01/2016,87.70
QUALITY ASSURANCE & PERFORMANCE,Travel/Subsistence,OYSTER AUTOTOPUP,28/01/2016,40.00
QUALITY ASSURANCE & PERFORMANCE,Travel/Subsistence,OYSTER BUS AUTOTOP,28/01/2016,40.00
QUALITY ASSURANCE & PERFORMANCE,Travel/Subsistence,VIRGINTRAINSEC SERVCS,28/01/2016,261.10
QUALITY ASSURANCE & PERFORMANCE,Travel/Subsistence,VIRGINTRAINSEC SERVCS,28/01/2016,24.60
QUALITY ASSURANCE & PERFORMANCE,Travel/Subsistence,VIRGINTRAINSEC SERVCS,28/01/2016,-82.60
QUALITY ASSURANCE & PERFORMANCE,Travel/Subsistence,VIRGINTRAINSEC SERVCS,28/01/2016,82.40
QUALITY ASSURANCE & PERFORMANCE,Travel/Subsistence,VIRGINTRAINSEC SERVCS,28/01/2016,-72.40
QUALITY ASSURANCE & PERFORMANCE,Travel/Subsistence,VIRGINTRAINSEC SERVCS,28/01/2016,30.30
QUALITY ASSURANCE & PERFORMANCE,Travel/Subsistence,VIRGINTRAINSEC SERVCS,28/01/2016,99.30
QUALITY ASSURANCE & PERFORMANCE,Travel/Subsistence,WWW.SOUTHEASTERNRAILWA,28/01/2016,50.00
LIBRARIES & ARCHIVE,Education-Library Books,Amazon UK Marketplace,28/01/2016,6.91
LIBRARIES & ARCHIVE,Education-Library Books,Amazon UK Marketplace,28/01/2016,5.09
LIBRARIES & ARCHIVE,Education-Library Books,Amazon UK Marketplace,28/01/2016,12.71
LIBRARIES & ARCHIVE,Education-Library Books,Amazon UK Marketplace,28/01/2016,6.33
LIBRARIES & ARCHIVE,Education-Library Books,Amazon UK Marketplace,28/01/2016,6.60
LIBRARIES & ARCHIVE,Education-Library Books,Amazon UK Retail,28/01/2016,24.03
LIBRARIES & ARCHIVE,Education-Other,Amazon UK Retail,28/01/2016,-9.98
LIBRARIES & ARCHIVE,Travel/Subsistence,OYSTER BUS AUTOTOP,28/01/2016,20.00
LIBRARIES & ARCHIVE,Education-Other,Amazon UK Marketplace,28/01/2016,19.99
LIBRARIES & ARCHIVE,Education-Other,Amazon UK Marketplace,28/01/2016,54.72
LIBRARIES & ARCHIVE,Domestic Goods-Other,Amazon UK Marketplace,28/01/2016,5.72
LIBRARIES & ARCHIVE,Domestic Goods-Other,Amazon UK Marketplace,28/01/2016,6.99
LIBRARIES & ARCHIVE,Education-Arts/Crafts,Amazon UK Retail,28/01/2016,44.12
LIBRARIES & ARCHIVE,Education-Library Books,Amazon UK Retail,28/01/2016,10.99
LIBRARIES & ARCHIVE,Education-Other,THE READING AGENCY,28/01/2016,135.00
LIBRARIES & ARCHIVE,Education-Other,THE READING AGENCY,28/01/2016,2.40
LIBRARIES & ARCHIVE,Vehicle Fuel,THE READING AGENCY,28/01/2016,27.00
SCHOOL & EDUCATION IMPROVEMENT SERVICE,Stationery,Amazon UK Marketplace,28/01/2016,97.54
DAY CENTRES,Financial Services,BRIXTON FOOD AND WINE,29/01/2016,200.00
DAY CENTRES,Travel/Subsistence,NEWS AT NINE,29/01/2016,50.00
BALANCE SHEET,VAT,LAMBETH T/T,29/01/2016,16.94
BALANCE SHEET,VAT,LAMBETH T/T,29/01/2016,16.94
LIBRARIES & ARCHIVE,Domestic Goods-Other,Amazon UK Marketplace,29/01/2016,1.99
LIBRARIES & ARCHIVE,Education-Other,Amazon UK Marketplace,29/01/2016,6.12
POLICY & COMMUNICATIONS,Catering Food & Drink,SACAT MARKS & SPENCER,29/01/2016,12.35
POLICY & COMMUNICATIONS,Catering Food & Drink,TESCO STORES-2143,29/01/2016,4.10
HOUSING MANAGEMENT SERVICES,Building-Others,LAMBETH T/T,29/01/2016,84.71
HOUSING MANAGEMENT SERVICES,Building-Others,LAMBETH T/T,29/01/2016,84.71
BALANCE SHEET,VAT,Amazon UK Marketplace,30/01/2016,0.80
BALANCE SHEET,VAT,Amazon UK Retail,30/01/2016,2.00
LIBRARIES & ARCHIVE,Education-Arts/Crafts,Amazon UK Marketplace,30/01/2016,65.80
LIBRARIES & ARCHIVE,Education-Library Books,Amazon UK Retail,30/01/2016,11.89
LIBRARIES & ARCHIVE,Education-Library Books,Amazon UK Retail,30/01/2016,26.58
LIBRARIES & ARCHIVE,Education-Other,Amazon UK Marketplace,30/01/2016,24.44
LIBRARIES & ARCHIVE,Education-Other,Amazon UK Retail,30/01/2016,9.99
FINANCIAL PLANNING AND MANAGEMENT,Travel/Subsistence,OYSTER AUTOTOPUP,30/01/2016,20.00
BALANCE SHEET,VAT,Amazon UK Marketplace,31/01/2016,1.78
LIBRARIES & ARCHIVE,Education-Arts/Crafts,Amazon UK Marketplace,31/01/2016,78.62
DAY CENTRES,Financial Services,CASH ADVANCE FEE,01/02/2016,5.90
INTEGRATED DISABILITY,Catering Food & Drink,TESCO STORE 2764,01/02/2016,128.25
OTHER - ADULTS,Domestic Goods-Other,WWW.AFFORDABLEGROUP.CO,01/02/2016,16.19
OTHER - ADULTS,Catering Food & Drink,TESCO STORES 5999,01/02/2016,51.37
OTHER - ADULTS,Domestic Goods-Other,Amazon UK Marketplace,01/02/2016,147.95
CHILDREN SAFEGUARDING & ASSESSMENTS,Domestic Goods-Other,ARGOS DIRECT,01/02/2016,199.92
LIBRARIES & ARCHIVE,Education-Library Books,Amazon UK Marketplace,01/02/2016,14.92
BUSINESS TRANSFORMATION,Domestic Goods-Other,Amazon UK Marketplace,01/02/2016,31.47
BUSINESS TRANSFORMATION,Domestic Goods-Other,Amazon UK Marketplace,01/02/2016,-31.47
HOUSING MANAGEMENT SERVICES,Food/refreshment - meetings,SAINSBURYS S/MKTS,01/02/2016,13.10
HOUSING MANAGEMENT SERVICES,Stationery,WWW.VIKING-DIRECT.CO.U,01/02/2016,125.29
HOUSING MANAGEMENT SERVICES,Use of Public Transport,LUL TICKET MACHINE,01/02/2016,50.00
HOUSING MANAGEMENT SERVICES,Use of Public Transport,LUL TICKET MACHINE,01/02/2016,50.00
INTEGRATED DISABILITY,Catering Food & Drink,SAINSBURY'S S/MKT,02/02/2016,68.35
BALANCE SHEET,VAT,LAMBETH INTERNET PAYM,02/02/2016,3.39
BALANCE SHEET,Personal,BUDGET CARPETS 1,02/02/2016,-83.50
BALANCE SHEET,VAT,AO RETAIL LIMITED,02/02/2016,48.17
BALANCE SHEET,VAT,BUDGET CARPETS 1,02/02/2016,0.00
BALANCE SHEET,VAT,CURRYS ONLINE,02/02/2016,106.33
BALANCE SHEET,VAT,IKEA ONLINE,02/02/2016,47.50
BALANCE SHEET,VAT,AO RETAIL LIMITED,02/02/2016,34.83
BALANCE SHEET,VAT,IKEA ONLINE,02/02/2016,118.41
CHILDREN LOOKED AFTER,Domestic Goods-Other,AO RETAIL LIMITED,02/02/2016,240.83
CHILDREN LOOKED AFTER,Domestic Goods-Other,BUDGET CARPETS 1,02/02/2016,417.50
CHILDREN LOOKED AFTER,Domestic Goods-Other,AO RETAIL LIMITED,02/02/2016,174.16
CHILDREN LOOKED AFTER,Domestic Goods-Other,ARGOS RETAIL GROUP,02/02/2016,368.94
CHILDREN LOOKED AFTER,Domestic Goods-Other,ARGOS RETAIL GROUP,02/02/2016,74.97
CHILDREN LOOKED AFTER,Domestic Goods-Other,CURRYS ONLINE,02/02/2016,34.78
CHILDREN LOOKED AFTER,Domestic Goods-Other,CURRYS ONLINE,02/02/2016,398.98
CHILDREN LOOKED AFTER,Furniture-Domestic Furniture,IKEA ONLINE,02/02/2016,592.09
QUALITY ASSURANCE & PERFORMANCE,Furniture-Domestic Furniture,CURRYS ONLINE,02/02/2016,531.66
QUALITY ASSURANCE & PERFORMANCE,Furniture-Domestic Furniture,IKEA ONLINE,02/02/2016,237.50
LIBRARIES & ARCHIVE,Books/Publications/Resources,TESCO STORES 6791,02/02/2016,7.15
HOUSING MANAGEMENT SERVICES,Cemetery & Crematorium,LAMBETH INTERNET PAYM,02/02/2016,16.94
BALANCE SHEET,VAT,PAYPAL *DANSLEEC2LT,03/02/2016,0.00
CHILDREN LOOKED AFTER,Domestic Goods-Other,ARGOS RETAIL GROUP,03/02/2016,157.97
LIBRARIES & ARCHIVE,Education-Other,ATM BARCLAYS BANK PLC,03/02/2016,100.00
LIBRARIES & ARCHIVE,Education-Library Books,WP-GATEHOUSE MEDIA,03/02/2016,312.60
POLICY & COMMUNICATIONS,Professional & Advisory Services,PAYPAL *DANSLEEC2LT,03/02/2016,717.00
"WELFARE, EMPLOYMENT & SKILLS",Stationery,Amazon UK Retail,03/02/2016,10.93
"WELFARE, EMPLOYMENT & SKILLS",Stationery,Amazon UK Retail,03/02/2016,19.10
SENIOR MANAGEMENT - ADULTS & PUBLIC HEALTH,Taxi Fares,WWW.ADDISONLEE.COM,04/02/2016,85.15
SENIOR MANAGEMENT - ADULTS & PUBLIC HEALTH,Taxi Fares,WWW.ADDISONLEE.COM,04/02/2016,4.35
BALANCE SHEET,VAT,ARGOS RETAIL GROUP,04/02/2016,37.36
BALANCE SHEET,VAT,ARGOS RETAIL GROUP,04/02/2016,4.50
BALANCE SHEET,VAT,Amazon UK Marketplace,04/02/2016,3.48
CHILDREN LOOKED AFTER,Domestic Goods-Other,ARGOS RETAIL GROUP,04/02/2016,186.81
CHILDREN LOOKED AFTER,Domestic Goods-Other,ARGOS RETAIL GROUP,04/02/2016,22.49
CHILDREN LOOKED AFTER,Domestic Goods-Other,ARGOS RETAIL GROUP,04/02/2016,48.94
CHILDREN SAFEGUARDING & ASSESSMENTS,Taxi Fares,RADIO TAXIS,04/02/2016,137.00
LIBRARIES & ARCHIVE,Education-Library Books,Amazon UK Marketplace,04/02/2016,6.94
LIBRARIES & ARCHIVE,Education-Library Books,Amazon UK Marketplace,04/02/2016,2.81
LIBRARIES & ARCHIVE,Education-Library Books,Amazon UK Marketplace,04/02/2016,10.01
LIBRARIES & ARCHIVE,Education-Library Books,Amazon UK Retail,04/02/2016,3.79
LIBRARIES & ARCHIVE,Stationery,OFFICE DEPOT,04/02/2016,414.72
LIBRARIES & ARCHIVE,Travel/Subsistence,MAYDAY TRAVEL LTD,04/02/2016,250.00
LIBRARIES & ARCHIVE,Domestic Goods-Other,Amazon UK Marketplace,04/02/2016,9.98
PROPERTY & FINANCIAL TRANSACTION SERVICES,Domestic Goods-Other,Amazon UK Marketplace,04/02/2016,17.41
CHILDREN LOOKED AFTER,Financial Services,LAMBETH INTERNET PAYM,05/02/2016,30.50
CHILDREN LOOKED AFTER,Financial Services,LAMBETH INTERNET PAYM,05/02/2016,10.17
CHILDREN SAFEGUARDING & ASSESSMENTS,Financial Services,GRO HM PASSPORT OFFICE,05/02/2016,46.80
CHILDREN SAFEGUARDING & ASSESSMENTS,Financial Services,GRO HM PASSPORT OFFICE,05/02/2016,-23.40
LIBRARIES & ARCHIVE,Education-Arts/Crafts,Amazon UK Marketplace,05/02/2016,6.25
LIBRARIES & ARCHIVE,Education-Arts/Crafts,Amazon UK Marketplace,05/02/2016,8.95
LIBRARIES & ARCHIVE,Education-Arts/Crafts,Amazon UK Marketplace,05/02/2016,2.34
LIBRARIES & ARCHIVE,Education-Arts/Crafts,Amazon UK Marketplace,05/02/2016,2.39
LIBRARIES & ARCHIVE,Education-Arts/Crafts,Amazon UK Marketplace,05/02/2016,1.78
LIBRARIES & ARCHIVE,Education-Other,Amazon UK Marketplace,05/02/2016,16.39
LIBRARIES & ARCHIVE,Domestic Goods-Other,ARGOS LTD,05/02/2016,4.99
REVENUE & BENEFITS,Education-Library Books,"Amazon Svcs Europe,SAR",05/02/2016,20.42
REVENUE & BENEFITS,Education-Library Books,Amazon UK Marketplace,05/02/2016,6.62
LIBRARIES & ARCHIVE,Books/Publications/Resources,Amazon UK Marketplace,06/02/2016,22.00
LIBRARIES & ARCHIVE,Food/refreshment - meetings,MAKRO SELF SERVICE CROYDO,06/02/2016,134.15
LIBRARIES & ARCHIVE,Food/refreshment - meetings,TESCO STORE 2143,06/02/2016,32.71
LIBRARIES & ARCHIVE,Catering Food & Drink,LIDL UK,06/02/2016,8.23
LIBRARIES & ARCHIVE,Education-Arts/Crafts,Amazon UK Marketplace,06/02/2016,12.57
LIBRARIES & ARCHIVE,Vehicle Maintenance,LIDL UK,06/02/2016,0.54
REVENUE & BENEFITS,Education-Library Books,Amazon UK Marketplace,06/02/2016,72.25
LIBRARIES & ARCHIVE,Education-Arts/Crafts,Amazon UK Marketplace,07/02/2016,1.80
BALANCE SHEET,VAT,Amazon UK Retail,08/02/2016,12.74
CHILDREN LOOKED AFTER,Legal Services-Other,HMCOURTS-SERVICE.G,08/02/2016,100.00
LIBRARIES & ARCHIVE,Education-Library Books,BARKER BROOKS,08/02/2016,112.00
BUSINESS TRANSFORMATION,IT Office Equipment,Amazon UK Retail,08/02/2016,63.66
BUSINESS TRANSFORMATION,IT Services,Amazon Prime,08/02/2016,79.00
BUSINESS TRANSFORMATION,IT Services,Amazon Prime,08/02/2016,-79.00
BALANCE SHEET,VAT,WWW.VIKING-DIRECT.CO.U,09/02/2016,0.00
BALANCE SHEET,VAT,GRANTS REMOVAL & STORA,09/02/2016,148.20
BALANCE SHEET,VAT,SCREWFIX,09/02/2016,10.72
CHILDREN LOOKED AFTER,Domestic Goods-Other,ARGOS RETAIL GROUP,09/02/2016,"1,191.32"
QUALITY ASSURANCE & PERFORMANCE,Childcare Services,LOVE2SHOP.CO.UK,09/02/2016,254.25
QUALITY ASSURANCE & PERFORMANCE,Mail Services-Postage,POST OFFICE COUNTER,09/02/2016,235.44
QUALITY ASSURANCE & PERFORMANCE,Travel/Subsistence,OYSTER AUTOTOPUP,09/02/2016,40.00
QUALITY ASSURANCE & PERFORMANCE,Travel/Subsistence,OYSTER AUTOTOPUP,09/02/2016,40.00
QUALITY ASSURANCE & PERFORMANCE,Travel/Subsistence,OYSTER BUS AUTOTOP,09/02/2016,40.00
QUALITY ASSURANCE & PERFORMANCE,Travel/Subsistence,OYSTER BUS AUTOTOP,09/02/2016,40.00
QUALITY ASSURANCE & PERFORMANCE,Travel/Subsistence,VIRGINTRAINSEC SERVCS,09/02/2016,23.40
QUALITY ASSURANCE & PERFORMANCE,Travel/Subsistence,VIRGINTRAINSEC SERVCS,09/02/2016,61.50
QUALITY ASSURANCE & PERFORMANCE,Travel/Subsistence,VIRGINTRAINSEC SERVCS,09/02/2016,88.10
YOUTH OFFENDING SERVICE,Books/Publications/Resources,Amazon UK Marketplace,09/02/2016,41.74
YOUTH OFFENDING SERVICE,Books/Publications/Resources,Amazon UK Retail,09/02/2016,33.98
YOUTH OFFENDING SERVICE,Education-Library Books,WWW.HARPERCOLLINS.CO.U,09/02/2016,80.85
YOUTH OFFENDING SERVICE,Stationery,WWW.VIKING-DIRECT.CO.U,09/02/2016,190.61
LIBRARIES & ARCHIVE,Education-Arts/Crafts,Amazon UK Marketplace,09/02/2016,5.34
SPECIAL EDUCATIONAL NEEDS,Stationery,OFFICE DEPOT,09/02/2016,274.97
REVENUE & BENEFITS,Cleaning-Internal,TESCO STORE 2143,09/02/2016,15.75
FINANCIAL PLANNING AND MANAGEMENT,Use of Public Transport,NEW SOUTHERN RAILW,09/02/2016,30.00
HOUSING MANAGEMENT SERVICES,Building-Timber,B & Q,09/02/2016,104.85
HOUSING MANAGEMENT SERVICES,Building-Timber,B & Q,09/02/2016,116.16
HOUSING MANAGEMENT SERVICES,Building-Timber,SCREWFIX,09/02/2016,53.69
HOUSING MANAGEMENT SERVICES,Haulage,GRANTS REMOVAL & STORA,09/02/2016,758.78
HOUSING MANAGEMENT SERVICES,Travel/Subsistence,LUL TICKET MACHINE,09/02/2016,140.00
DAY CENTRES,Financial Services,LBL NOT PRESENT,10/02/2016,10.17
INTEGRATED DISABILITY,Building-Others,Amazon UK Retail,10/02/2016,78.95
INTEGRATED DISABILITY,Financial Services,ROYAL BANK UK /,10/02/2016,400.00
BALANCE SHEET,Personal,Amazon UK Retail,10/02/2016,-15.79
BALANCE SHEET,VAT,CITB,10/02/2016,10.00
BALANCE SHEET,VAT,CITB,10/02/2016,5.00
BALANCE SHEET,VAT,CITB,10/02/2016,5.00
BALANCE SHEET,VAT,CITB,10/02/2016,5.00
BALANCE SHEET,VAT,CITB,10/02/2016,5.00
BALANCE SHEET,VAT,CITB,10/02/2016,5.00
BALANCE SHEET,VAT,CITB,10/02/2016,5.00
BALANCE SHEET,VAT,POST OFFICE COUNTER,10/02/2016,1.37
BALANCE SHEET,VAT,ACCESS SELF STORAG,10/02/2016,42.90
BALANCE SHEET,VAT,ACCESS SELF STORAG,10/02/2016,42.90
BALANCE SHEET,VAT,CYCLE PS LTD,10/02/2016,30.00
BALANCE SHEET,VAT,I-SELECT CONSULTANCY,10/02/2016,66.00
BALANCE SHEET,VAT,ARGOS RETAIL GROUP,10/02/2016,10.00
CHILDREN LOOKED AFTER,Domestic Goods-Other,ARGOS RETAIL GROUP,10/02/2016,49.98
CHILDREN LOOKED AFTER,Domestic Goods-Other,AO RETAIL LIMITED,10/02/2016,737.00
CHILDREN LOOKED AFTER,Education-Other,PARENTPAY.COM,10/02/2016,95.00
CHILDREN LOOKED AFTER,Financial Services,HM PASSPORT OFFICE,10/02/2016,72.50
CHILDREN LOOKED AFTER,Financial Services,LBL NOT PRESENT,10/02/2016,30.50
CHILDREN LOOKED AFTER,Furniture-Domestic Furniture,BENSONS FOR BEDS,10/02/2016,494.98
CHILDREN LOOKED AFTER,Furniture-Domestic Furniture,WORLDSTORES LTD,10/02/2016,394.97
CHILDREN LOOKED AFTER,Legal Services-General Support,ROCK SOLICITORS,10/02/2016,93.24
CHILDREN LOOKED AFTER,Vehicle Maintenance,WWW.COMAPRETHEMANANDTH,10/02/2016,66.16
EMPLOYMENT & ENTERPRISE - E&L,Building-General,E Z HOMEWARE LIMITED,10/02/2016,8.94
EMPLOYMENT & ENTERPRISE - E&L,Catering Food & Drink,SACAT MARKS & SPENCER,10/02/2016,4.99
EMPLOYMENT & ENTERPRISE - E&L,Catering Food & Drink,SAINSBURYS S/MKTS,10/02/2016,3.60
EMPLOYMENT & ENTERPRISE - E&L,Catering Food & Drink,SAINSBURYS S/MKTS,10/02/2016,0.55
EMPLOYMENT & ENTERPRISE - E&L,Catering Food & Drink,SAINSBURYS S/MKTS,10/02/2016,11.60
EMPLOYMENT & ENTERPRISE - E&L,Catering Food & Drink,SAINSBURYS STOCKWE,10/02/2016,16.65
EMPLOYMENT & ENTERPRISE - E&L,Domestic Goods-Other,GIFTVOUCHERSHOP.CO.UK,10/02/2016,400.99
EMPLOYMENT & ENTERPRISE - E&L,Education-Other,WWW.SECURAK.CO.UK,10/02/2016,139.98
EMPLOYMENT & ENTERPRISE - E&L,Taxi Fares,WWW.ADDISONLEE.COM,10/02/2016,7.50
EMPLOYMENT & ENTERPRISE - E&L,Travel/Subsistence,OYSTER AUTOTOPUP,10/02/2016,20.00
EMPLOYMENT & ENTERPRISE - E&L,Travel/Subsistence,OYSTER AUTOTOPUP,10/02/2016,20.00
EMPLOYMENT & ENTERPRISE - E&L,Travel/Subsistence,OYSTER AUTOTOPUP,10/02/2016,20.00
EMPLOYMENT & ENTERPRISE - E&L,Travel/Subsistence,OYSTER AUTOTOPUP,10/02/2016,20.00
EMPLOYMENT & ENTERPRISE - E&L,Travel/Subsistence,OYSTER AUTOTOPUP,10/02/2016,20.00
EMPLOYMENT & ENTERPRISE - E&L,Travel/Subsistence,OYSTER BUS AUTOTOP,10/02/2016,20.00
EMPLOYMENT & ENTERPRISE - E&L,Travel/Subsistence,SOUTHERN RAILWAY WEB,10/02/2016,46.00
EMPLOYMENT & ENTERPRISE - E&L,Travel/Subsistence,VIRGINTRAINS.CO.UK,10/02/2016,307.60
EMPLOYMENT & ENTERPRISE - E&L,Travel/Subsistence,VIRGINTRAINS.CO.UK,10/02/2016,99.20
EMPLOYMENT & ENTERPRISE - E&L,Travel/Subsistence,VIRGINTRAINS.CO.UK,10/02/2016,98.50
LIBRARIES & ARCHIVE,Education-Library Books,"Amazon Svcs Europe,SAR",10/02/2016,6.60
LIBRARIES & ARCHIVE,Education-Library Books,Amazon UK Marketplace,10/02/2016,24.40
LIBRARIES & ARCHIVE,Education-Library Books,Amazon UK Marketplace,10/02/2016,16.45
LIBRARIES & ARCHIVE,Travel/Subsistence,MAYDAY TRAVEL LTD,10/02/2016,-250.00
LIBRARIES & ARCHIVE,Education-Library Books,Amazon UK Retail,10/02/2016,10.95
FINANCIAL PLANNING AND MANAGEMENT,Use of Public Transport,LUL TICKET MACHINE,10/02/2016,30.00
"WELFARE, EMPLOYMENT & SKILLS",Consultancy-Business,HAYDEN TRAINING,10/02/2016,252.50
"WELFARE, EMPLOYMENT & SKILLS",Education-Other,CITB,10/02/2016,50.00
"WELFARE, EMPLOYMENT & SKILLS",Education-Other,CITB,10/02/2016,25.00
"WELFARE, EMPLOYMENT & SKILLS",Education-Other,CITB,10/02/2016,25.00
"WELFARE, EMPLOYMENT & SKILLS",Education-Other,CITB,10/02/2016,25.00
"WELFARE, EMPLOYMENT & SKILLS",Education-Other,CITB,10/02/2016,55.00
"WELFARE, EMPLOYMENT & SKILLS",Education-Other,CITB,10/02/2016,25.00
"WELFARE, EMPLOYMENT & SKILLS",Education-Other,CITB,10/02/2016,25.00
"WELFARE, EMPLOYMENT & SKILLS",Education-Other,VUE*NCS CITB HS&E TEST,10/02/2016,19.50
"WELFARE, EMPLOYMENT & SKILLS",Education-Other,VUE*NCS CITB HS&E TEST,10/02/2016,19.50
"WELFARE, EMPLOYMENT & SKILLS",Education-Other,VUE*NCS CITB HS&E TEST,10/02/2016,39.00
"WELFARE, EMPLOYMENT & SKILLS",Financial Services,GRO HM PASSPORT OFFICE,10/02/2016,9.25
"WELFARE, EMPLOYMENT & SKILLS",Travel/Subsistence,OYSTER RENEW WEB,10/02/2016,25.00
"PLANNING, TRANSPORT & DEVELOPMENT",Consultancy-Other,I-SELECT CONSULTANCY,10/02/2016,330.00
"PLANNING, TRANSPORT & DEVELOPMENT",Cycles Purchase,BRIXTON CYCLES LTD,10/02/2016,33.00
"PLANNING, TRANSPORT & DEVELOPMENT",Cycles Purchase,CYCLE PS LTD,10/02/2016,149.98
"PLANNING, TRANSPORT & DEVELOPMENT",Domestic Goods-Other,Amazon UK Marketplace,10/02/2016,92.60
"PLANNING, TRANSPORT & DEVELOPMENT",Facilities-Advertising,FACEBOOK 4BCFZ7S5B2,10/02/2016,20.03
"PLANNING, TRANSPORT & DEVELOPMENT",Facilities-Advertising,FACEBOOK 4FNFD866B2,10/02/2016,7.20
"PLANNING, TRANSPORT & DEVELOPMENT",Facilities-Printing,Amazon UK Retail,10/02/2016,275.00
"PLANNING, TRANSPORT & DEVELOPMENT",Facilities-Printing,Amazon UK Retail,10/02/2016,270.00
"PLANNING, TRANSPORT & DEVELOPMENT",Facilities-Printing,Amazon UK Retail,10/02/2016,240.00
"PLANNING, TRANSPORT & DEVELOPMENT",Facilities-Storage,ACCESS SELF STORAG,10/02/2016,214.52
"PLANNING, TRANSPORT & DEVELOPMENT",Facilities-Storage,ACCESS SELF STORAG,10/02/2016,214.52
"PLANNING, TRANSPORT & DEVELOPMENT",Facilities-Storage,ACCESS SELF STORAG,10/02/2016,33.68
"PLANNING, TRANSPORT & DEVELOPMENT",Travel/Subsistence,EASYJET 000EQ7LQ5R,10/02/2016,95.89
"PLANNING, TRANSPORT & DEVELOPMENT",Travel/Subsistence,OYSTER AUTOTOPUP,10/02/2016,20.00
"PLANNING, TRANSPORT & DEVELOPMENT",Travel/Subsistence,OYSTER BUS AUTOTOP,10/02/2016,20.00
"PLANNING, TRANSPORT & DEVELOPMENT",Travel/Subsistence,OYSTER BUS AUTOTOP,10/02/2016,20.00
HOUSING MANAGEMENT SERVICES,Mail Services-Postage,POST OFFICE COUNTER,10/02/2016,6.83
INTEGRATED DISABILITY,Financial Services,CASH ADVANCE FEE,11/02/2016,11.80
MENTAL HEALTH,Accommodation,TRAVELODGE AGENT,11/02/2016,337.38
MENTAL HEALTH,Accommodation,TRAVELODGE AGENT,11/02/2016,356.83
MENTAL HEALTH,Accommodation,TRAVELODGE AGENT,11/02/2016,415.45
MENTAL HEALTH,Accommodation,TRAVELODGE AGENT,11/02/2016,409.62
MENTAL HEALTH,Legal Services-Other,HMCOURTS-SERVICE.G,11/02/2016,40.00
MENTAL HEALTH,Legal Services-Other,HMCOURTS-SERVICE.G,11/02/2016,20.00
MENTAL HEALTH,Legal Services-Other,HMCOURTS-SERVICE.G,11/02/2016,20.00
MENTAL HEALTH,Legal Services-Other,HMCOURTS-SERVICE.G,11/02/2016,20.00
MENTAL HEALTH,Legal Services-Other,HMCOURTS-SERVICE.G,11/02/2016,20.00
MENTAL HEALTH,Legal Services-Other,HMCOURTS-SERVICE.G,11/02/2016,40.00
MENTAL HEALTH,Travel/Subsistence,LONDON & SOUTH EAS,11/02/2016,32.90
MENTAL HEALTH,Travel/Subsistence,LONDON & SOUTH EAS,11/02/2016,143.00
MENTAL HEALTH,Travel/Subsistence,OYSTER AUTOTOPUP,11/02/2016,20.00
OTHER - ADULTS,IT Hardware,ARGOS RETAIL GROUP,11/02/2016,229.99
OTHER - ADULTS,Mail Services-Postage,WH SMITH,11/02/2016,31.86
BALANCE SHEET,VAT,Amazon UK Retail,11/02/2016,10.04
BALANCE SHEET,VAT,CENTRAL AV LTD,11/02/2016,64.00
BALANCE SHEET,VAT,CURRYS ONLINE,11/02/2016,138.33
BALANCE SHEET,VAT,CURRYS ONLINE,11/02/2016,100.00
BALANCE SHEET,VAT,IKEA ONLINE,11/02/2016,37.50
BALANCE SHEET,VAT,TRAVELODGE AGENT,11/02/2016,63.92
BALANCE SHEET,VAT,TRAVELODGE AGENT,11/02/2016,66.92
BALANCE SHEET,VAT,TRAVELODGE AGENT,11/02/2016,77.75
BALANCE SHEET,VAT,TRAVELODGE AGENT,11/02/2016,76.58
BALANCE SHEET,VAT,EB ANALYSING AND REPO,11/02/2016,30.97
BALANCE SHEET,VAT,Amazon UK Retail,11/02/2016,4.00
BALANCE SHEET,VAT,THE READING AGENCY,11/02/2016,8.99
CHILDREN LOOKED AFTER,Financial Services,LAMBETH INTERNET PAYM,11/02/2016,10.17
CHILDREN LOOKED AFTER,Furniture-Domestic Furniture,BEAUMONT BEDS LTD,11/02/2016,809.00
CHILDREN LOOKED AFTER,Building-Floors,FLOOR FASHION LTD,11/02/2016,526.00
CHILDREN LOOKED AFTER,Domestic Goods-Other,CURRYS ONLINE,11/02/2016,691.64
CHILDREN LOOKED AFTER,Domestic Goods-Other,CURRYS ONLINE,11/02/2016,499.97
CHILDREN LOOKED AFTER,Facilities-Market Research,ARGOS DIRECT,11/02/2016,-59.98
CHILDREN LOOKED AFTER,Furniture-Domestic Furniture,IKEA ONLINE,11/02/2016,187.50
CHILDREN SAFEGUARDING & ASSESSMENTS,Domestic Goods-Other,CENTRAL AV LTD,11/02/2016,320.00
QUALITY ASSURANCE & PERFORMANCE,Travel/Subsistence,GOV.UK/DART-CHARGE,11/02/2016,5.00
LIBRARIES & ARCHIVE,Books/Publications/Resources,CASH ADVANCE FEE,11/02/2016,2.95
LIBRARIES & ARCHIVE,Books/Publications/Resources,CASH ADVANCE FEE,11/02/2016,5.90
LIBRARIES & ARCHIVE,Books/Publications/Resources,HSBC/BRIXTON RD I1,11/02/2016,200.00
LIBRARIES & ARCHIVE,Education-Library Books,THE READING AGENCY,11/02/2016,44.97
LIBRARIES & ARCHIVE,Education-Library Books,"Amazon Svcs Europe,SAR",11/02/2016,54.57
LIBRARIES & ARCHIVE,Education-Library Books,Amazon UK Marketplace,11/02/2016,19.93
LIBRARIES & ARCHIVE,Education-Other,Amazon UK Marketplace,11/02/2016,15.99
SCHOOL & EDUCATION IMPROVEMENT SERVICE,Stationery,Amazon UK Marketplace,11/02/2016,68.40
CORPORATE AFFAIRS,Catering Food & Drink,TESCO STORES 5342,11/02/2016,3.00
CORPORATE AFFAIRS,Stationery,Amazon UK Marketplace,11/02/2016,13.28
CORPORATE AFFAIRS,Stationery,Amazon UK Retail,11/02/2016,50.17
CORPORATE AFFAIRS,Travel/Subsistence,LUL TICKET MACHINE,11/02/2016,100.00
CORPORATE AFFAIRS,Travel/Subsistence,LUL TICKET MACHINE,11/02/2016,50.00
FINANCIAL PLANNING AND MANAGEMENT,Travel/Subsistence,OYSTER AUTOTOPUP,11/02/2016,20.00
INTERNAL AUDIT,Education-Library Books,"Amazon Svcs Europe,SAR",11/02/2016,7.50
INTERNAL AUDIT,Facilities-Printing,Amazon UK Retail,11/02/2016,19.92
ENVIRONMENT,Books/Publications/Resources,LAND REGISTRY,11/02/2016,6.00
ENVIRONMENT,Books/Publications/Resources,LAND REGISTRY,11/02/2016,6.00
ENVIRONMENT,Books/Publications/Resources,LAND REGISTRY,11/02/2016,12.00
ENVIRONMENT,Books/Publications/Resources,LAND REGISTRY,11/02/2016,15.00
ENVIRONMENT,Food/refreshment - meetings,PETS AT HOME LTD,11/02/2016,94.12
ENVIRONMENT,Use of Public Transport,NEW SOUTHERN RAILW,11/02/2016,60.00
ENVIRONMENT,Use of Public Transport,NEW SOUTHERN RAILW,11/02/2016,30.00
ENVIRONMENT,Use of Public Transport,NEW SOUTHERN RAILW,11/02/2016,50.00
HOUSING MANAGEMENT SERVICES,Consultancy-Business,EB ANALYSING AND REPO,11/02/2016,154.85
DAY CENTRES,Travel/Subsistence,OYSTER BUS AUTOTOP,12/02/2016,20.00
PUBLIC HEALTH - ADULTS,Healthcare Services,B H & R HOSPITALS,12/02/2016,624.00
PUBLIC HEALTH - ADULTS,Healthcare Services,BH & R HOSPITALS N,12/02/2016,154.00
PUBLIC HEALTH - ADULTS,Healthcare Services,EASTERN & COASTAL KENT P,12/02/2016,984.20
PUBLIC HEALTH - ADULTS,Healthcare Services,GBS RE ASHFRD/ST PET H,12/02/2016,"1,075.00"
PUBLIC HEALTH - ADULTS,Healthcare Services,GENERAL OFFICE,12/02/2016,532.00
PUBLIC HEALTH - ADULTS,Healthcare Services,GENERAL OFFICE,12/02/2016,135.58
PUBLIC HEALTH - ADULTS,Healthcare Services,NHS SBS,12/02/2016,"1,814.32"
PUBLIC HEALTH - ADULTS,Healthcare Services,OXFORD UNIV HOSPITAL,12/02/2016,457.00
PUBLIC HEALTH - ADULTS,Healthcare Services,OXFORD UNIV HOSPITAL,12/02/2016,136.00
PUBLIC HEALTH - ADULTS,Healthcare Services,ROYAL CORNWALL HOS,12/02/2016,131.00
PUBLIC HEALTH - ADULTS,Healthcare Services,SHEFFIELD TEACH HOSPIT,12/02/2016,522.00
PUBLIC HEALTH - ADULTS,Healthcare Services,THE HILLINGDON HOSPITA,12/02/2016,865.00
PUBLIC HEALTH - ADULTS,Healthcare Services,UHB TREASURY,12/02/2016,390.06
PUBLIC HEALTH - ADULTS,Healthcare Services,UNITED BRISTOL NHS TRU,12/02/2016,"2,249.06"
BALANCE SHEET,VAT,Amazon UK Retail,12/02/2016,16.33
BALANCE SHEET,VAT,AO RETAIL LIMITED,12/02/2016,119.16
BALANCE SHEET,VAT,ARGOS RETAIL GROUP,12/02/2016,56.82
BALANCE SHEET,VAT,CURRYS ONLINE,12/02/2016,29.16
BALANCE SHEET,VAT,CENTRAL AV LTD,12/02/2016,44.80
CHILDREN LOOKED AFTER,Conference Expenses,CENTRAL AV LTD,12/02/2016,179.20
CHILDREN LOOKED AFTER,Travel/Subsistence,LGWAIRPORT *GNE165F5,12/02/2016,519.45
CHILDREN LOOKED AFTER,Domestic Goods-Other,ARGOS RETAIL GROUP,12/02/2016,284.11
CHILDREN LOOKED AFTER,Domestic Goods-Other,CURRYS ONLINE,12/02/2016,145.82
CHILDREN LOOKED AFTER,Furniture-Domestic Furniture,AO RETAIL LIMITED,12/02/2016,595.81
CHILDREN SAFEGUARDING & ASSESSMENTS,Domestic Goods-Other,ARGOS RETAIL GROUP,12/02/2016,432.65
EARLY YEARS AND PARENTING,Financial Services-Grants,WP-THE BRITISH ASS,12/02/2016,50.00
HOUSING MANAGEMENT SERVICES,Facilities-Printing,Amazon UK Retail,12/02/2016,81.64
HOUSING MANAGEMENT SERVICES,Financial Services,LAMBETH INTERNET PAYM,12/02/2016,10.17
HOUSING MANAGEMENT SERVICES,Financial Services,LAMBETH INTERNET PAYM,12/02/2016,10.17
HOUSING MANAGEMENT SERVICES,Financial Services,LAMBETH INTERNET PAYM,12/02/2016,10.17
BALANCE SHEET,VAT,Amazon UK Marketplace,13/02/2016,1.20
BALANCE SHEET,VAT,SURVEYMONKEY.COM,13/02/2016,4.33
SCHOOL & EDUCATION IMPROVEMENT SERVICE,Domestic Goods-Other,Amazon UK Marketplace,13/02/2016,41.81
SCHOOL & EDUCATION IMPROVEMENT SERVICE,Facilities-Printing,Amazon UK Retail,13/02/2016,23.56
PROPERTY & FINANCIAL TRANSACTION SERVICES,Travel/Subsistence,OYSTER AUTOTOPUP,13/02/2016,20.00
REVENUE & BENEFITS,IT Services,SURVEYMONKEY.COM,13/02/2016,21.67
CHILDREN LOOKED AFTER,Domestic Goods-Other,ARGOS RETAIL GROUP,15/02/2016,59.99
CHILDREN LOOKED AFTER,Domestic Goods-Other,ARGOS RETAIL GROUP,15/02/2016,173.94
CHILDREN LOOKED AFTER,Furniture-Domestic Furniture,IKEA ONLINE,15/02/2016,613.00
CHILDREN LOOKED AFTER,Travel/Subsistence,BRITISH A 1258531872774,15/02/2016,"1,118.41"
CHILDREN SAFEGUARDING & ASSESSMENTS,Financial Services,GRO HM PASSPORT OFFICE,15/02/2016,70.20
CHILDREN SAFEGUARDING & ASSESSMENTS,Financial Services,GRO HM PASSPORT OFFICE,15/02/2016,-70.20
INTERNAL AUDIT,Stationery,GRO HM PASSPORT OFFICE,15/02/2016,9.25
OLDER PEOPLE,Catering Food & Drink,JS ONLINE GROCERY,16/02/2016,328.35
CHILDREN SAFEGUARDING & ASSESSMENTS,Domestic Goods-Other,CENTRAL AV LTD,16/02/2016,288.00
OTHER - ADULTS,Domestic Goods-Other,ARGOS LTD,17/02/2016,61.74
OTHER - ADULTS,Banquet & Catering,WWW.EVENTSUPPLIES.CO.U,17/02/2016,164.16
OTHER - ADULTS,Catering Food & Drink,TESCO STORES 5999,17/02/2016,69.21
OTHER - ADULTS,Domestic Goods-Other,ARGOS RETAIL GROUP,17/02/2016,259.99
BALANCE SHEET,VAT,WWW.COMPUTINGPLUS.CO.UK,17/02/2016,30.58
EARLY HELP,Stationery,EMMAUS,17/02/2016,200.00
EARLY HELP,Stationery,FLOOR FASHION LTD,17/02/2016,200.00
EARLY HELP,Stationery,FLOOR FASHION LTD,17/02/2016,200.00
EARLY HELP,Use of Public Transport,VIRGINTRAINS.CO.UK,17/02/2016,151.20
EARLY HELP,Use of Public Transport,VIRGINTRAINS.CO.UK,17/02/2016,135.65
QUALITY ASSURANCE & PERFORMANCE,Domestic Goods-Other,ARGOS RETAIL GROUP,17/02/2016,45.91
LIBRARIES & ARCHIVE,Education-Library Books,"Amazon Svcs Europe,SAR",17/02/2016,11.65
LIBRARIES & ARCHIVE,Education-Library Books,Amazon UK Marketplace,17/02/2016,11.25
LIBRARIES & ARCHIVE,Education-Library Books,Amazon UK Marketplace,17/02/2016,2.81
LIBRARIES & ARCHIVE,Education-Library Books,Amazon UK Retail,17/02/2016,19.45
SCHOOL & EDUCATION IMPROVEMENT SERVICE,Domestic Goods-Other,Amazon UK Marketplace,17/02/2016,-19.22
SCHOOL & EDUCATION IMPROVEMENT SERVICE,Domestic Goods-Other,Amazon UK Marketplace,17/02/2016,9.95
CORPORATE AFFAIRS,Stationery,Amazon UK Marketplace,17/02/2016,432.45
CORPORATE AFFAIRS,Stationery,Amazon UK Marketplace,17/02/2016,348.75
CORPORATE AFFAIRS,Stationery,WWW.COMPUTINGPLUS.CO.UK,17/02/2016,152.90
FINANCIAL PLANNING AND MANAGEMENT,Use of Public Transport,TRAINLINE,17/02/2016,138.62
HOUSING CAPITAL & ASSET MANAGEMENT,Legal Services-Other,HMCOURTS-SERVICE.G,17/02/2016,320.00
HOUSING CAPITAL & ASSET MANAGEMENT,Legal Services-Other,HMCOURTS-SERVICE.G,17/02/2016,100.00
HOUSING CAPITAL & ASSET MANAGEMENT,Legal Services-Other,HMCOURTS-SERVICE.G,17/02/2016,100.00
HOUSING CAPITAL & ASSET MANAGEMENT,Legal Services-Other,HMCOURTS-SERVICE.G,17/02/2016,340.00
HOUSING CAPITAL & ASSET MANAGEMENT,Legal Services-Other,HMCOURTS-SERVICE.G,17/02/2016,160.00
BALANCE SHEET,VAT,GL-ASSESMENT.CO.UK,18/02/2016,29.09
BALANCE SHEET,VAT,PEARSON ED LTD,18/02/2016,76.90
BALANCE SHEET,VAT,COIN STREET COMMUNITY,18/02/2016,282.00
BALANCE SHEET,VAT,HOOTSUITE MEDIA INC.,18/02/2016,0.00
BALANCE SHEET,VAT,IN-TEND,18/02/2016,0.00
BALANCE SHEET,VAT,PAYPAL *AWARDSLONDO,18/02/2016,29.75
BALANCE SHEET,VAT,AH MEDIA LTD,18/02/2016,334.00
BALANCE SHEET,VAT,CNN TRAINING CONSULTAN,18/02/2016,18.33
BALANCE SHEET,VAT,WWW.VIKING-DIRECT.CO.U,18/02/2016,0.58
YOUTH OFFENDING SERVICE,Healthcare Equipment,GL-ASSESMENT.CO.UK,18/02/2016,145.46
YOUTH OFFENDING SERVICE,Healthcare Equipment,PEARSON ED LTD,18/02/2016,384.50
LIBRARIES & ARCHIVE,Books/Publications/Resources,Amazon UK Marketplace,18/02/2016,52.85
LIBRARIES & ARCHIVE,Travel/Subsistence,HSBC/BRIXTON RD E2,18/02/2016,20.00
SCHOOL & EDUCATION IMPROVEMENT SERVICE,Education-Library Books,WP-OPTIMUS PUBLISH,18/02/2016,49.50
SCHOOL & EDUCATION IMPROVEMENT SERVICE,Facilities-Printing,Amazon UK Retail,18/02/2016,74.97
SCHOOL & EDUCATION IMPROVEMENT SERVICE,Domestic Goods-Other,Amazon UK Marketplace,18/02/2016,31.50
SCHOOL & EDUCATION IMPROVEMENT SERVICE,Domestic Goods-Other,Amazon UK Marketplace,18/02/2016,4.39
SCHOOL & EDUCATION IMPROVEMENT SERVICE,Facilities-Printing,Amazon UK Retail,18/02/2016,497.59
POLICY & COMMUNICATIONS,Books/Publications/Resources,PAYPAL *AWARDSLONDO,18/02/2016,148.75
POLICY & COMMUNICATIONS,Conference Expenses,COIN STREET COMMUNITY,18/02/2016,"1,410.00"
POLICY & COMMUNICATIONS,IT Services,HOOTSUITE MEDIA INC.,18/02/2016,5.15
POLICY & COMMUNICATIONS,Books/Publications/Resources,IN-TEND,18/02/2016,300.00
HUMAN RESOURCES & ORGANISATIONAL DEVELOPMENT (HRA),Education-Other,CNN TRAINING CONSULTAN,18/02/2016,91.67
HUMAN RESOURCES & ORGANISATIONAL DEVELOPMENT (HRA),Professional & Advisory Services,AH MEDIA LTD,18/02/2016,"1,674.00"
HUMAN RESOURCES & ORGANISATIONAL DEVELOPMENT (HRA),Stationery,WWW.VIKING-DIRECT.CO.U,18/02/2016,81.83
LIBRARIES & ARCHIVE,Travel/Subsistence,CASH ADVANCE FEE,19/02/2016,2.95
LIBRARIES & ARCHIVE,Education-Other,"Amazon Svcs Europe,SAR",19/02/2016,46.40
LIBRARIES & ARCHIVE,Education-Other,Amazon UK Marketplace,19/02/2016,1.80
LIBRARIES & ARCHIVE,Education-Other,LITERACYTRUST.ORG,19/02/2016,460.00
LIBRARIES & ARCHIVE,Education-Other,LITERACYTRUST.ORG,19/02/2016,460.00
LIBRARIES & ARCHIVE,Education-Library Books,Amazon UK Retail,19/02/2016,8.94
SCHOOL & EDUCATION IMPROVEMENT SERVICE,Facilities-Printing,Amazon UK Retail,19/02/2016,63.57
FINANCIAL PLANNING AND MANAGEMENT,Use of Public Transport,OYSTER AUTOTOPUP,19/02/2016,20.00
FINANCIAL PLANNING AND MANAGEMENT,Use of Public Transport,OYSTER AUTOTOPUP,19/02/2016,20.00
FINANCIAL PLANNING AND MANAGEMENT,Use of Public Transport,OYSTER AUTOTOPUP,19/02/2016,20.00
FINANCIAL PLANNING AND MANAGEMENT,Use of Public Transport,OYSTER AUTOTOPUP,19/02/2016,20.00
REVENUE & BENEFITS,Legal Services-Other,HMCOURTS-SERVICE.G,21/02/2016,"5,055.00"
REVENUE & BENEFITS,Travel/Subsistence,OYSTER AUTOTOPUP,21/02/2016,20.00
REVENUE & BENEFITS,Travel/Subsistence,OYSTER AUTOTOPUP,21/02/2016,20.00
REVENUE & BENEFITS,Travel/Subsistence,OYSTER AUTOTOPUP,21/02/2016,20.00
INTEGRATED DISABILITY,Catering Food & Drink,TESCO STORE 2764,22/02/2016,50.83
LIBRARIES & ARCHIVE,Domestic Goods-Other,Amazon UK Marketplace,22/02/2016,14.18
BALANCE SHEET,VAT,AO RETAIL LIMITED,23/02/2016,54.83
BALANCE SHEET,VAT,CURRYS ONLINE,23/02/2016,56.99
BALANCE SHEET,VAT,WWW.SOCITM.NET,23/02/2016,310.00
CHILDREN LOOKED AFTER,Domestic Goods-Other,ALLPAY MOTO (CALLPAY/IVR,23/02/2016,89.32
CHILDREN LOOKED AFTER,Furniture-Other,AO RETAIL LIMITED,23/02/2016,274.16
CHILDREN LOOKED AFTER,Furniture-Other,ARGOS RETAIL GROUP,23/02/2016,"1,356.72"
CHILDREN LOOKED AFTER,Furniture-Other,ARGOS RETAIL GROUP,23/02/2016,674.41
CHILDREN LOOKED AFTER,Furniture-Other,ASDA 4387,23/02/2016,47.95
CHILDREN LOOKED AFTER,Furniture-Other,CURRYS ONLINE,23/02/2016,282.99
CHILDREN LOOKED AFTER,Furniture-Other,WORLDSTORES LTD,23/02/2016,220.96
QUALITY ASSURANCE & PERFORMANCE,Travel/Subsistence,GOV.UK/DART-CHARGE,23/02/2016,5.00
QUALITY ASSURANCE & PERFORMANCE,Travel/Subsistence,OYSTER AUTOTOPUP,23/02/2016,40.00
QUALITY ASSURANCE & PERFORMANCE,Travel/Subsistence,OYSTER AUTOTOPUP,23/02/2016,40.00
QUALITY ASSURANCE & PERFORMANCE,Travel/Subsistence,VIRGINTRAINSEC SERVCS,23/02/2016,96.10
QUALITY ASSURANCE & PERFORMANCE,Travel/Subsistence,VIRGINTRAINSEC SERVCS,23/02/2016,25.90
QUALITY ASSURANCE & PERFORMANCE,Travel/Subsistence,VIRGINTRAINSEC SERVCS,23/02/2016,69.30
QUALITY ASSURANCE & PERFORMANCE,Travel/Subsistence,VIRGINTRAINSEC SERVCS,23/02/2016,21.30
QUALITY ASSURANCE & PERFORMANCE,Travel/Subsistence,VIRGINTRAINSEC SERVCS,23/02/2016,100.80
LIBRARIES & ARCHIVE,Education-Library Books,Amazon UK Retail,23/02/2016,61.91
PROPERTY & FINANCIAL TRANSACTION SERVICES,Professional & Advisory Services,WWW.SOCITM.NET,23/02/2016,"1,550.00"
FINANCIAL PLANNING AND MANAGEMENT,Use of Public Transport,LUL TICKET MACHINE,23/02/2016,30.00
INTEGRATED DISABILITY,Travel/Subsistence,NEWS AT NINE,24/02/2016,250.00
BALANCE SHEET,VAT,NATIONBUILDER,24/02/2016,0.00
BALANCE SHEET,VAT,PANTHEON,24/02/2016,0.00
BALANCE SHEET,VAT,NEWS AT NINE,24/02/2016,0.00
LIBRARIES & ARCHIVE,Catering Food & Drink,CASH ADVANCE FEE,24/02/2016,5.90
LIBRARIES & ARCHIVE,Catering Food & Drink,NATWEST BANK /,24/02/2016,200.00
LIBRARIES & ARCHIVE,Catering Food & Drink,TESCO STORES 6791,24/02/2016,4.07
FINANCIAL PLANNING AND MANAGEMENT,Conference Expenses,REDACTIVE,24/02/2016,534.00
POLICY & COMMUNICATIONS,IT Services,NATIONBUILDER,24/02/2016,36.35
POLICY & COMMUNICATIONS,IT Services,PANTHEON,24/02/2016,18.07
HOUSING CAPITAL & ASSET MANAGEMENT,Legal Services-Other,HMCOURTS-SERVICE.G,24/02/2016,220.00
PUBLIC HEALTH - ADULTS,Conference Expenses,WWW.CONSERVATIVEPART.C,25/02/2016,200.00
PUBLIC HEALTH - ADULTS,Professional subscriptions,COPYRIGHT WITNESS LTD,25/02/2016,65.00
PUBLIC HEALTH - ADULTS,Professional subscriptions,THE INTELLECTUAL PROPERTY,25/02/2016,220.00
BALANCE SHEET,VAT,3 WISE MONKEYS SERVICES,25/02/2016,17.75
BALANCE SHEET,VAT,ARGOS RETAIL GROUP,25/02/2016,21.50
BALANCE SHEET,VAT,PEARSON ED LTD,25/02/2016,31.60
BALANCE SHEET,VAT,WWW.GREATART.CO.UK,25/02/2016,6.95
BALANCE SHEET,VAT,WWW.INCENTIVEPLUS.CO.U,25/02/2016,51.12
BALANCE SHEET,VAT,AO RETAIL LIMITED,25/02/2016,147.83
BALANCE SHEET,VAT,AO RETAIL LIMITED,25/02/2016,211.83
BALANCE SHEET,VAT,CURRYS ONLINE,25/02/2016,38.17
BALANCE SHEET,VAT,CURRYS ONLINE,25/02/2016,60.00
BALANCE SHEET,VAT,IKEA ONLINE,25/02/2016,45.42
BALANCE SHEET,VAT,IKEA ONLINE,25/02/2016,88.16
BALANCE SHEET,VAT,Amazon UK Retail,25/02/2016,4.38
BALANCE SHEET,VAT,HALFORDS 0716,25/02/2016,10.01
CHILDREN LOOKED AFTER,Building-Timber,B&Q DIRECT,25/02/2016,57.00
CHILDREN LOOKED AFTER,Building-Timber,HOMEBASE LTD,25/02/2016,246.93
CHILDREN LOOKED AFTER,Domestic Goods-Other,AO RETAIL LIMITED,25/02/2016,739.16
CHILDREN LOOKED AFTER,Domestic Goods-Other,AO RETAIL LIMITED,25/02/2016,"1,059.16"
CHILDREN LOOKED AFTER,Domestic Goods-Other,AO RETAIL LIMITED,25/02/2016,79.99
CHILDREN LOOKED AFTER,Domestic Goods-Other,ARGOS RETAIL GROUP,25/02/2016,345.76
CHILDREN LOOKED AFTER,Domestic Goods-Other,ARGOS RETAIL GROUP,25/02/2016,208.93
CHILDREN LOOKED AFTER,Domestic Goods-Other,CURRYS ONLINE,25/02/2016,190.83
CHILDREN LOOKED AFTER,Domestic Goods-Other,CURRYS ONLINE,25/02/2016,300.00
CHILDREN LOOKED AFTER,Financial Services,HM PASSPORT OFFICE,25/02/2016,75.50
CHILDREN LOOKED AFTER,Furniture-Domestic Furniture,BRIXTON FURNITURE CENT,25/02/2016,310.00
CHILDREN LOOKED AFTER,Furniture-Domestic Furniture,IKEA ONLINE,25/02/2016,227.08
CHILDREN LOOKED AFTER,Furniture-Domestic Furniture,IKEA ONLINE,25/02/2016,266.00
CHILDREN LOOKED AFTER,Furniture-Domestic Furniture,IKEA ONLINE,25/02/2016,440.84
CHILDREN LOOKED AFTER,Furniture-Domestic Furniture,WORLDSTORES LTD,25/02/2016,220.96
CHILDREN LOOKED AFTER,Furniture-Domestic Furniture,WORLDSTORES LTD,25/02/2016,-220.96
YOUTH OFFENDING SERVICE,Books/Publications/Resources,Amazon UK Retail,25/02/2016,122.46
YOUTH OFFENDING SERVICE,Books/Publications/Resources,PEARSON ED LTD,25/02/2016,158.00
YOUTH OFFENDING SERVICE,Books/Publications/Resources,WWW.INCENTIVEPLUS.CO.U,25/02/2016,516.16
YOUTH OFFENDING SERVICE,Domestic Goods-Other,3 WISE MONKEYS SERVICES,25/02/2016,88.72
YOUTH OFFENDING SERVICE,Domestic Goods-Other,ARGOS RETAIL GROUP,25/02/2016,111.45
YOUTH OFFENDING SERVICE,Education-Arts/Crafts,WWW.GREATART.CO.UK,25/02/2016,34.75
LIBRARIES & ARCHIVE,Education-Library Books,Amazon UK Marketplace,25/02/2016,10.08
LIBRARIES & ARCHIVE,Education-Library Books,Amazon UK Marketplace,25/02/2016,15.58
LIBRARIES & ARCHIVE,Education-Library Books,Amazon UK Marketplace,25/02/2016,2.81
LIBRARIES & ARCHIVE,Education-Library Books,Amazon UK Marketplace,25/02/2016,13.25
LIBRARIES & ARCHIVE,Education-Library Books,Amazon UK Marketplace,25/02/2016,5.78
LIBRARIES & ARCHIVE,Education-Library Books,Amazon UK Marketplace,25/02/2016,12.69
LIBRARIES & ARCHIVE,Education-Library Books,Amazon UK Retail,25/02/2016,7.00
LIBRARIES & ARCHIVE,Education-Library Books,Amazon UK Retail,25/02/2016,14.44
LIBRARIES & ARCHIVE,Education-Other,Amazon UK Retail,25/02/2016,21.90
LIBRARIES & ARCHIVE,Education-Other,HALFORDS 0716,25/02/2016,50.00
FINANCIAL PLANNING AND MANAGEMENT,Financial Services,LAND REGISTRY,25/02/2016,6.00
FINANCIAL PLANNING AND MANAGEMENT,Financial Services,LAND REGISTRY,25/02/2016,3.00
FINANCIAL PLANNING AND MANAGEMENT,Financial Services,LAND REGISTRY,25/02/2016,3.00
FINANCIAL PLANNING AND MANAGEMENT,Financial Services,LAND REGISTRY,25/02/2016,6.00
FINANCIAL PLANNING AND MANAGEMENT,Financial Services,LAND REGISTRY,25/02/2016,9.00
ENVIRONMENT,Books/Publications/Resources,LAND REGISTRY,25/02/2016,18.00
ENVIRONMENT,Books/Publications/Resources,LAND REGISTRY,25/02/2016,6.00
ENVIRONMENT,Books/Publications/Resources,LAND REGISTRY,25/02/2016,30.00
ENVIRONMENT,Stationery,WH SMITH,25/02/2016,66.22
ENVIRONMENT,Use of Public Transport,LUL TICKET MACHINE,25/02/2016,60.00
ENVIRONMENT,Use of Public Transport,LUL TICKET MACHINE,25/02/2016,30.00
SPECIAL EDUCATIONAL NEEDS,Domestic Goods-Other,Amazon UK Marketplace,26/02/2016,57.99
INTERNAL AUDIT,Financial Services,GRO HM PASSPORT OFFICE,26/02/2016,9.25
INTERNAL AUDIT,Travel/Subsistence,OYSTER AUTOTOPUP,26/02/2016,40.00
INTERNAL AUDIT,Travel/Subsistence,OYSTER AUTOTOPUP,26/02/2016,20.00
INTERNAL AUDIT,Travel/Subsistence,OYSTER AUTOTOPUP,26/02/2016,20.00
INTERNAL AUDIT,Travel/Subsistence,OYSTER AUTOTOPUP,26/02/2016,20.00
INTERNAL AUDIT,Travel/Subsistence,OYSTER AUTOTOPUP,26/02/2016,40.00
INTERNAL AUDIT,Travel/Subsistence,OYSTER AUTOTOPUP,26/02/2016,40.00
INTERNAL AUDIT,Travel/Subsistence,OYSTER AUTOTOPUP,26/02/2016,20.00
INTERNAL AUDIT,Travel/Subsistence,OYSTER AUTOTOPUP,26/02/2016,20.00
HUMAN RESOURCES & ORGANISATIONAL DEVELOPMENT,Travel/Subsistence,TRAINLINE,26/02/2016,13.01
LIBRARIES & ARCHIVE,Travel/Subsistence,OYSTER BUS AUTOTOP,28/02/2016,40.00
BALANCE SHEET,VAT,FACEBOOK MABNS86S62,29/02/2016,0.00
CHILDREN SAFEGUARDING & ASSESSMENTS,Financial Services,GRO HM PASSPORT OFFICE,29/02/2016,9.25
FINANCIAL PLANNING AND MANAGEMENT,Travel/Subsistence,lastminute com LCY EDI 09,29/02/2016,229.53
POLICY & COMMUNICATIONS,Facilities-Advertising,FACEBOOK MABNS86S62,29/02/2016,30.49
BALANCE SHEET,VAT,AO RETAIL LIMITED,01/03/2016,106.33
CHILDREN LOOKED AFTER,Building-Timber,B&Q DIRECT,01/03/2016,234.00
CHILDREN LOOKED AFTER,Domestic Goods-Other,AO RETAIL LIMITED,01/03/2016,531.67
CHILDREN LOOKED AFTER,Domestic Goods-Other,ARGOS LTD,01/03/2016,44.88
CHILDREN LOOKED AFTER,Domestic Goods-Other,ARGOS RETAIL GROUP,01/03/2016,181.91
CHILDREN LOOKED AFTER,Domestic Goods-Other,ARGOS RETAIL GROUP,01/03/2016,108.94
CHILDREN LOOKED AFTER,Domestic Goods-Other,ARGOS RETAIL GROUP,01/03/2016,58.40
CHILDREN LOOKED AFTER,Domestic Goods-Other,ARGOS RETAIL GROUP,01/03/2016,24.99
CHILDREN LOOKED AFTER,Domestic Goods-Other,CURRYS SUPERSTORE,01/03/2016,80.00
CHILDREN LOOKED AFTER,Furniture-Domestic Furniture,IKEA ONLINE,01/03/2016,-210.00
CHILDREN LOOKED AFTER,Vehicle Maintenance,WWW.COMAPRETHEMANANDTH,01/03/2016,48.99
HOUSING REGENERATION (HRA),Conference Expenses,ULI,01/03/2016,90.00
BALANCE SHEET,VAT,Amazon UK Retail,02/03/2016,3.97
BALANCE SHEET,VAT,AO RETAIL LIMITED,02/03/2016,34.83
BALANCE SHEET,VAT,CURRYS ONLINE,02/03/2016,25.00
BALANCE SHEET,VAT,WAYFAIR.CO.UK,02/03/2016,59.83
BALANCE SHEET,VAT,DEMCO EUROPE,02/03/2016,11.59
CHILDREN LOOKED AFTER,Domestic Goods-Other,ARGOS RETAIL GROUP,02/03/2016,358.91
CHILDREN LOOKED AFTER,Haulage,PARCELFORCE WORLDWIDE,02/03/2016,23.14
CHILDREN LOOKED AFTER,Accommodation,PREMIER INN44012620,02/03/2016,340.00
CHILDREN LOOKED AFTER,Domestic Goods-Other,AO RETAIL LIMITED,02/03/2016,174.17
CHILDREN LOOKED AFTER,Domestic Goods-Other,CURRYS ONLINE,02/03/2016,124.99
CHILDREN LOOKED AFTER,Facilities-Market Research,WAYFAIR.CO.UK,02/03/2016,299.15
EARLY YEARS AND PARENTING,IT Office Equipment,Amazon UK Retail,02/03/2016,19.83
LIBRARIES & ARCHIVE,Catering Food & Drink,ATM BARCLAYS BANK PLC,02/03/2016,200.00
LIBRARIES & ARCHIVE,Catering Food & Drink,CASH ADVANCE FEE,02/03/2016,5.90
LIBRARIES & ARCHIVE,Travel/Subsistence,OYSTER AUTOTOPUP,02/03/2016,20.00
LIBRARIES & ARCHIVE,Education-Arts/Crafts,Amazon UK Retail,02/03/2016,8.02
LIBRARIES & ARCHIVE,Furniture-Office Furniture,DEMCO EUROPE,02/03/2016,57.95
FINANCIAL PLANNING AND MANAGEMENT,Use of Public Transport,NEW SOUTHERN RAILW,02/03/2016,30.00
SENIOR MANAGEMENT - NEIGHBOURHOODS & GROWTH,Catering Food & Drink,Amazon UK Retail,02/03/2016,63.38
MENTAL HEALTH,Accommodation,TRAVELODGE AGENT,03/03/2016,491.75
MENTAL HEALTH,Accommodation,TRAVELODGE AGENT,03/03/2016,381.00
MENTAL HEALTH,Accommodation,TRAVELODGE AGENT,03/03/2016,410.45
MENTAL HEALTH,Accommodation,TRAVELODGE AGENT,03/03/2016,325.58
MENTAL HEALTH,Legal Services-Other,HMCOURTS-SERVICE.G,03/03/2016,20.00
MENTAL HEALTH,Legal Services-Other,HMCOURTS-SERVICE.G,03/03/2016,20.00
MENTAL HEALTH,Legal Services-Other,HMCOURTS-SERVICE.G,03/03/2016,40.00
MENTAL HEALTH,Legal Services-Other,HMCOURTS-SERVICE.G,03/03/2016,40.00
MENTAL HEALTH,Legal Services-Other,HMCOURTS-SERVICE.G,03/03/2016,40.00
MENTAL HEALTH,Legal Services-Other,HMCOURTS-SERVICE.G,03/03/2016,60.00
MENTAL HEALTH,Legal Services-Other,HMCOURTS-SERVICE.G,03/03/2016,20.00
MENTAL HEALTH,Travel/Subsistence,LONDON & SOUTH EAS,03/03/2016,6.20
MENTAL HEALTH,Travel/Subsistence,LONDON & SOUTH EAS,03/03/2016,34.10
MENTAL HEALTH,Travel/Subsistence,LONDON & SOUTH EAS,03/03/2016,34.50
MENTAL HEALTH,Travel/Subsistence,OYSTER AUTOTOPUP,03/03/2016,20.00
MENTAL HEALTH,Travel/Subsistence,OYSTER AUTOTOPUP,03/03/2016,20.00
OTHER - ADULTS,Catering Food & Drink,TESCO STORES 5999,03/03/2016,69.01
OTHER - ADULTS,Facilities-Printing,Amazon UK Retail,03/03/2016,66.34
BALANCE SHEET,VAT,TRAVELODGE AGENT,03/03/2016,0.00
BALANCE SHEET,VAT,TRAVELODGE AGENT,03/03/2016,71.75
BALANCE SHEET,VAT,TRAVELODGE AGENT,03/03/2016,76.75
BALANCE SHEET,VAT,TRAVELODGE AGENT,03/03/2016,60.67
CHILDREN LOOKED AFTER,Domestic Goods-Other,ARGOS,03/03/2016,29.99
CHILDREN LOOKED AFTER,Domestic Goods-Other,ARGOS RETAIL GROUP,03/03/2016,267.22
LIBRARIES & ARCHIVE,Catering Food & Drink,CASH ADVANCE FEE,03/03/2016,2.95
LIBRARIES & ARCHIVE,Catering Food & Drink,HSBC/BRIXTON RD I1,03/03/2016,100.00
LIBRARIES & ARCHIVE,Education-Library Books,Amazon UK Marketplace,03/03/2016,3.79
LIBRARIES & ARCHIVE,Education-Library Books,Amazon UK Marketplace,03/03/2016,20.56
LIBRARIES & ARCHIVE,Education-Library Books,Amazon UK Marketplace,03/03/2016,22.20
LIBRARIES & ARCHIVE,Education-Library Books,Amazon UK Retail,03/03/2016,3.99
LIBRARIES & ARCHIVE,Education-Library Books,Amazon UK Marketplace,03/03/2016,20.49
REVENUE & BENEFITS,Legal Services-Other,HMCOURTS-SERVICE.G,03/03/2016,"5,100.00"
HUMAN RESOURCES & ORGANISATIONAL DEVELOPMENT,Travel/Subsistence,TRAINLINE,03/03/2016,103.94
NEIGHBOURHOODS,Books/Publications/Resources,Amazon UK Marketplace,03/03/2016,14.89
NEIGHBOURHOODS,Books/Publications/Resources,Amazon UK Marketplace,03/03/2016,20.89
NEIGHBOURHOODS,Books/Publications/Resources,Amazon UK Marketplace,03/03/2016,50.97
NEIGHBOURHOODS,Books/Publications/Resources,Amazon UK Retail,03/03/2016,9.99
NEIGHBOURHOODS,Books/Publications/Resources,ELGATE PRODUCTS LTD,03/03/2016,126.48
NEIGHBOURHOODS,Books/Publications/Resources,WILKO.COM,03/03/2016,14.00
NEIGHBOURHOODS,Stationery,MAYDAY TRAVEL LTD,03/03/2016,0.00
NEIGHBOURHOODS,Stationery,WWW.VIKING-DIRECT.CO.U,03/03/2016,36.56
NEIGHBOURHOODS,Stationery,WWW.VIKING-DIRECT.CO.U,03/03/2016,-36.56
NEIGHBOURHOODS,Professional subscriptions,SOLACE LTD,03/03/2016,203.00
HOUSING MANAGEMENT SERVICES,Use of Public Transport,LUL TICKET MACHINE,03/03/2016,50.00
HOUSING MANAGEMENT SERVICES,Use of Public Transport,LUL TICKET MACHINE,03/03/2016,50.00
HOUSING CAPITAL & ASSET MANAGEMENT,HMRC Fees,HMCOURTS-SERVICE.G,03/03/2016,500.00
INTEGRATED DISABILITY,Financial Services,PO VAUXHALL STREET 5179,04/03/2016,400.00
BALANCE SHEET,VAT,Amazon UK Marketplace,04/03/2016,4.89
CHILDREN LOOKED AFTER,Domestic Goods-Other,Amazon UK Marketplace,04/03/2016,24.42
CHILDREN SAFEGUARDING & ASSESSMENTS,Domestic Goods-Other,ARGOS DIRECT,04/03/2016,107.92
CHILDREN SAFEGUARDING & ASSESSMENTS,Domestic Goods-Other,ARGOS DIRECT,04/03/2016,350.91
LIBRARIES & ARCHIVE,Education-Library Books,Amazon UK Marketplace,04/03/2016,13.50
LIBRARIES & ARCHIVE,Education-Library Books,Amazon UK Marketplace,04/03/2016,3.87
LIBRARIES & ARCHIVE,Education-Library Books,Amazon UK Retail,04/03/2016,53.42
LIBRARIES & ARCHIVE,Education-Other,Amazon UK Marketplace,04/03/2016,89.97
"PLANNING, TRANSPORT & DEVELOPMENT",Travel/Subsistence,LUL TICKET MACHINE,04/03/2016,60.00
"PLANNING, TRANSPORT & DEVELOPMENT",Travel/Subsistence,LUL TICKET MACHINE,04/03/2016,60.00
"PLANNING, TRANSPORT & DEVELOPMENT",Travel/Subsistence,LUL TICKET MACHINE,04/03/2016,50.00
"PLANNING, TRANSPORT & DEVELOPMENT",Travel/Subsistence,LUL TICKET MACHINE,04/03/2016,60.00
"PLANNING, TRANSPORT & DEVELOPMENT",Travel/Subsistence,LUL TICKET MACHINE,04/03/2016,110.00
"PLANNING, TRANSPORT & DEVELOPMENT",Travel/Subsistence,SELFSERVE TICKET,04/03/2016,50.00
HOUSING CAPITAL & ASSET MANAGEMENT,HMRC Fees,BRITISH GAS BUSINE,04/03/2016,383.29
SCHOOL & EDUCATION IMPROVEMENT SERVICE,Domestic Goods-Other,Amazon UK Marketplace,05/03/2016,21.98
FINANCIAL PLANNING AND MANAGEMENT,Travel/Subsistence,OYSTER AUTOTOPUP,06/03/2016,20.00
INTEGRATED DISABILITY,Catering Food & Drink,TESCO STORE 2764,07/03/2016,8.00
INTEGRATED DISABILITY,Catering Food & Drink,TESCO STORE 2764,07/03/2016,41.57
INTEGRATED DISABILITY,Financial Services,CASH ADVANCE FEE,07/03/2016,11.80
LIBRARIES & ARCHIVE,Education-Library Books,Amazon UK Marketplace,07/03/2016,6.79
LIBRARIES & ARCHIVE,Education-Library Books,Amazon UK Retail,07/03/2016,11.89
LIBRARIES & ARCHIVE,Education-Library Books,Amazon UK Retail,07/03/2016,7.64
LIBRARIES & ARCHIVE,Education-Other,ECONOMIST SUBSCRIPTION,07/03/2016,126.00
LIBRARIES & ARCHIVE,Education-Library Books,"Amazon Svcs Europe,SAR",08/03/2016,35.58
LIBRARIES & ARCHIVE,Education-Library Books,Amazon UK Retail,08/03/2016,27.19
CORPORATE AFFAIRS,Legal Services-Other,HMCTS UPPER TRIB,08/03/2016,80.00
CORPORATE AFFAIRS,Legal Services-Other,HMCTS UPPER TRIB,08/03/2016,80.00
CORPORATE AFFAIRS,Stationery,Amazon UK Marketplace,08/03/2016,-13.95
CORPORATE AFFAIRS,Travel/Subsistence,LUL TICKET MACHINE,08/03/2016,50.00
CORPORATE AFFAIRS,Travel/Subsistence,LUL TICKET MACHINE,08/03/2016,100.00
CORPORATE AFFAIRS,Travel/Subsistence,LUL TICKET MACHINE,08/03/2016,50.00
CORPORATE AFFAIRS,Travel/Subsistence,VIRGINTRAINS.CO.UK,08/03/2016,113.10
SENIOR MANAGEMENT - NEIGHBOURHOODS & GROWTH,Facilities-Printing,Amazon UK Retail,08/03/2016,126.76
DAY CENTRES,Travel/Subsistence,OYSTER BUS AUTOTOP,09/03/2016,20.00
OTHER - ADULTS,Domestic Goods-Other,ARGOS RETAIL GROUP,09/03/2016,243.93
OTHER - ADULTS,Domestic Goods-Other,Amazon UK Marketplace,09/03/2016,51.04
OTHER - ADULTS,Domestic Goods-Other,Amazon UK Marketplace,09/03/2016,29.07
OTHER - ADULTS,Education-Other,MORLEY COLLEGE,09/03/2016,200.00
OTHER - ADULTS,IT Software,CITY LIT,09/03/2016,172.00
BALANCE SHEET,VAT,Amazon UK Retail,09/03/2016,2.79
BALANCE SHEET,VAT,FW EVANS CYCLES,09/03/2016,2.50
QUALITY ASSURANCE & PERFORMANCE,Domestic Goods-Other,Amazon UK Marketplace,09/03/2016,39.12
EARLY YEARS QUALITY IMPROVEMENT,Financial Services-Grants,PACEY COMMERCIAL SERVI,09/03/2016,80.00
LIBRARIES & ARCHIVE,Education-Other,FW EVANS CYCLES,09/03/2016,12.49
LIBRARIES & ARCHIVE,Education-Other,SUPREME STORES,09/03/2016,207.99
PROPERTY & FINANCIAL TRANSACTION SERVICES,Legal Services-Other,TASK ENFORCEMENT,09/03/2016,482.00
REVENUE & BENEFITS,IT Office Equipment,Amazon UK Retail,09/03/2016,13.95
HOUSING MANAGEMENT - REPAIRS & MAINTENANCE,Charges and Penalties,TOTAL GAS & POWER,09/03/2016,980.00
INTEGRATED DISABILITY,Catering Food & Drink,TESCO STORE 2764,10/03/2016,25.60
INTEGRATED DISABILITY,Domestic Goods-Other,TESCO STORE 2764,10/03/2016,6.00
OLDER PEOPLE,Catering Food & Drink,JS ONLINE GROCERY,10/03/2016,218.30
BALANCE SHEET,VAT,PEARSON ED LTD,10/03/2016,29.00
YOUTH OFFENDING SERVICE,Books/Publications/Resources,Amazon UK Retail,10/03/2016,28.49
YOUTH OFFENDING SERVICE,Books/Publications/Resources,PEARSON ED LTD,10/03/2016,145.00
LIBRARIES & ARCHIVE,Catering Food & Drink,SAINSBURY'S S/MKT,10/03/2016,15.99
BUSINESS TRANSFORMATION,Professional subscriptions,WWW.ICO.GOV.UK,10/03/2016,500.00
BALANCE SHEET,VAT,HOOTSUITE MEDIA INC.,11/03/2016,0.00
BALANCE SHEET,VAT,NATIONBUILDER,11/03/2016,0.00
BALANCE SHEET,VAT,S LONDON DECORTORS,11/03/2016,9.21
QUALITY ASSURANCE & PERFORMANCE,Accommodation,MARRIOTT,11/03/2016,684.00
QUALITY ASSURANCE & PERFORMANCE,Childcare Services,LOVE2SHOP.CO.UK,11/03/2016,269.25
QUALITY ASSURANCE & PERFORMANCE,Travel/Subsistence,OYSTER AUTOTOPUP,11/03/2016,40.00
QUALITY ASSURANCE & PERFORMANCE,Travel/Subsistence,OYSTER AUTOTOPUP,11/03/2016,40.00
QUALITY ASSURANCE & PERFORMANCE,Travel/Subsistence,OYSTER BUS AUTOTOP,11/03/2016,40.00
QUALITY ASSURANCE & PERFORMANCE,Travel/Subsistence,VIRGINTRAINSEC SERVCS,11/03/2016,28.30
QUALITY ASSURANCE & PERFORMANCE,Travel/Subsistence,VIRGINTRAINSEC SERVCS,11/03/2016,16.60
QUALITY ASSURANCE & PERFORMANCE,Travel/Subsistence,VIRGINTRAINSEC SERVCS,11/03/2016,26.40
REVENUE & BENEFITS,Travel/Subsistence,OYSTER AUTOTOPUP,11/03/2016,20.00
POLICY & COMMUNICATIONS,IT Services,HOOTSUITE MEDIA INC.,11/03/2016,5.22
POLICY & COMMUNICATIONS,IT Services,NATIONBUILDER,11/03/2016,35.84
HOUSING MANAGEMENT SERVICES,Building-Paint,S LONDON DECORTORS,11/03/2016,46.06
HOUSING MANAGEMENT SERVICES,Travel/Subsistence,LUL TICKET MACHINE,11/03/2016,100.00
HOUSING MANAGEMENT SERVICES,Travel/Subsistence,LUL TICKET MACHINE,11/03/2016,100.00
HOMES & COMMUNITIES (HRA),Catering Food & Drink,SAN MARINO,11/03/2016,146.00
BALANCE SHEET,VAT,FASTHOSTS INTERNET,12/03/2016,4.40
POLICY & COMMUNICATIONS,Catering Food & Drink,TESCO STORES-2143,12/03/2016,9.00
TENANT MANAGEMENT ORGANISATIONS,IT Services,FASTHOSTS INTERNET,12/03/2016,21.98
BALANCE SHEET,VAT,SURVEYMONKEY.COM,13/03/2016,4.33
REVENUE & BENEFITS,IT Services,SURVEYMONKEY.COM,13/03/2016,21.67
INTEGRATED DISABILITY,Accommodation,TRAVELODGE AGENT,14/03/2016,92.83
INTEGRATED DISABILITY,Travel/Subsistence,EASYJET 000EQCR8CH,14/03/2016,106.06
BALANCE SHEET,VAT,TRAVELODGE AGENT,14/03/2016,18.57
BALANCE SHEET,VAT,TRFSA *THOMSONREUTERS,14/03/2016,47.40
CHILDREN SAFEGUARDING & ASSESSMENTS,Legal Services-General Support,FISHER MEREDITH,14/03/2016,499.00
LIBRARIES & ARCHIVE,Education-Library Books,TRFSA *THOMSONREUTERS,14/03/2016,237.00
LIBRARIES & ARCHIVE,Education-Library Books,Amazon UK Marketplace,14/03/2016,6.99
FINANCIAL PLANNING AND MANAGEMENT,Food/refreshment - meetings,TESCO STORES 5342,14/03/2016,7.23
FINANCIAL PLANNING AND MANAGEMENT,Use of Public Transport,NEW SOUTHERN RAILW,14/03/2016,30.00
POLICY & COMMUNICATIONS,Catering Food & Drink,SAN MARINO,14/03/2016,242.00
EDUCATION & MAJOR CAPITAL PROJECTS,Catering Food & Drink,SAINSBURYS S/MKTS,14/03/2016,40.05
EDUCATION & MAJOR CAPITAL PROJECTS,Domestic Goods-Other,Amazon UK Marketplace,14/03/2016,22.19
EDUCATION & MAJOR CAPITAL PROJECTS,Domestic Goods-Other,Amazon UK Marketplace,14/03/2016,31.71
EDUCATION & MAJOR CAPITAL PROJECTS,Domestic Goods-Other,Amazon UK Marketplace,14/03/2016,15.27
BALANCE SHEET,VAT,1&1 INTERNET LIMITED,15/03/2016,3.39
BALANCE SHEET,VAT,CRS ELECTRICAL SUPPLIE,15/03/2016,5.29
BALANCE SHEET,VAT,WWW.CHRONOS.LTD.UK,15/03/2016,14.00
EARLY YEARS AND PARENTING,IT Services,1&1 INTERNET LIMITED,15/03/2016,16.97
EARLY YEARS AND PARENTING,Travel/Subsistence,TRAINLINE,15/03/2016,96.90
LIBRARIES & ARCHIVE,Education-Other,WWW.CHRONOS.LTD.UK,15/03/2016,70.00
LIBRARIES & ARCHIVE,Education-Library Books,Amazon UK Marketplace,15/03/2016,10.87
LIBRARIES & ARCHIVE,Education-Library Books,Amazon UK Marketplace,15/03/2016,5.78
LIBRARIES & ARCHIVE,Education-Library Books,Amazon UK Marketplace,15/03/2016,63.44
LIBRARIES & ARCHIVE,Education-Library Books,Amazon UK Marketplace,15/03/2016,3.72
HOUSING MANAGEMENT SERVICES,Building-Electrical,CRS ELECTRICAL SUPPLIE,15/03/2016,26.46
HOUSING MANAGEMENT SERVICES,Building-Timber,B AND Q 1037,15/03/2016,131.57
DAY CENTRES,Financial Services,SAIN - BRIXTON,16/03/2016,200.00
INTEGRATED DISABILITY,Clothing-Other,TESCO STORE 3205,16/03/2016,96.00
INTEGRATED DISABILITY,Domestic Goods-Other,SUPERDRUG STORES PLC,16/03/2016,68.43
OTHER - ADULTS,Domestic Goods-Other,ARGOS RETAIL GROUP,16/03/2016,264.99
BALANCE SHEET,VAT,MBL SEMINARS,16/03/2016,24.00
BALANCE SHEET,VAT,WP-STAMPS DIRECT L,16/03/2016,5.49
BALANCE SHEET,VAT,WWW.COMPUTINGPLUS.CO.UK,16/03/2016,20.90
BALANCE SHEET,VAT,THE CONSORTIUM/WMS,16/03/2016,67.55
BALANCE SHEET,VAT,ISELECT CONSULTANCY,16/03/2016,55.00
BALANCE SHEET,VAT,KINGSHIELD PHARMACY,16/03/2016,2.02
BALANCE SHEET,VAT,EDUSENTIALS LIMITED,16/03/2016,16.00
LIBRARIES & ARCHIVE,Education-Toys,EDUSENTIALS LIMITED,16/03/2016,79.98
LIBRARIES & ARCHIVE,Catering Food & Drink,TESCO STORE 2143,16/03/2016,7.00
LIBRARIES & ARCHIVE,Education-Library Books,Amazon UK Marketplace,16/03/2016,15.77
LIBRARIES & ARCHIVE,Education-Library Books,Amazon UK Retail,16/03/2016,8.46
LIBRARIES & ARCHIVE,Education-Library Books,Amazon UK Retail,16/03/2016,9.47
LIBRARIES & ARCHIVE,Education-Library Books,Amazon UK Retail,16/03/2016,8.67
LIBRARIES & ARCHIVE,Education-Library Books,Amazon UK Retail,16/03/2016,11.13
LIBRARIES & ARCHIVE,Education-Library Books,Amazon UK Retail,16/03/2016,12.47
SCHOOL & EDUCATION IMPROVEMENT SERVICE,Facilities-Market Research,THE CONSORTIUM/WMS,16/03/2016,337.74
CORPORATE AFFAIRS,Legal Services-General Support,MBL SEMINARS,16/03/2016,120.00
CORPORATE AFFAIRS,Stationery,WP-STAMPS DIRECT L,16/03/2016,27.47
CORPORATE AFFAIRS,Stationery,WWW.COMPUTINGPLUS.CO.UK,16/03/2016,104.50
"PLANNING, TRANSPORT & DEVELOPMENT",Accommodation,HOTEL MAJESTIC TOSCANE,16/03/2016,79.22
"PLANNING, TRANSPORT & DEVELOPMENT",Accommodation,HOTEL MAJESTIC TOSCANE,16/03/2016,164.83
"PLANNING, TRANSPORT & DEVELOPMENT",Catering Food & Drink,BRIXTON NEWS,16/03/2016,35.60
"PLANNING, TRANSPORT & DEVELOPMENT",Catering Food & Drink,MARKS & SPENCER,16/03/2016,67.00
"PLANNING, TRANSPORT & DEVELOPMENT",Catering Food & Drink,RISTORANTE AGLI EREMI 527,16/03/2016,14.85
"PLANNING, TRANSPORT & DEVELOPMENT",Consultancy-Other,ISELECT CONSULTANCY,16/03/2016,275.00
"PLANNING, TRANSPORT & DEVELOPMENT",Cycles Purchase,THE LONDON CYCLE WORKS,16/03/2016,12.00
"PLANNING, TRANSPORT & DEVELOPMENT",Facilities-Market Research,Amazon Prime,16/03/2016,79.00
"PLANNING, TRANSPORT & DEVELOPMENT",Facilities-Market Research,Amazon Prime,16/03/2016,-79.00
"PLANNING, TRANSPORT & DEVELOPMENT",Healthcare-Drugs,KINGSHIELD PHARMACY,16/03/2016,20.38
"PLANNING, TRANSPORT & DEVELOPMENT",Travel/Subsistence,NTV VENEZIA ME 248,16/03/2016,11.23
"PLANNING, TRANSPORT & DEVELOPMENT",Travel/Subsistence,OYSTER AUTOTOPUP,16/03/2016,20.00
"PLANNING, TRANSPORT & DEVELOPMENT",Travel/Subsistence,PADOVA CENTRALE SELF SERV,16/03/2016,2.71
"PLANNING, TRANSPORT & DEVELOPMENT",Vehicle Hire,ATVO SPA,16/03/2016,11.98
DAY CENTRES,Financial Services,CASH ADVANCE FEE,17/03/2016,5.90
INTEGRATED DISABILITY,Accommodation,WWW.THECOACHHOUSE.CO.U,17/03/2016,75.00
MENTAL HEALTH,Accommodation,TRAVELODGE AGENT,17/03/2016,368.22
MENTAL HEALTH,Accommodation,TRAVELODGE AGENT,17/03/2016,456.30
MENTAL HEALTH,Accommodation,TRAVELODGE AGENT,17/03/2016,406.28
MENTAL HEALTH,Financial Services,SANTANDER PLC (UK),17/03/2016,100.00
MENTAL HEALTH,Financial Services-Banking,CASH ADVANCE FEE,17/03/2016,2.95
MENTAL HEALTH,Legal Services-Other,HMCOURTS-SERVICE.G,17/03/2016,40.00
MENTAL HEALTH,Legal Services-Other,HMCOURTS-SERVICE.G,17/03/2016,20.00
MENTAL HEALTH,Legal Services-Other,HMCOURTS-SERVICE.G,17/03/2016,20.00
MENTAL HEALTH,Mail Services-Postage,POST OFFICE COUNTER,17/03/2016,37.80
MENTAL HEALTH,Taxi Fares,WWW.ADDISONLEE.COM,17/03/2016,291.44
MENTAL HEALTH,Travel/Subsistence,LONDON & SOUTH EAS,17/03/2016,14.10
MENTAL HEALTH,Travel/Subsistence,OYSTER AUTOTOPUP,17/03/2016,20.00
BALANCE SHEET,VAT,CURRYS ONLINE,17/03/2016,66.67
BALANCE SHEET,VAT,IKEA ONLINE,17/03/2016,40.23
BALANCE SHEET,VAT,TRAVELODGE AGENT,17/03/2016,70.08
BALANCE SHEET,VAT,TRAVELODGE AGENT,17/03/2016,0.00
BALANCE SHEET,VAT,TRAVELODGE AGENT,17/03/2016,75.92
BALANCE SHEET,VAT,WWW.ADDISONLEE.COM,17/03/2016,58.29
BALANCE SHEET,VAT,WWW.THECOACHHOUSE.CO.U,17/03/2016,0.00
CHILDREN LOOKED AFTER,Catering Food & Drink,ASDA 4387,17/03/2016,-45.00
CHILDREN LOOKED AFTER,Domestic Goods-Other,AO RETAIL LIMITED,17/03/2016,-19.99
CHILDREN LOOKED AFTER,Domestic Goods-Other,ARGOS DIRECT,17/03/2016,-459.93
CHILDREN LOOKED AFTER,Domestic Goods-Other,ARGOS RETAIL GROUP,17/03/2016,189.94
CHILDREN LOOKED AFTER,Domestic Goods-Other,ARGOS RETAIL GROUP,17/03/2016,208.94
CHILDREN LOOKED AFTER,Domestic Goods-Other,ARGOS RETAIL GROUP,17/03/2016,"2,584.13"
CHILDREN LOOKED AFTER,Domestic Goods-Other,CURRYS ONLINE,17/03/2016,333.32
CHILDREN LOOKED AFTER,Facilities-Retail,www.groupon.co.uk,17/03/2016,238.99
CHILDREN LOOKED AFTER,Facilities-Storage,ACCESS SELF STORAG,17/03/2016,93.44
CHILDREN LOOKED AFTER,Financial Services,LAMBETH INTERNET PAYM,17/03/2016,237.18
CHILDREN LOOKED AFTER,Furniture-Domestic Furniture,IKEA ONLINE,17/03/2016,-39.00
CHILDREN LOOKED AFTER,Furniture-Domestic Furniture,IKEA ONLINE,17/03/2016,201.17
LIBRARIES & ARCHIVE,Education-Library Books,Amazon UK Marketplace,17/03/2016,1.99
LIBRARIES & ARCHIVE,Education-Library Books,"Amazon Svcs Europe,SAR",17/03/2016,19.18
LIBRARIES & ARCHIVE,Education-Library Books,"Amazon Svcs Europe,SAR",17/03/2016,5.02
LIBRARIES & ARCHIVE,Education-Library Books,Amazon UK Marketplace,17/03/2016,12.13
LIBRARIES & ARCHIVE,Education-Library Books,Amazon UK Marketplace,17/03/2016,14.36
LIBRARIES & ARCHIVE,Education-Library Books,Amazon UK Retail,17/03/2016,4.99
LIBRARIES & ARCHIVE,Education-Other,Amazon UK Marketplace,17/03/2016,37.74
SCHOOL & EDUCATION IMPROVEMENT SERVICE,Domestic Goods-Other,Amazon UK Marketplace,17/03/2016,102.99
SCHOOL & EDUCATION IMPROVEMENT SERVICE,Domestic Goods-Other,Amazon UK Marketplace,17/03/2016,104.89
SCHOOL & EDUCATION IMPROVEMENT SERVICE,Domestic Goods-Other,Amazon UK Marketplace,17/03/2016,7.31
SCHOOL & EDUCATION IMPROVEMENT SERVICE,Education-Library Books,"Amazon Svcs Europe,SAR",17/03/2016,34.80
SCHOOL & EDUCATION IMPROVEMENT SERVICE,Education-Library Books,Amazon UK Marketplace,17/03/2016,182.95
SCHOOL & EDUCATION IMPROVEMENT SERVICE,Facilities-Printing,Amazon UK Retail,17/03/2016,169.36
SCHOOL & EDUCATION IMPROVEMENT SERVICE,Facilities-Printing,Amazon UK Retail,17/03/2016,265.28
SCHOOL & EDUCATION IMPROVEMENT SERVICE,Domestic Goods-Other,Amazon UK Marketplace,17/03/2016,71.38
SCHOOL & EDUCATION IMPROVEMENT SERVICE,Education-Library Books,"Amazon Svcs Europe,SAR",17/03/2016,26.02
SCHOOL & EDUCATION IMPROVEMENT SERVICE,Education-Library Books,Amazon UK Marketplace,17/03/2016,27.44
LIBRARIES & ARCHIVE,Education-Arts/Crafts,Amazon UK Retail,18/03/2016,16.51
LIBRARIES & ARCHIVE,Education-Arts/Crafts,WWW.MADELEINELINDLEY.COM,18/03/2016,460.35
LIBRARIES & ARCHIVE,Education-Supplies,Amazon UK Marketplace,18/03/2016,131.25
LIBRARIES & ARCHIVE,Education-Musical Instruments,Amazon UK Marketplace,19/03/2016,13.30
LIBRARIES & ARCHIVE,Education-Musical Instruments,Amazon UK Retail,19/03/2016,39.90
LIBRARIES & ARCHIVE,Education-Toys,Amazon UK Marketplace,19/03/2016,21.70
LIBRARIES & ARCHIVE,Education-Musical Instruments,Amazon UK Marketplace,20/03/2016,24.00
LIBRARIES & ARCHIVE,Education-Musical Instruments,Amazon UK Marketplace,20/03/2016,34.90
INTEGRATED DISABILITY,Accommodation,TW & BRITTANNIA,21/03/2016,56.12
INTEGRATED DISABILITY,Catering Food & Drink,TESCO STORE 2764,21/03/2016,106.08
OLDER PEOPLE,Catering Food & Drink,ICELAND,21/03/2016,118.45
OLDER PEOPLE,Catering Food & Drink,MN WEST NORWOOD HALAL,21/03/2016,316.94
OTHER - ADULTS,Catering Food & Drink,TESCO STORES 5999,21/03/2016,90.00
BALANCE SHEET,VAT,TW & BRITTANNIA,21/03/2016,9.83
LIBRARIES & ARCHIVE,Education-Musical Instruments,Amazon UK Marketplace,21/03/2016,104.70
LIBRARIES & ARCHIVE,Education-Musical Instruments,Amazon UK Marketplace,21/03/2016,39.80
"WELFARE, EMPLOYMENT & SKILLS",Catering Food & Drink,HOC CRS,21/03/2016,-45.00
OLDER PEOPLE,Financial Services,ATM BARCLAYS BANK PLC,22/03/2016,250.00
OLDER PEOPLE,Financial Services,CASH ADVANCE FEE,22/03/2016,7.38
BALANCE SHEET,VAT,WP-INTERVIEWGOLD,22/03/2016,29.17
CHILDREN LOOKED AFTER,Travel/Subsistence,EASYJET 000EQDQMX7,22/03/2016,111.14
CHILDREN SAFEGUARDING & ASSESSMENTS,Financial Services,GRO HM PASSPORT OFFICE,22/03/2016,27.75
CHILDREN SAFEGUARDING & ASSESSMENTS,Financial Services,GRO HM PASSPORT OFFICE,22/03/2016,-9.25
LIBRARIES & ARCHIVE,Stationery,Amazon UK Marketplace,22/03/2016,7.45
LIBRARIES & ARCHIVE,Education-Musical Instruments,Amazon UK Marketplace,22/03/2016,21.43
LIBRARIES & ARCHIVE,Domestic Goods-Other,Amazon UK Marketplace,22/03/2016,2.15
LIBRARIES & ARCHIVE,Stationery,Amazon UK Marketplace,22/03/2016,7.70
CHIEF EXECUTIVE'S OFFICE,Catering Food & Drink,MARKS&SPENCER PLC SACA,22/03/2016,32.85
FINANCIAL PLANNING AND MANAGEMENT,Use of Public Transport,NEW SOUTHERN RAILW,22/03/2016,30.00
HUMAN RESOURCES & ORGANISATIONAL DEVELOPMENT,Professional & Advisory Services,WP-INTERVIEWGOLD,22/03/2016,145.83
INTEGRATED DISABILITY,Financial Services,BRIXTON FOOD AND WINE,23/03/2016,200.00
INTEGRATED DISABILITY,Domestic Goods-Other,CURRYS SUPERSTORE,23/03/2016,198.00
BALANCE SHEET,VAT,WWW.LOCAL.GOV.UK,23/03/2016,99.00
CHILDREN SAFEGUARDING & ASSESSMENTS,Financial Services,GRO HM PASSPORT OFFICE,23/03/2016,27.75
CHILDREN SAFEGUARDING & ASSESSMENTS,Financial Services,GRO HM PASSPORT OFFICE,23/03/2016,-9.25
CHILDREN SAFEGUARDING & ASSESSMENTS,Professional & Advisory Services,THE ACCOMMODATION SHOP,23/03/2016,"1,207.85"
ADVENTURE PLAYGROUNDS & ONE O'CLOCK CLUBS,Education-Supplies,ARGOS RETAIL GROUP,23/03/2016,65.57
CHIEF EXECUTIVE'S OFFICE,Consultancy-Business,WWW.LOCAL.GOV.UK,23/03/2016,495.00
SENIOR MANAGEMENT - NEIGHBOURHOODS & GROWTH,Domestic Goods-Other,Amazon UK Marketplace,23/03/2016,41.98
HOUSING CAPITAL & ASSET MANAGEMENT,Legal Services-Other,HMCOURTS-SERVICE.G,23/03/2016,240.00
HOUSING CAPITAL & ASSET MANAGEMENT,Legal Services-Other,HMCOURTS-SERVICE.G,23/03/2016,160.00
INTEGRATED DISABILITY,Financial Services,CASH ADVANCE FEE,24/03/2016,5.90
BALANCE SHEET,VAT,WWW.ONLINE-ERGONOMICS.,24/03/2016,34.15
EARLY YEARS AND PARENTING,Furniture-Office Furniture,WWW.ONLINE-ERGONOMICS.,24/03/2016,170.72
LIBRARIES & ARCHIVE,Education-Musical Instruments,Amazon UK Marketplace,24/03/2016,83.20
LIBRARIES & ARCHIVE,Stationery,Amazon UK Marketplace,24/03/2016,2.09
FINANCIAL PLANNING AND MANAGEMENT,Travel/Subsistence,OYSTER AUTOTOPUP,24/03/2016,40.00
BALANCE SHEET,VAT,BLACKS,25/03/2016,18.50
BALANCE SHEET,VAT,CARPHONE WAREHOUSE,25/03/2016,3.83
BALANCE SHEET,VAT,KENTON PARK SERVIC,25/03/2016,7.51
BALANCE SHEET,VAT,TomTom,25/03/2016,3.33
BALANCE SHEET,VAT,ZIPCAR,25/03/2016,5.53
BALANCE SHEET,VAT,ZIPCAR,25/03/2016,3.62
BALANCE SHEET,VAT,ZIPCAR,25/03/2016,12.42
BALANCE SHEET,VAT,ZIPCAR,25/03/2016,6.21
POLICY & COMMUNICATIONS,Catering Food & Drink,ASDA STORE 4536,25/03/2016,6.89
POLICY & COMMUNICATIONS,Catering Food & Drink,SAINSBURYS S/MKTS,25/03/2016,7.45
POLICY & COMMUNICATIONS,Clothing-Other,BLACKS,25/03/2016,92.50
POLICY & COMMUNICATIONS,Consultancy-Business,MAILCHIMP,25/03/2016,53.17
POLICY & COMMUNICATIONS,Consultancy-Business,MAILCHIMP,25/03/2016,70.09
POLICY & COMMUNICATIONS,Consultancy-Business,MAILCHIMP,25/03/2016,53.58
POLICY & COMMUNICATIONS,Domestic Goods-Other,Amazon UK Marketplace,25/03/2016,8.98
POLICY & COMMUNICATIONS,Domestic Goods-Other,TomTom,25/03/2016,16.66
POLICY & COMMUNICATIONS,Facilities-Market Research,Amazon Prime,25/03/2016,79.00
POLICY & COMMUNICATIONS,Facilities-Market Research,CTC*CONSTANTCONTACT.COM,25/03/2016,70.80
POLICY & COMMUNICATIONS,IT Services,DROPBOX*JQJDY36H3PRQ,25/03/2016,79.00
POLICY & COMMUNICATIONS,IT Software-Customised,WUFOO.COM,25/03/2016,24.00
POLICY & COMMUNICATIONS,IT Software-Customised,WUFOO.COM,25/03/2016,24.00
POLICY & COMMUNICATIONS,IT Software-Customised,WUFOO.COM,25/03/2016,12.00
POLICY & COMMUNICATIONS,Taxi Fares,PARKWAY TAXIS,25/03/2016,16.50
POLICY & COMMUNICATIONS,Taxi Fares,PARKWAY TAXIS,25/03/2016,26.50
POLICY & COMMUNICATIONS,Telecommunications,CARPHONE WAREHOUSE,25/03/2016,19.16
POLICY & COMMUNICATIONS,Travel/Subsistence,GWR BRISTOL TM TO,25/03/2016,32.50
POLICY & COMMUNICATIONS,Travel/Subsistence,HOTELS COM128373542222,25/03/2016,532.80
POLICY & COMMUNICATIONS,Travel/Subsistence,OYSTER AUTOTOPUP,25/03/2016,40.00
POLICY & COMMUNICATIONS,Travel/Subsistence,OYSTER AUTOTOPUP,25/03/2016,40.00
POLICY & COMMUNICATIONS,Travel/Subsistence,OYSTER AUTOTOPUP,25/03/2016,40.00
POLICY & COMMUNICATIONS,Travel/Subsistence,OYSTER AUTOTOPUP,25/03/2016,40.00
POLICY & COMMUNICATIONS,Travel/Subsistence,OYSTER AUTOTOPUP,25/03/2016,40.00
POLICY & COMMUNICATIONS,Travel/Subsistence,OYSTER AUTOTOPUP,25/03/2016,40.00
POLICY & COMMUNICATIONS,Travel/Subsistence,OYSTER AUTOTOPUP,25/03/2016,40.00
POLICY & COMMUNICATIONS,Travel/Subsistence,OYSTER BUS AUTOTOP,25/03/2016,40.00
POLICY & COMMUNICATIONS,Travel/Subsistence,OYSTER BUS AUTOTOP,25/03/2016,40.00
POLICY & COMMUNICATIONS,Travel/Subsistence,OYSTER BUS AUTOTOP,25/03/2016,40.00
POLICY & COMMUNICATIONS,Travel/Subsistence,OYSTER BUS AUTOTOP,25/03/2016,40.00
POLICY & COMMUNICATIONS,Travel/Subsistence,OYSTER BUS AUTOTOP,25/03/2016,40.00
POLICY & COMMUNICATIONS,Travel/Subsistence,ZIPCAR,25/03/2016,27.61
POLICY & COMMUNICATIONS,Travel/Subsistence,ZIPCAR,25/03/2016,18.13
POLICY & COMMUNICATIONS,Travel/Subsistence,ZIPCAR,25/03/2016,62.14
POLICY & COMMUNICATIONS,Travel/Subsistence,ZIPCAR,25/03/2016,31.07
POLICY & COMMUNICATIONS,Travel/Subsistence,ZIPCAR,25/03/2016,0.00
POLICY & COMMUNICATIONS,Travel/Subsistence,ZIPCAR,25/03/2016,6.21
POLICY & COMMUNICATIONS,Vehicle Fuel,KENTON PARK SERVIC,25/03/2016,37.53
"WELFARE, EMPLOYMENT & SKILLS",Domestic Goods-Other,Amazon UK Marketplace,25/03/2016,8.55
"WELFARE, EMPLOYMENT & SKILLS",Domestic Goods-Other,Amazon UK Marketplace,25/03/2016,-8.55
"WELFARE, EMPLOYMENT & SKILLS",Facilities-Printing,Amazon UK Retail,25/03/2016,15.32
"WELFARE, EMPLOYMENT & SKILLS",Facilities-Printing,Amazon UK Retail,25/03/2016,-15.32
"WELFARE, EMPLOYMENT & SKILLS",Stationery,WWW.VIKING-DIRECT.CO.U,25/03/2016,307.90
"WELFARE, EMPLOYMENT & SKILLS",Stationery,WWW.VIKING-DIRECT.CO.U,25/03/2016,-307.90
"WELFARE, EMPLOYMENT & SKILLS",Travel/Subsistence,OYSTER RENEW WEB,25/03/2016,24.10
"WELFARE, EMPLOYMENT & SKILLS",Travel/Subsistence,OYSTER RENEW WEB,25/03/2016,-24.10
"WELFARE, EMPLOYMENT & SKILLS",Travel/Subsistence,OYSTER RENEW WEB,25/03/2016,0.00
"WELFARE, EMPLOYMENT & SKILLS",Travel/Subsistence,OYSTER RENEW WEB,25/03/2016,38.00
"WELFARE, EMPLOYMENT & SKILLS",Travel/Subsistence,OYSTER RENEW WEB,25/03/2016,-38.00
CHILDREN LOOKED AFTER,Furniture-Other,ARGOS RETAIL GROUP,26/03/2016,454.99
CHILDREN LOOKED AFTER,Travel/Subsistence,HM PASSPORT OFFICE,26/03/2016,72.50
CHILDREN LOOKED AFTER,Travel/Subsistence,HM PASSPORT OFFICE,26/03/2016,72.50
LIBRARIES & ARCHIVE,Education-Library Books,Amazon UK Retail,26/03/2016,8.01
FINANCIAL PLANNING AND MANAGEMENT,Travel/Subsistence,OYSTER AUTOTOPUP,26/03/2016,20.00
FINANCIAL PLANNING AND MANAGEMENT,Travel/Subsistence,OYSTER AUTOTOPUP,26/03/2016,20.00
FINANCIAL PLANNING AND MANAGEMENT,Domestic Goods-Other,Amazon UK Marketplace,26/03/2016,13.99
FINANCIAL PLANNING AND MANAGEMENT,Travel/Subsistence,OYSTER AUTOTOPUP,26/03/2016,20.00
POLICY & COMMUNICATIONS,IT Software-Customised,SQUARESPACE INC.,27/03/2016,84.38
INTEGRATED DISABILITY,Education-Other,Amazon UK Marketplace,29/03/2016,304.75
CHILDREN SAFEGUARDING & ASSESSMENTS,Domestic Goods-Other,ARGOS DIRECT,29/03/2016,178.93
BALANCE SHEET,Personal,WATER WELLBEING LIMITE,30/03/2016,-0.90
BALANCE SHEET,VAT,WATER WELLBEING LIMITE,30/03/2016,53.83
BALANCE SHEET,VAT,WATER WELLBEING LIMITE,30/03/2016,66.67
BALANCE SHEET,VAT,Amazon UK Retail,30/03/2016,3.36
BALANCE SHEET,VAT,CANFORD AUDIO PLC,30/03/2016,11.20
INTERNAL AUDIT,Domestic Goods-Other,CANFORD AUDIO PLC,30/03/2016,56.00
INTERNAL AUDIT,Facilities-Printing,Amazon UK Retail,30/03/2016,16.80
HOUSING MANAGEMENT SERVICES,Catering Food & Drink,WATER WELLBEING LIMITE,30/03/2016,269.17
HOUSING MANAGEMENT SERVICES,Catering Food & Drink,WATER WELLBEING LIMITE,30/03/2016,333.33
INTEGRATED DISABILITY,Catering Food & Drink,TESCO STORE 2764,31/03/2016,127.12
INTEGRATED DISABILITY,Education-Other,Amazon UK Marketplace,31/03/2016,12.72
BALANCE SHEET,VAT,WP-STAMPS DIRECT L,31/03/2016,3.84
BALANCE SHEET,VAT,Amazon UK Marketplace,31/03/2016,2.00
BALANCE SHEET,VAT,MSFT *<E06001TBF1>,31/03/2016,2.23
BALANCE SHEET,VAT,MSFT *<E06001XA9Q>,31/03/2016,0.47
BALANCE SHEET,VAT,MSFT *<E060021CP2>,31/03/2016,0.44
CHILDREN SAFEGUARDING & ASSESSMENTS,Travel/Subsistence,OYSTER RENEW WEB,31/03/2016,20.00
YOUTH OFFENDING SERVICE,Books/Publications/Resources,PEARSON ED LTD,31/03/2016,-189.60
YOUTH OFFENDING SERVICE,IT Office Equipment,Amazon UK Marketplace,31/03/2016,10.00
YOUTH OFFENDING SERVICE,Organised Activities,STUBBERS ADVENTURE CTR,31/03/2016,360.00
YOUTH OFFENDING SERVICE,Travel/Subsistence,LUL TICKET MACHINE,31/03/2016,50.00
LIBRARIES & ARCHIVE,Education-Library Books,"Amazon Svcs Europe,SAR",31/03/2016,9.72
LIBRARIES & ARCHIVE,Education-Library Books,Amazon UK Marketplace,31/03/2016,8.11
LIBRARIES & ARCHIVE,Education-Library Books,Amazon UK Marketplace,31/03/2016,26.64
LIBRARIES & ARCHIVE,Education-Library Books,Amazon UK Marketplace,31/03/2016,7.80
LIBRARIES & ARCHIVE,Education-Library Books,Amazon UK Retail,31/03/2016,7.76
LIBRARIES & ARCHIVE,Education-Library Books,Amazon UK Retail,31/03/2016,32.43
BUSINESS TRANSFORMATION,IT Services,MSFT *<E06001TBF1>,31/03/2016,9.67
BUSINESS TRANSFORMATION,IT Services,MSFT *<E06001XA9Q>,31/03/2016,2.05
BUSINESS TRANSFORMATION,IT Services,MSFT *<E060021CP2>,31/03/2016,1.93
BUSINESS TRANSFORMATION,IT Services,RIPE NCC,31/03/2016,830.35
CORPORATE AFFAIRS,Catering Food & Drink,TESCO STORE 2764,31/03/2016,50.60
CORPORATE AFFAIRS,Legal Services-General Support,WWW.BARPROFESSIONALTRA,31/03/2016,700.00
CORPORATE AFFAIRS,Stationery,WP-STAMPS DIRECT L,31/03/2016,19.21
CORPORATE AFFAIRS,Travel/Subsistence,LUL TICKET MACHINE,31/03/2016,50.00
CORPORATE AFFAIRS,Travel/Subsistence,TRAINLINE,31/03/2016,287.38
ENVIRONMENT,Books/Publications/Resources,LAND REGISTRY,31/03/2016,36.00
ENVIRONMENT,Books/Publications/Resources,LAND REGISTRY,31/03/2016,12.00
ENVIRONMENT,Books/Publications/Resources,LAND REGISTRY,31/03/2016,6.00
ENVIRONMENT,Books/Publications/Resources,LAND REGISTRY,31/03/2016,3.00
ENVIRONMENT,Books/Publications/Resources,LAND REGISTRY,31/03/2016,12.00
ENVIRONMENT,Books/Publications/Resources,LAND REGISTRY,31/03/2016,12.00
ENVIRONMENT,Books/Publications/Resources,LAND REGISTRY,31/03/2016,18.00
ENVIRONMENT,Books/Publications/Resources,LAND REGISTRY,31/03/2016,12.00
ENVIRONMENT,Books/Publications/Resources,SOUTH LONDON EMERGENCY,31/03/2016,376.32
ENVIRONMENT,Food/refreshment - meetings,PETS AT HOME LTD,31/03/2016,84.99
ENVIRONMENT,Stationery,FORTRESS MASTER LOCKSMITH,31/03/2016,468.55
ENVIRONMENT,Use of Public Transport,NEW SOUTHERN RAILW,31/03/2016,60.00
ENVIRONMENT,Use of Public Transport,NEW SOUTHERN RAILW,31/03/2016,30.00
INTEGRATED DISABILITY,Accommodation,TRAVELODGE AGENT,01/04/2016,67.50
LIBRARIES & ARCHIVE,Domestic Goods-Other,ARGOS RETAIL GROUP,01/04/2016,51.93
"PLANNING, TRANSPORT & DEVELOPMENT",Travel/Subsistence,OYSTER AUTOTOPUP,02/04/2016,20.00
"PLANNING, TRANSPORT & DEVELOPMENT",Travel/Subsistence,OYSTER RENEW WEB,02/04/2016,20.00
"PLANNING, TRANSPORT & DEVELOPMENT",Consultancy-Business,FORTRESS MASTER LOCKSMITH,02/04/2016,60.75
BALANCE SHEET,VAT,FLICKR,04/04/2016,0.00
BALANCE SHEET,VAT,NATIONBUILDER,04/04/2016,0.00
BALANCE SHEET,VAT,PANTHEON,04/04/2016,0.00
BALANCE SHEET,VAT,PARTRIDGE & PRINT,04/04/2016,3.00
CHILDREN LOOKED AFTER,Education-Other,PARTRIDGE & PRINT,04/04/2016,90.00
LIBRARIES & ARCHIVE,Catering Food & Drink,CASH ADVANCE FEE,04/04/2016,2.95
LIBRARIES & ARCHIVE,Catering Food & Drink,SAIN - WEST CROYDON,04/04/2016,100.00
REVENUE & BENEFITS,Legal Services-Other,HMCOURTS-SERVICE.G,04/04/2016,"3,717.00"
POLICY & COMMUNICATIONS,IT Services,FLICKR,04/04/2016,32.92
POLICY & COMMUNICATIONS,IT Services,NATIONBUILDER,04/04/2016,35.60
POLICY & COMMUNICATIONS,IT Services,PANTHEON,04/04/2016,17.86
INTEGRATED DISABILITY,Domestic Goods-Other,CURRYS SUPERSTORE,05/04/2016,-198.00
PUBLIC HEALTH - ADULTS,Conference Expenses,GOV.UK/PHE,05/04/2016,410.00
PUBLIC HEALTH - ADULTS,Conference Expenses,PREMIER INN44530325,05/04/2016,431.97
PUBLIC HEALTH - ADULTS,Legal Services-Other,WWW.PRACADEMY.CO.U,05/04/2016,60.00
BALANCE SHEET,VAT,KITEPACKAGING.CO.UK,05/04/2016,0.00
LIBRARIES & ARCHIVE,Education-Musical Instruments,Amazon UK Marketplace,05/04/2016,-28.40
LIBRARIES & ARCHIVE,Travel/Subsistence,OYSTER BUS AUTOTOP,05/04/2016,40.00
POLICY & COMMUNICATIONS,Facilities-Storage,KITEPACKAGING.CO.UK,05/04/2016,129.12
HOUSING MANAGEMENT SERVICES,Use of Public Transport,LUL TICKET MACHINE,05/04/2016,50.00
DAY CENTRES,Cleaning-Internal,ARGOS,06/04/2016,159.98
BALANCE SHEET,VAT,WWW.MILLMOLL.CO.UK,06/04/2016,54.91
CHILDREN LOOKED AFTER,Domestic Goods-Other,MOTHERCARE UK LTD,06/04/2016,314.91
PROPERTY & FINANCIAL TRANSACTION SERVICES,Facilities-Storage,WWW.MILLMOLL.CO.UK,06/04/2016,274.53
FINANCIAL PLANNING AND MANAGEMENT,Conference Expenses,WWW.NAPF.CO.UK,06/04/2016,883.20
MENTAL HEALTH,Accommodation,RESERVATION REFUND,07/04/2016,-380.25
MENTAL HEALTH,Accommodation,TRAVELODGE AGENT,07/04/2016,407.95
MENTAL HEALTH,Accommodation,TRAVELODGE AGENT,07/04/2016,388.70
MENTAL HEALTH,Accommodation,TRAVELODGE AGENT,07/04/2016,392.67
MENTAL HEALTH,Accommodation,TRAVELODGE AGENT,07/04/2016,374.33
MENTAL HEALTH,Accommodation,TRAVELODGE AGENT,07/04/2016,378.50
BALANCE SHEET,Personal,TRAVELODGE AGENT,07/04/2016,-0.08
BALANCE SHEET,VAT,RESERVATION REFUND,07/04/2016,-76.05
BALANCE SHEET,VAT,TRAVELODGE AGENT,07/04/2016,76.25
BALANCE SHEET,VAT,TRAVELODGE AGENT,07/04/2016,72.42
BALANCE SHEET,VAT,TRAVELODGE AGENT,07/04/2016,74.08
BALANCE SHEET,VAT,TRAVELODGE AGENT,07/04/2016,70.42
BALANCE SHEET,VAT,TRAVELODGE AGENT,07/04/2016,71.25
CHILDREN LOOKED AFTER,Horticultural-Seeds & Plants,INTERFLORA BRITISH UNI,07/04/2016,41.98
LIBRARIES & ARCHIVE,Catering Food & Drink,TESCO STORES 6791,07/04/2016,1.34
LIBRARIES & ARCHIVE,Catering Food & Drink,TESCO STORES 6791,07/04/2016,3.54
REVENUE & BENEFITS,Travel/Subsistence,TRAINLINE,07/04/2016,29.94
REVENUE & BENEFITS,Travel/Subsistence,TRAINLINE,07/04/2016,385.05
INTEGRATED DISABILITY,Domestic Goods-Other,JJ MARTIN MOTO,08/04/2016,224.95
BALANCE SHEET,VAT,JJ MARTIN MOTO,08/04/2016,44.99
BALANCE SHEET,VAT,CANFORD AUDIO PLC,08/04/2016,8.66
INTERNAL AUDIT,Domestic Goods-Other,CANFORD AUDIO PLC,08/04/2016,43.30
LIBRARIES & ARCHIVE,Books/Publications/Resources,Amazon UK Retail,10/04/2016,65.60
INTEGRATED DISABILITY,Financial Services,ROYAL BANK UK /,11/04/2016,400.00
BALANCE SHEET,VAT,NO 5 CHAMBERS LTD,11/04/2016,10.00
QUALITY ASSURANCE & PERFORMANCE,Travel/Subsistence,OYSTER AUTOTOPUP,11/04/2016,40.00
QUALITY ASSURANCE & PERFORMANCE,Travel/Subsistence,OYSTER AUTOTOPUP,11/04/2016,80.00
QUALITY ASSURANCE & PERFORMANCE,Travel/Subsistence,OYSTER BUS AUTOTOP,11/04/2016,40.00
QUALITY ASSURANCE & PERFORMANCE,Travel/Subsistence,OYSTER BUS AUTOTOP,11/04/2016,40.00
QUALITY ASSURANCE & PERFORMANCE,Travel/Subsistence,OYSTER BUS AUTOTOP,11/04/2016,40.00
QUALITY ASSURANCE & PERFORMANCE,Travel/Subsistence,VIRGINTRAINSEC SERVCS,11/04/2016,148.80
QUALITY ASSURANCE & PERFORMANCE,Travel/Subsistence,VIRGINTRAINSEC SERVCS,11/04/2016,82.40
QUALITY ASSURANCE & PERFORMANCE,Travel/Subsistence,VIRGINTRAINSEC SERVCS,11/04/2016,60.60
QUALITY ASSURANCE & PERFORMANCE,Travel/Subsistence,VIRGINTRAINSEC SERVCS,11/04/2016,23.40
LIBRARIES & ARCHIVE,Facilities-Advertising,WH SMITH,11/04/2016,320.00
LIBRARIES & ARCHIVE,Facilities-Advertising,WH SMITH,11/04/2016,300.74
LIBRARIES & ARCHIVE,Facilities-Advertising,WH SMITH,11/04/2016,268.89
CORPORATE AFFAIRS,Legal Services-General Support,NO 5 CHAMBERS LTD,11/04/2016,50.00
CORPORATE AFFAIRS,Stationery,MICHAEL'S SHOE REP,11/04/2016,9.75
CORPORATE AFFAIRS,Travel/Subsistence,LUL TICKET MACHINE,11/04/2016,100.00
INTEGRATED DISABILITY,Financial Services,CASH ADVANCE FEE,12/04/2016,11.80
SENIOR MANAGEMENT - ADULTS & PUBLIC HEALTH,Taxi Fares,PP*GUY HERBERT,12/04/2016,40.00
SENIOR MANAGEMENT - ADULTS & PUBLIC HEALTH,Travel/Subsistence,VIRGINTRAINS.CO.UK,12/04/2016,50.00
BALANCE SHEET,VAT,Amazon UK Retail,12/04/2016,2.29
BALANCE SHEET,VAT,MERCURE WETHERBY H,12/04/2016,10.50
BALANCE SHEET,VAT,POUNDLAND LTD,12/04/2016,0.83
CHILDREN LOOKED AFTER,Travel/Subsistence,TRAINLINE,12/04/2016,41.00
YOUTH OFFENDING SERVICE,Accommodation,MERCURE WETHERBY H,12/04/2016,52.50
YOUTH OFFENDING SERVICE,Books/Publications/Resources,Amazon UK Retail,12/04/2016,11.44
YOUTH OFFENDING SERVICE,Travel/Subsistence,NISA LOCAL,12/04/2016,50.00
LIBRARIES & ARCHIVE,Books/Publications/Resources,Amazon UK Marketplace,12/04/2016,27.74
LIBRARIES & ARCHIVE,Stationery,Amazon UK Marketplace,12/04/2016,8.25
LIBRARIES & ARCHIVE,Education-Arts/Crafts,POUNDLAND LTD 1203,12/04/2016,4.00
PROPERTY & FINANCIAL TRANSACTION SERVICES,Conference Expenses,PAYPAL *ACCOUNTSPAY,12/04/2016,490.00
REVENUE & BENEFITS,Domestic Goods-Other,POUNDLAND LTD,12/04/2016,4.17
HOUSING CAPITAL & ASSET MANAGEMENT,Legal Services-Other,HMCOURTS-SERVICE.G,12/04/2016,320.00
HOUSING CAPITAL & ASSET MANAGEMENT,Legal Services-Other,HMCOURTS-SERVICE.G,12/04/2016,360.00
DAY CENTRES,Travel/Subsistence,OYSTER BUS AUTOTOP,13/04/2016,20.00
DAY CENTRES,Food/refreshment - meetings,JS ONLINE GROCERY,13/04/2016,335.25
BALANCE SHEET,VAT,1&1 INTERNET LIMITED,13/04/2016,11.99
BALANCE SHEET,VAT,WWW.ONLINE-ERGONOMICS.,13/04/2016,17.79
EARLY YEARS AND PARENTING,Furniture-Office Furniture,WWW.ONLINE-ERGONOMICS.,13/04/2016,88.96
EARLY YEARS AND PARENTING,IT Services,1&1 INTERNET LIMITED,13/04/2016,59.97
LIBRARIES & ARCHIVE,Education-Library Books,Amazon UK Marketplace,13/04/2016,2.28
LIBRARIES & ARCHIVE,Education-Library Books,Amazon UK Marketplace,13/04/2016,41.55
LIBRARIES & ARCHIVE,Education-Toys,Amazon UK Marketplace,13/04/2016,25.94
FINANCIAL PLANNING AND MANAGEMENT,Travel/Subsistence,OYSTER AUTOTOPUP,13/04/2016,20.00
POLICY & COMMUNICATIONS,Horticultural-Seeds & Plants,JANET EDWARDS LONDON B,13/04/2016,30.00
OTHER - ADULTS,Catering Food & Drink,TESCO STORES 5999,14/04/2016,47.90
OTHER - ADULTS,Domestic Goods-Other,Amazon UK Marketplace,14/04/2016,6.01
OTHER - ADULTS,Education-Library Books,"Amazon Svcs Europe,SAR",14/04/2016,16.73
OTHER - ADULTS,Education-Library Books,"Amazon Svcs Europe,SAR",14/04/2016,-2.36
OTHER - ADULTS,Education-Library Books,Amazon UK Marketplace,14/04/2016,34.18
OTHER - ADULTS,IT Software,CITY LIT,14/04/2016,200.00
BALANCE SHEET,VAT,CURRYS ONLINE,14/04/2016,12.32
BALANCE SHEET,VAT,CURRYS ONLINE,14/04/2016,81.67
BALANCE SHEET,VAT,CURRYS ONLINE,14/04/2016,149.83
BALANCE SHEET,VAT,IKEA ONLINE,14/04/2016,40.00
BALANCE SHEET,VAT,IKEA ONLINE,14/04/2016,43.16
BALANCE SHEET,VAT,SAINSBURY'S S/MKT,14/04/2016,10.27
BALANCE SHEET,VAT,BRITISH GAS BUSINE,14/04/2016,60.00
BALANCE SHEET,VAT,BRITISH GAS BUSINE,14/04/2016,123.94
CHILDREN LOOKED AFTER,Financial Services-Insurance,BUPA,14/04/2016,"1,430.37"
CHILDREN LOOKED AFTER,Financial Services,HM PASSPORT OFFICE,14/04/2016,92.00
CHILDREN LOOKED AFTER,Building-Floors,FLOOR FASHION LTD,14/04/2016,333.50
CHILDREN LOOKED AFTER,Building-Timber,B&Q DIRECT,14/04/2016,390.56
CHILDREN LOOKED AFTER,Domestic Goods-Other,AO RETAIL LIMITED,14/04/2016,129.00
CHILDREN LOOKED AFTER,Domestic Goods-Other,ARGOS RETAIL GROUP,14/04/2016,399.99
CHILDREN LOOKED AFTER,Domestic Goods-Other,ARGOS RETAIL GROUP,14/04/2016,"2,747.50"
CHILDREN LOOKED AFTER,Domestic Goods-Other,ARGOS RETAIL GROUP,14/04/2016,"1,503.76"
CHILDREN LOOKED AFTER,Domestic Goods-Other,CURRYS ONLINE,14/04/2016,61.62
CHILDREN LOOKED AFTER,Domestic Goods-Other,CURRYS ONLINE,14/04/2016,408.32
CHILDREN LOOKED AFTER,Domestic Goods-Other,CURRYS ONLINE,14/04/2016,749.11
CHILDREN LOOKED AFTER,Financial Services,GRO HM PASSPORT OFFICE,14/04/2016,0.00
CHILDREN LOOKED AFTER,Financial Services,HM PASSPORT OFFICE,14/04/2016,72.50
CHILDREN LOOKED AFTER,Financial Services,LAMBETH INTERNET PAYM,14/04/2016,101.65
CHILDREN LOOKED AFTER,Financial Services,WWW.WANDSWORTH.GOV.UK,14/04/2016,17.00
CHILDREN LOOKED AFTER,Furniture-Domestic Furniture,IKEA ONLINE,14/04/2016,200.00
CHILDREN LOOKED AFTER,Furniture-Domestic Furniture,IKEA ONLINE,14/04/2016,215.84
CHILDREN LOOKED AFTER,Furniture-Domestic Furniture,PAYPAL *SLF24 LTD.,14/04/2016,328.00
CHILDREN LOOKED AFTER,Travel/Subsistence,OYSTER RENEW WEB,14/04/2016,25.00
CHILDREN LOOKED AFTER,Financial Services-Grants,ALLPAY MOTO (CALLPAY/IVR,14/04/2016,525.80
CHILDREN SAFEGUARDING & ASSESSMENTS,Building-Floors,BUDGET CARPETS 1,14/04/2016,890.00
CHILDREN SAFEGUARDING & ASSESSMENTS,Travel/Subsistence,OYSTER RENEW WEB,14/04/2016,25.00
SPECIAL EDUCATIONAL NEEDS,Accommodation,HOLIDAY INN BARNSLEY,14/04/2016,414.00
EDUCATION & LEARNING (SCH),Utilities,BRITISH GAS BUSINE,14/04/2016,240.00
PROPERTY & FINANCIAL TRANSACTION SERVICES,Utilities,BRITISH GAS BUSINE,14/04/2016,829.69
REVENUE & BENEFITS,Financial Services-Accountancy,IPF,14/04/2016,300.00
REVENUE & BENEFITS,Travel/Subsistence,SOUTHWESTTRAINS,14/04/2016,95.00
FINANCIAL PLANNING AND MANAGEMENT,Use of Public Transport,NEW SOUTHERN RAILW,14/04/2016,20.00
ENVIRONMENT,Books/Publications/Resources,LAND REGISTRY,14/04/2016,6.00
ENVIRONMENT,Books/Publications/Resources,LAND REGISTRY,14/04/2016,6.00
ENVIRONMENT,Charges and Penalties,DVLA VEHICLE TAX,14/04/2016,697.50
ENVIRONMENT,Charges and Penalties,DVLA VEHICLE TAX,14/04/2016,"1,097.50"
ENVIRONMENT,Charges and Penalties,DVLA VEHICLE TAX,14/04/2016,"1,750.00"
ENVIRONMENT,Stationery,B AND Q 1009,14/04/2016,104.51
"WELFARE, EMPLOYMENT & SKILLS",Consultancy-Other,WWW.GENI.NIDIRECT.GOV.,14/04/2016,20.00
"WELFARE, EMPLOYMENT & SKILLS",Education-Other,CITB,14/04/2016,60.00
"WELFARE, EMPLOYMENT & SKILLS",Education-Other,CITB,14/04/2016,30.00
"WELFARE, EMPLOYMENT & SKILLS",Education-Other,CITB,14/04/2016,30.00
"WELFARE, EMPLOYMENT & SKILLS",Stationery,Amazon UK Marketplace,14/04/2016,1.89
"WELFARE, EMPLOYMENT & SKILLS",Stationery,Amazon UK Marketplace,14/04/2016,14.97
"WELFARE, EMPLOYMENT & SKILLS",Travel/Subsistence,OYSTER RENEW WEB,14/04/2016,30.00
"WELFARE, EMPLOYMENT & SKILLS",Travel/Subsistence,OYSTER RENEW WEB,14/04/2016,177.10
HOUSING MANAGEMENT SERVICES,Catering Food & Drink,SAINSBURY'S S/MKT,14/04/2016,51.38
BALANCE SHEET,VAT,LAND REGISTRY,15/04/2016,1.00
CHILDREN LOOKED AFTER,Domestic Goods-Other,ARGOS DIRECT,15/04/2016,808.92
LIBRARIES & ARCHIVE,Education-Other,EDUSENTIALS LIMITED,15/04/2016,-3.65
LIBRARIES & ARCHIVE,Catering Food & Drink,LIDL UK,15/04/2016,7.99
HOUSING MANAGEMENT SERVICES,Legal Services-Other,LAND REGISTRY,15/04/2016,5.00
LIBRARIES & ARCHIVE,Books/Publications/Resources,AMAZON MKTPLACE PMTS,17/04/2016,42.67
INTEGRATED DISABILITY,Travel/Subsistence,NEWS AT NINE,18/04/2016,200.00
BALANCE SHEET,VAT,WWW.QA.COM,18/04/2016,51.10
LIBRARIES & ARCHIVE,Catering Food & Drink,CASH ADVANCE FEE,18/04/2016,5.90
LIBRARIES & ARCHIVE,Catering Food & Drink,HSBC/BRIXTON RD I1,18/04/2016,200.00
LIBRARIES & ARCHIVE,Domestic Goods-Other,ARGOS LTD,18/04/2016,16.00
FINANCIAL PLANNING AND MANAGEMENT,Education-Other,WWW.QA.COM,18/04/2016,255.50
EDUCATION & MAJOR CAPITAL PROJECTS,Stationery,ARMOUR LOCK AND SAFE,18/04/2016,15.00
HOUSING CAPITAL & ASSET MANAGEMENT,Legal Services-Other,HMCOURTS-SERVICE.G,18/04/2016,240.00
INTEGRATED DISABILITY,Travel/Subsistence,NEWS AT NINE,19/04/2016,150.00
BALANCE SHEET,VAT,DAILY.CO.UK,19/04/2016,22.76
BALANCE SHEET,VAT,HOOTSUITE MEDIA INC.,19/04/2016,0.00
BALANCE SHEET,VAT,PANTHEON,19/04/2016,0.00
CHILDREN SAFEGUARDING & ASSESSMENTS,Healthcare-Counselling,CLINICAL PARTNERS LTD,19/04/2016,476.00
POLICY & COMMUNICATIONS,IT Services,DAILY.CO.UK,19/04/2016,113.78
POLICY & COMMUNICATIONS,IT Services,HOOTSUITE MEDIA INC.,19/04/2016,5.26
POLICY & COMMUNICATIONS,IT Services,PANTHEON,19/04/2016,18.15
DAY CENTRES,Financial Services,SAIN - BRIXTON,20/04/2016,200.00
INTEGRATED DISABILITY,Catering Equipment,Amazon UK Marketplace,20/04/2016,27.89
INTEGRATED DISABILITY,Domestic Goods-Other,Amazon UK Retail,20/04/2016,24.79
BALANCE SHEET,VAT,Amazon UK Retail,20/04/2016,4.95
BALANCE SHEET,Personal,ARGOS RETAIL GROUP,20/04/2016,-1.00
BALANCE SHEET,Personal,DREAMS LTD,20/04/2016,-68.00
BALANCE SHEET,VAT,ARGOS RETAIL GROUP,20/04/2016,148.32
BALANCE SHEET,VAT,DREAMS LTD,20/04/2016,33.17
BALANCE SHEET,VAT,THE BOND COMPANY,20/04/2016,49.60
BALANCE SHEET,VAT,HOLIDAY INN LIVERPOOL,20/04/2016,12.17
CHILDREN LOOKED AFTER,Education-Other,CHRIST THE KING COLLEG,20/04/2016,44.00
CHILDREN LOOKED AFTER,Facilities-Storage,ACCESS SELF STORAG,20/04/2016,93.44
CHILDREN LOOKED AFTER,Furniture-Domestic Furniture,ARGOS RETAIL GROUP,20/04/2016,"1,368.38"
CHILDREN LOOKED AFTER,Furniture-Domestic Furniture,ARGOS RETAIL GROUP,20/04/2016,324.92
CHILDREN LOOKED AFTER,Furniture-Domestic Furniture,ARGOS RETAIL GROUP,20/04/2016,427.92
CHILDREN LOOKED AFTER,Furniture-Domestic Furniture,CARPETRIGHT,20/04/2016,830.95
CHILDREN LOOKED AFTER,Furniture-Domestic Furniture,CARPETRIGHT,20/04/2016,418.03
CHILDREN LOOKED AFTER,Furniture-Domestic Furniture,CURRYS ONLINE,20/04/2016,767.99
CHILDREN LOOKED AFTER,Furniture-Domestic Furniture,CURRYS SUPERSTORE,20/04/2016,140.00
CHILDREN LOOKED AFTER,Furniture-Domestic Furniture,FLOOR FASHION LTD,20/04/2016,150.00
CHILDREN LOOKED AFTER,Furniture-Domestic Furniture,IKEA ONLINE,20/04/2016,"1,151.00"
CHILDREN LOOKED AFTER,Furniture-Domestic Furniture,IKEA ONLINE,20/04/2016,315.00
CHILDREN LOOKED AFTER,Furniture-Office Furniture,CARPETRIGHT,20/04/2016,79.07
CHILDREN LOOKED AFTER,Furniture-Office Furniture,WWW.JOHNLEWIS.COM,20/04/2016,339.00
CHILDREN LOOKED AFTER,Stationery,GRO HM PASSPORT OFFICE,20/04/2016,0.00
CHILDREN LOOKED AFTER,Domestic Goods-Other,ARGOS RETAIL GROUP,20/04/2016,740.60
CHILDREN LOOKED AFTER,Furniture-Domestic Furniture,DREAMS LTD,20/04/2016,165.83
CHILDREN SAFEGUARDING & ASSESSMENTS,Financial Services,GRO HM PASSPORT OFFICE,20/04/2016,-9.25
CHILDREN SAFEGUARDING & ASSESSMENTS,Financial Services,GRO HM PASSPORT OFFICE,20/04/2016,18.50
QUALITY ASSURANCE & PERFORMANCE,Accommodation,HOLIDAY INN LIVERPOOL,20/04/2016,60.83
QUALITY ASSURANCE & PERFORMANCE,IT Software,PAYPAL *PAMS ASSESS,20/04/2016,"1,078.42"
QUALITY ASSURANCE & PERFORMANCE,Travel/Subsistence,LUL TICKET MACHINE,20/04/2016,100.00
QUALITY ASSURANCE & PERFORMANCE,Travel/Subsistence,OYSTER AUTOTOPUP,20/04/2016,40.00
QUALITY ASSURANCE & PERFORMANCE,Travel/Subsistence,OYSTER RENEW WEB,20/04/2016,50.00
QUALITY ASSURANCE & PERFORMANCE,Travel/Subsistence,OYSTER RENEW WEB,20/04/2016,-50.00
QUALITY ASSURANCE & PERFORMANCE,Travel/Subsistence,TRAINLINE,20/04/2016,98.63
QUALITY ASSURANCE & PERFORMANCE,Travel/Subsistence,VIRGINTRAINSEC SERVCS,20/04/2016,88.40
QUALITY ASSURANCE & PERFORMANCE,Travel/Subsistence,VIRGINTRAINSEC SERVCS,20/04/2016,93.30
QUALITY ASSURANCE & PERFORMANCE,Travel/Subsistence,VIRGINTRAINSEC SERVCS,20/04/2016,111.00
REVENUE & BENEFITS,Conference Expenses,THE BOND COMPANY,20/04/2016,248.00
ENVIRONMENT,Books/Publications/Resources,LAND REGISTRY,20/04/2016,6.00
ENVIRONMENT,Charges and Penalties,PIRTEK GREENWICH,20/04/2016,20.00
DAY CENTRES,Financial Services,CASH ADVANCE FEE,21/04/2016,5.90
DAY CENTRES,Financial Services,SAIN - BRIXTON,21/04/2016,100.00
INTEGRATED DISABILITY,Catering Equipment,Amazon UK Marketplace,21/04/2016,19.45
MENTAL HEALTH,Accommodation,TRAVELODGE AGENT,21/04/2016,375.17
MENTAL HEALTH,Accommodation,TRAVELODGE AGENT,21/04/2016,390.17
MENTAL HEALTH,Legal Services-Other,HMCOURTS-SERVICE.G,21/04/2016,40.00
MENTAL HEALTH,Legal Services-Other,HMCOURTS-SERVICE.G,21/04/2016,60.00
MENTAL HEALTH,Legal Services-Other,HMCOURTS-SERVICE.G,21/04/2016,40.00
MENTAL HEALTH,Legal Services-Other,HMCOURTS-SERVICE.G,21/04/2016,20.00
MENTAL HEALTH,Legal Services-Other,HMCOURTS-SERVICE.G,21/04/2016,40.00
MENTAL HEALTH,Legal Services-Other,HMCOURTS-SERVICE.G,21/04/2016,40.00
MENTAL HEALTH,Legal Services-Other,HMCOURTS-SERVICE.G,21/04/2016,40.00
MENTAL HEALTH,Legal Services-Other,HMCOURTS-SERVICE.G,21/04/2016,40.00
MENTAL HEALTH,Legal Services-Other,HMCOURTS-SERVICE.G,21/04/2016,40.00
MENTAL HEALTH,Legal Services-Other,HMCOURTS-SERVICE.G,21/04/2016,20.00
MENTAL HEALTH,Travel/Subsistence,LONDON & SOUTH EAS,21/04/2016,30.60
MENTAL HEALTH,Travel/Subsistence,LONDON & SOUTH EAS,21/04/2016,29.10
MENTAL HEALTH,Travel/Subsistence,OYSTER AUTOTOPUP,21/04/2016,20.00
MENTAL HEALTH,Travel/Subsistence,OYSTER AUTOTOPUP,21/04/2016,20.00
PUBLIC HEALTH - ADULTS,Healthcare Services,B H & R HOSPITALS,21/04/2016,"1,668.00"
PUBLIC HEALTH - ADULTS,Healthcare Services,CHELSEA & WESTMINSTER,21/04/2016,774.35
PUBLIC HEALTH - ADULTS,Healthcare Services,EAST SUSSEX HEALTHCARE N,21/04/2016,136.78
PUBLIC HEALTH - ADULTS,Healthcare Services,EAST SUSSEX HEALTHCARE N,21/04/2016,416.60
PUBLIC HEALTH - ADULTS,Healthcare Services,EAST SUSSEX HEALTHCARE N,21/04/2016,250.58
PUBLIC HEALTH - ADULTS,Healthcare Services,EASTERN & COASTAL KENT P,21/04/2016,281.20
PUBLIC HEALTH - ADULTS,Healthcare Services,MID ESSEX HOSPITALS-FINC,21/04/2016,144.00
PUBLIC HEALTH - ADULTS,Healthcare Services,NORTH MID HOSP,21/04/2016,153.27
PUBLIC HEALTH - ADULTS,Healthcare Services,OXFORD UNIV HOSPITAL,21/04/2016,107.00
PUBLIC HEALTH - ADULTS,Healthcare Services,OXFORD UNIV HOSPITAL,21/04/2016,622.00
PUBLIC HEALTH - ADULTS,Healthcare Services,OXFORD UNIV HOSPITAL,21/04/2016,486.00
PUBLIC HEALTH - ADULTS,Healthcare Services,SALISBURY HOSP CASHIER,21/04/2016,140.00
PUBLIC HEALTH - ADULTS,Healthcare Services,STOCKPORT NHS,21/04/2016,140.62
PUBLIC HEALTH - ADULTS,Healthcare Services,TAUNTON&SOMERSET NHS T,21/04/2016,184.32
PUBLIC HEALTH - ADULTS,Healthcare Services,TORBAY&SOUTH DEVON NHS,21/04/2016,132.78
PUBLIC HEALTH - ADULTS,Healthcare Services,UNIVERSITY HOSPITALS,21/04/2016,137.93
PUBLIC HEALTH - ADULTS,Healthcare Services,WARRINGTON HOSPITAL,21/04/2016,285.60
PUBLIC HEALTH - ADULTS,Healthcare Services,YORK TEACHING HOSPITAL,21/04/2016,404.92
BALANCE SHEET,VAT,TRAVELODGE AGENT,21/04/2016,70.58
BALANCE SHEET,VAT,TRAVELODGE AGENT,21/04/2016,73.58
LIBRARIES & ARCHIVE,Books/Publications/Resources,Amazon UK Retail,21/04/2016,25.97
LIBRARIES & ARCHIVE,Travel/Subsistence,OYSTER BUS AUTOTOP,21/04/2016,20.00
DAY CENTRES,Financial Services,CASH ADVANCE FEE,22/04/2016,2.95
BALANCE SHEET,VAT,Amazon UK Marketplace,22/04/2016,1.00
BALANCE SHEET,VAT,CITB,22/04/2016,5.00
BALANCE SHEET,VAT,ARGOS RETAIL GROUP,22/04/2016,3.56
CHILDREN LOOKED AFTER,Domestic Goods-Other,ARGOS RETAIL GROUP,22/04/2016,17.78
CHILDREN SAFEGUARDING & ASSESSMENTS,Travel/Subsistence,OYSTER RENEW WEB,22/04/2016,25.00
CHILDREN SAFEGUARDING & ASSESSMENTS,Domestic Goods-Other,ARGOS DIRECT,22/04/2016,616.42
EMPLOYMENT & ENTERPRISE - E&L,Catering Food & Drink,SAINSBURY'S SMKT,22/04/2016,200.00
EMPLOYMENT & ENTERPRISE - E&L,Catering Food & Drink,SAINSBURY'S SMKT,22/04/2016,150.00
EMPLOYMENT & ENTERPRISE - E&L,Catering Food & Drink,SAINSBURYS S/MKTS,22/04/2016,0.20
EMPLOYMENT & ENTERPRISE - E&L,Catering Food & Drink,SAINSBURYS S/MKTS,22/04/2016,16.55
EMPLOYMENT & ENTERPRISE - E&L,Catering Food & Drink,SAINSBURYS S/MKTS,22/04/2016,2.79
EMPLOYMENT & ENTERPRISE - E&L,Catering Food & Drink,SAINSBURYS S/MKTS,22/04/2016,12.55
EMPLOYMENT & ENTERPRISE - E&L,Catering Food & Drink,SAINSBURYS S/MKTS,22/04/2016,8.70
EMPLOYMENT & ENTERPRISE - E&L,Domestic Goods-Other,GIFTVOUCHERSHOP.CO.UK,22/04/2016,408.50
EMPLOYMENT & ENTERPRISE - E&L,Domestic Goods-Other,POUNDLAND LTD 1203,22/04/2016,4.00
EMPLOYMENT & ENTERPRISE - E&L,Domestic Goods-Other,POUNDLAND LTD 1203,22/04/2016,5.00
EMPLOYMENT & ENTERPRISE - E&L,Domestic Goods-Other,SQ PROFESSIONAL LTD,22/04/2016,10.00
EMPLOYMENT & ENTERPRISE - E&L,Education-Other,CITB,22/04/2016,30.00
EMPLOYMENT & ENTERPRISE - E&L,Education-Other,CITB,22/04/2016,25.00
EMPLOYMENT & ENTERPRISE - E&L,Facilities-Advertising,WH SMITH,22/04/2016,7.98
EMPLOYMENT & ENTERPRISE - E&L,IT Office Equipment,Amazon UK Marketplace,22/04/2016,16.94
EMPLOYMENT & ENTERPRISE - E&L,Mail Services-Postage,POST OFFICE COUNTER,22/04/2016,20.76
EMPLOYMENT & ENTERPRISE - E&L,Mail Services-Postage,POST OFFICE COUNTER,22/04/2016,7.68
EMPLOYMENT & ENTERPRISE - E&L,Taxi Fares,WWW.ADDISONLEE.COM,22/04/2016,11.25
EMPLOYMENT & ENTERPRISE - E&L,Travel/Subsistence,OYSTER AUTOTOPUP,22/04/2016,20.00
EMPLOYMENT & ENTERPRISE - E&L,Travel/Subsistence,OYSTER AUTOTOPUP,22/04/2016,20.00
EMPLOYMENT & ENTERPRISE - E&L,Travel/Subsistence,OYSTER AUTOTOPUP,22/04/2016,20.00
EMPLOYMENT & ENTERPRISE - E&L,Travel/Subsistence,OYSTER AUTOTOPUP,22/04/2016,20.00
EMPLOYMENT & ENTERPRISE - E&L,Travel/Subsistence,OYSTER BUS AUTOTOP,22/04/2016,20.00
EMPLOYMENT & ENTERPRISE - E&L,Travel/Subsistence,OYSTER BUS AUTOTOP,22/04/2016,20.00
EMPLOYMENT & ENTERPRISE - E&L,Travel/Subsistence,VIRGINTRAINS.CO.UK,22/04/2016,95.50
BALANCE SHEET,VAT,ARGOS RETAIL GROUP,23/04/2016,25.49
CHILDREN LOOKED AFTER,Domestic Goods-Other,ARGOS RETAIL GROUP,23/04/2016,127.43
LIBRARIES & ARCHIVE,Books/Publications/Resources,AMAZON MKTPLACE PMTS,23/04/2016,14.44
INTEGRATED DISABILITY,Travel/Subsistence,HOTELS COM129247464643,25/04/2016,72.82
BALANCE SHEET,VAT,Amazon UK Marketplace,25/04/2016,7.60
LIBRARIES & ARCHIVE,Education-Other,Amazon UK Marketplace,25/04/2016,21.00
LIBRARIES & ARCHIVE,Catering Food & Drink,CASH ADVANCE FEE,25/04/2016,2.95
LIBRARIES & ARCHIVE,Catering Food & Drink,SAIN - BRIXTON LAMBERT R,25/04/2016,100.00
INTEGRATED DISABILITY,Catering Food & Drink,ASDA STORES LTD 5871,26/04/2016,30.86
BALANCE SHEET,VAT,ARGOS RETAIL GROUP,26/04/2016,47.82
CHILDREN LOOKED AFTER,Domestic Goods-Other,ARGOS RETAIL GROUP,26/04/2016,239.12
LIBRARIES & ARCHIVE,Travel/Subsistence,TFL PENALTY CHARGE,26/04/2016,65.00
REVENUE & BENEFITS,Catering Food & Drink,SAINSBURYS,26/04/2016,8.80
FINANCIAL PLANNING AND MANAGEMENT,HMRC Fees,PHONEPYT HMRC,26/04/2016,902.57
HOUSING CAPITAL & ASSET MANAGEMENT,HMRC Fees,HMCOURTS-SERVICE.G,26/04/2016,400.00
INTEGRATED DISABILITY,Catering Equipment,Amazon UK Marketplace,27/04/2016,24.99
INTEGRATED DISABILITY,Education-Other,Amazon UK Marketplace,27/04/2016,304.75
INTEGRATED DISABILITY,Education-Supplies,Amazon UK Marketplace,27/04/2016,18.40
INTEGRATED DISABILITY,Stationery,Amazon UK Marketplace,27/04/2016,8.52
INTEGRATED DISABILITY,Stationery,Amazon UK Marketplace,27/04/2016,9.69
BALANCE SHEET,VAT,ARGOS RETAIL GROUP,27/04/2016,80.83
BALANCE SHEET,VAT,ARGOS RETAIL GROUP,27/04/2016,45.25
BALANCE SHEET,VAT,ARGOS RETAIL GROUP,27/04/2016,28.98
BALANCE SHEET,VAT,ARGOS RETAIL GROUP,27/04/2016,4.16
BALANCE SHEET,VAT,TESCO PFS 2161,27/04/2016,8.70
CHILDREN LOOKED AFTER,Domestic Goods-Other,ARGOS RETAIL GROUP,27/04/2016,226.27
CHILDREN LOOKED AFTER,Domestic Goods-Other,ARGOS RETAIL GROUP,27/04/2016,404.15
CHILDREN LOOKED AFTER,Domestic Goods-Other,ARGOS RETAIL GROUP,27/04/2016,144.92
CHILDREN LOOKED AFTER,Domestic Goods-Other,ARGOS RETAIL GROUP,27/04/2016,20.83
TENANT MANAGEMENT ORGANISATIONS,Vehicle Fuel,TESCO PFS 2161,27/04/2016,43.52
DAY CENTRES,Travel/Subsistence,OYSTER BUS AUTOTOP,28/04/2016,20.00
INTEGRATED DISABILITY,Education-Arts/Crafts,Amazon UK Marketplace,28/04/2016,10.20
INTEGRATED DISABILITY,Stationery,Amazon UK Marketplace,28/04/2016,17.01
BALANCE SHEET,VAT,Amazon UK Retail,28/04/2016,4.01
BALANCE SHEET,VAT,MORLEYS,28/04/2016,2.25
CHILDREN LOOKED AFTER,Domestic Goods-Other,Amazon UK Marketplace,28/04/2016,74.98
LIBRARIES & ARCHIVE,Education-Supplies,Amazon UK Retail,28/04/2016,20.07
LIBRARIES & ARCHIVE,Environmental Services-Cleansing,MORLEYS,28/04/2016,11.25
LIBRARIES & ARCHIVE,Travel/Subsistence,OYSTER BUS AUTOTOP,28/04/2016,40.00
FINANCIAL PLANNING AND MANAGEMENT,Travel/Subsistence,OYSTER AUTOTOPUP,28/04/2016,20.00
FINANCIAL PLANNING AND MANAGEMENT,Travel/Subsistence,OYSTER AUTOTOPUP,28/04/2016,20.00
FINANCIAL PLANNING AND MANAGEMENT,Use of Public Transport,LUL TICKET MACHINE,28/04/2016,20.00
HUMAN RESOURCES & ORGANISATIONAL DEVELOPMENT,Education-Other,THE MANCHESTER COLLEGE,28/04/2016,150.00
INTEGRATED DISABILITY,Financial Services,ROYAL BANK UK /,29/04/2016,400.00
BALANCE SHEET,VAT,Amazon UK Marketplace,29/04/2016,34.97
BALANCE SHEET,VAT,Amazon UK Marketplace,29/04/2016,14.49
BALANCE SHEET,VAT,Amazon UK Marketplace,29/04/2016,12.54
BALANCE SHEET,VAT,Amazon UK Marketplace,29/04/2016,0.28
BALANCE SHEET,VAT,Amazon UK Marketplace,29/04/2016,2.62
CHILDREN LOOKED AFTER,Domestic Goods-Other,ARGOS DIRECT,29/04/2016,"1,072.54"
LIBRARIES & ARCHIVE,Financial Services,HSBC/BRIXTON RD I1,29/04/2016,150.00
PROPERTY & FINANCIAL TRANSACTION SERVICES,Stationery,Amazon UK Marketplace,29/04/2016,39.58
BUSINESS TRANSFORMATION,IT Hardware,Amazon UK Marketplace,29/04/2016,139.88
BUSINESS TRANSFORMATION,IT Hardware,Amazon UK Marketplace,29/04/2016,72.45
BUSINESS TRANSFORMATION,IT Hardware,Amazon UK Marketplace,29/04/2016,61.65
BUSINESS TRANSFORMATION,IT Hardware,Amazon UK Marketplace,29/04/2016,1.14
BUSINESS TRANSFORMATION,IT Hardware,Amazon UK Marketplace,29/04/2016,10.50
FINANCIAL PLANNING AND MANAGEMENT,Financial Services,LAND REGISTRY,29/04/2016,3.00
FINANCIAL PLANNING AND MANAGEMENT,Financial Services,LAND REGISTRY,29/04/2016,3.00
FINANCIAL PLANNING AND MANAGEMENT,Financial Services,LAND REGISTRY,29/04/2016,6.00
FINANCIAL PLANNING AND MANAGEMENT,Financial Services,LAND REGISTRY,29/04/2016,3.00
PROCUREMENT,Books/Publications/Resources,Amazon UK Retail,29/04/2016,105.43
INTEGRATED DISABILITY,Financial Services,CASH ADVANCE FEE,02/05/2016,11.80
LIBRARIES & ARCHIVE,Books/Publications/Resources,CASH ADVANCE FEE,02/05/2016,4.43
FINANCIAL PLANNING AND MANAGEMENT,Domestic Goods-Other,Amazon UK Marketplace,02/05/2016,86.85
FINANCIAL PLANNING AND MANAGEMENT,Facilities-Printing,Amazon UK Retail,02/05/2016,32.99
FINANCIAL PLANNING AND MANAGEMENT,Facilities-Printing,Amazon UK Retail,02/05/2016,184.99
BALANCE SHEET,VAT,PRETTY PETALS,03/05/2016,6.25
LIBRARIES & ARCHIVE,Education-Arts/Crafts,Amazon UK Marketplace,03/05/2016,8.80
"WELFARE, EMPLOYMENT & SKILLS",Catering Food & Drink,HOC CRS,03/05/2016,453.00
"WELFARE, EMPLOYMENT & SKILLS",Education-Other,CITB,03/05/2016,30.00
"WELFARE, EMPLOYMENT & SKILLS",Education-Other,WWW.SECURAK.CO.UK,03/05/2016,59.99
"WELFARE, EMPLOYMENT & SKILLS",Education-Other,WWW.SECURAK.CO.UK,03/05/2016,104.99
"WELFARE, EMPLOYMENT & SKILLS",Travel/Subsistence,OYSTER RENEW WEB,03/05/2016,38.00
"WELFARE, EMPLOYMENT & SKILLS",Travel/Subsistence,OYSTER RENEW WEB,03/05/2016,24.30
HOUSING MANAGEMENT SERVICES,Horticultural-Other,PRETTY PETALS,03/05/2016,31.25
HOUSING MANAGEMENT SERVICES,Charges and Penalties,SGN CONNECTIONS,03/05/2016,554.40
HOUSING MANAGEMENT SERVICES,Use of Public Transport,LUL TICKET MACHINE,03/05/2016,155.00
HOUSING MANAGEMENT SERVICES,Use of Public Transport,LUL TICKET MACHINE,03/05/2016,50.00
HOUSING CAPITAL & ASSET MANAGEMENT,HMRC Fees,HMCOURTS-SERVICE.G,03/05/2016,260.00
INTEGRATED DISABILITY,Financial Services,BRIXTON FOOD AND WINE,04/05/2016,100.00
BALANCE SHEET,VAT,TESCO STORES 6791,04/05/2016,0.50
BALANCE SHEET,VAT,DAILY.CO.UK,04/05/2016,22.76
BALANCE SHEET,VAT,NATIONBUILDER,04/05/2016,0.00
QUALITY ASSURANCE & PERFORMANCE,Travel/Subsistence,LUL TICKET MACHINE,04/05/2016,50.00
QUALITY ASSURANCE & PERFORMANCE,Travel/Subsistence,OYSTER AUTOTOPUP,04/05/2016,40.00
QUALITY ASSURANCE & PERFORMANCE,Travel/Subsistence,OYSTER AUTOTOPUP,04/05/2016,40.00
QUALITY ASSURANCE & PERFORMANCE,Travel/Subsistence,OYSTER BUS AUTOTOP,04/05/2016,40.00
QUALITY ASSURANCE & PERFORMANCE,Travel/Subsistence,OYSTER BUS AUTOTOP,04/05/2016,40.00
QUALITY ASSURANCE & PERFORMANCE,Travel/Subsistence,VIRGINTRAINSEC SERVCS,04/05/2016,48.60
LIBRARIES & ARCHIVE,Books/Publications/Resources,AMAZON MKTPLACE PMTS,04/05/2016,16.12
LIBRARIES & ARCHIVE,Education-Arts/Crafts,Amazon UK Marketplace,04/05/2016,9.90
LIBRARIES & ARCHIVE,Catering Food & Drink,TESCO STORES 6791,04/05/2016,7.27
LIBRARIES & ARCHIVE,Education-Library Books,Amazon UK Marketplace,04/05/2016,7.96
FINANCIAL PLANNING AND MANAGEMENT,Use of Public Transport,TRAINLINE,04/05/2016,83.13
POLICY & COMMUNICATIONS,Use of Public Transport,TRAINLINE,04/05/2016,60.08
POLICY & COMMUNICATIONS,IT Services,DAILY.CO.UK,04/05/2016,113.78
POLICY & COMMUNICATIONS,IT Services,NATIONBUILDER,04/05/2016,34.89
DAY CENTRES,Financial Services,COSTCO,05/05/2016,60.00
INTEGRATED DISABILITY,Financial Services,CASH ADVANCE FEE,05/05/2016,2.95
INTEGRATED DISABILITY,Catering Food & Drink,ASDA STORES LTD 5871,05/05/2016,77.12
INTEGRATED DISABILITY,Catering Food & Drink,TESCO STORE 2764,05/05/2016,11.25
OTHER - ADULTS,Banquet & Catering,WWW.EVENTSUPPLIES.CO.U,05/05/2016,189.60
OTHER - ADULTS,Catering Food & Drink,TESCO STORES 5999,05/05/2016,77.14
OTHER - ADULTS,Catering Food & Drink,TESCO STORES 5999,05/05/2016,46.12
OTHER - ADULTS,Domestic Goods-Other,ARGOS RETAIL GROUP,05/05/2016,126.95
OTHER - ADULTS,Domestic Goods-Other,Amazon UK Marketplace,05/05/2016,83.33
OTHER - ADULTS,Domestic Goods-Other,Amazon UK Marketplace,05/05/2016,-34.18
OTHER - ADULTS,Education-Library Books,Amazon UK Marketplace,05/05/2016,72.39
OTHER - ADULTS,Education-Other,MARY WARD CENTRE,05/05/2016,21.00
OTHER - ADULTS,Facilities-Printing,Amazon UK Retail,05/05/2016,37.29
BALANCE SHEET,VAT,Amazon UK Marketplace,05/05/2016,3.56
BALANCE SHEET,VAT,Amazon UK Marketplace,05/05/2016,2.69
BALANCE SHEET,VAT,Amazon UK Retail,05/05/2016,7.45
CHILDREN SAFEGUARDING & ASSESSMENTS,Financial Services,GRO HM PASSPORT OFFICE,05/05/2016,64.75
CHILDREN SAFEGUARDING & ASSESSMENTS,Financial Services,GRO HM PASSPORT OFFICE,05/05/2016,-9.25
CHILDREN SAFEGUARDING & ASSESSMENTS,Financial Services,GRO HM PASSPORT OFFICE,05/05/2016,-18.50
LIBRARIES & ARCHIVE,Education-Library Books,"Amazon Svcs Europe,SAR",05/05/2016,37.62
LIBRARIES & ARCHIVE,Education-Library Books,Amazon UK Retail,05/05/2016,10.30
LIBRARIES & ARCHIVE,Food/refreshment - meetings,CASH ADVANCE FEE,05/05/2016,2.95
LIBRARIES & ARCHIVE,Food/refreshment - meetings,HSBC/CROYDON NE E2,05/05/2016,100.00
LIBRARIES & ARCHIVE,Education-Library Books,Amazon UK Marketplace,05/05/2016,23.75
LIBRARIES & ARCHIVE,Education-Library Books,Amazon UK Marketplace,05/05/2016,43.70
LIBRARIES & ARCHIVE,Education-Library Books,Amazon UK Marketplace,05/05/2016,28.39
LIBRARIES & ARCHIVE,Education-Library Books,Amazon UK Marketplace,05/05/2016,1.92
LIBRARIES & ARCHIVE,Education-Library Books,Amazon UK Marketplace,05/05/2016,10.80
LIBRARIES & ARCHIVE,Education-Library Books,Amazon UK Marketplace,05/05/2016,2.81
LIBRARIES & ARCHIVE,Education-Library Books,Amazon UK Retail,05/05/2016,15.61
LIBRARIES & ARCHIVE,Education-Library Books,Amazon UK Retail,05/05/2016,30.99
LIBRARIES & ARCHIVE,Education-Library Books,Amazon UK Retail,05/05/2016,7.69
LIBRARIES & ARCHIVE,Stationery,WWW.LABELPLANET.CO.UK,05/05/2016,150.00
LIBRARIES & ARCHIVE,Books/Publications/Resources,Amazon UK Marketplace,05/05/2016,29.39
SCHOOL & EDUCATION IMPROVEMENT SERVICE,Domestic Goods-Other,Amazon UK Marketplace,05/05/2016,7.89
REVENUE & BENEFITS,Legal Services-Other,HMCOURTS-SERVICE.G,05/05/2016,"15,090.00"
BUSINESS TRANSFORMATION,Taxi Fares,WWW.ADDISONLEE.COM,05/05/2016,11.60
BUSINESS TRANSFORMATION,Taxi Fares,WWW.ADDISONLEE.COM,05/05/2016,8.95
CORPORATE AFFAIRS,Legal Services-General Support,WH SMITH,05/05/2016,240.00
CORPORATE AFFAIRS,Legal Services-General Support,WWW.WILMINGTON.CO.,05/05/2016,780.00
INTERNAL AUDIT,Domestic Goods-Other,Amazon UK Marketplace,05/05/2016,62.93
DAY CENTRES,Travel/Subsistence,OYSTER BUS AUTOTOP,06/05/2016,20.00
DAY CENTRES,Catering Food & Drink,MN WEST NORWOOD HALAL,06/05/2016,100.00
DAY CENTRES,Financial Services,COSTCO,06/05/2016,100.00
DAY CENTRES,Financial Services-Banking,CASH ADVANCE FEE,06/05/2016,2.95
CHILDREN LOOKED AFTER,Travel/Subsistence,CRYSTAL TRAVEL,06/05/2016,"1,694.22"
CHILDREN SAFEGUARDING & ASSESSMENTS,Travel/Subsistence,OYSTER RENEW WEB,06/05/2016,25.00
LIBRARIES & ARCHIVE,Travel/Subsistence,OYSTER BUS AUTOTOP,06/05/2016,40.00
BALANCE SHEET,VAT,TESCO STORES 5459,07/05/2016,0.70
LIBRARIES & ARCHIVE,Catering Food & Drink,TESCO STORES 5459,07/05/2016,4.00
NEIGHBOURHOODS,Stationery,RYMAN 1157,07/05/2016,6.98
NEIGHBOURHOODS,Stationery,Amazon UK Marketplace,07/05/2016,28.14
NEIGHBOURHOODS,Stationery,VISTAPR*VistaPrint.uk,07/05/2016,364.78
NEIGHBOURHOODS,Use of Public Transport,TL&GN RAILWAY WEB,07/05/2016,30.50
LIBRARIES & ARCHIVE,Books/Publications/Resources,Amazon UK Retail,08/05/2016,7.23
DAY CENTRES,Financial Services,SAIN - BRIXTON,09/05/2016,250.00
DAY CENTRES,Financial Services-Banking,CASH ADVANCE FEE,09/05/2016,2.95
LIBRARIES & ARCHIVE,Books/Publications/Resources,Amazon UK Marketplace,09/05/2016,1.24
LIBRARIES & ARCHIVE,Books/Publications/Resources,Amazon UK Marketplace,09/05/2016,9.99
LIBRARIES & ARCHIVE,Domestic Goods-Other,Amazon UK Marketplace,09/05/2016,49.16
INTERNAL AUDIT,Travel/Subsistence,TFL CC/LEZ CHARGE,09/05/2016,11.50
DAY CENTRES,Financial Services,CASH ADVANCE FEE,10/05/2016,7.38
BALANCE SHEET,VAT,CAMPBELL ASSOCIATE,10/05/2016,43.68
BALANCE SHEET,VAT,CAMPBELL ASSOCIATE,10/05/2016,27.95
BALANCE SHEET,VAT,ARGOS RETAIL GROUP,10/05/2016,20.99
BALANCE SHEET,VAT,WWW.BONDSOLON.COM,10/05/2016,51.00
CHILDREN LOOKED AFTER,Domestic Goods-Other,ARGOS RETAIL GROUP,10/05/2016,124.94
CHILDREN LOOKED AFTER,Building-Floors,CARPET CORNER,10/05/2016,300.00
CHILDREN LOOKED AFTER,Building-Floors,CARPETRIGHT,10/05/2016,88.71
CHILDREN LOOKED AFTER,Domestic Goods-Other,AO RETAIL LIMITED,10/05/2016,"1,011.98"
CHILDREN LOOKED AFTER,Domestic Goods-Other,CURRYS ONLINE,10/05/2016,514.96
CHILDREN LOOKED AFTER,Facilities-Market Research,WAYFAIR.CO.UK,10/05/2016,87.99
CHILDREN LOOKED AFTER,Facilities-Storage,ACCESS SELF STORAG,10/05/2016,93.44
CHILDREN LOOKED AFTER,Financial Services,DARTFORD BOROUGH COUNC,10/05/2016,388.48
CHILDREN LOOKED AFTER,Financial Services,GUINNESS NORTHERN,10/05/2016,160.00
CHILDREN LOOKED AFTER,Financial Services,LBL NOT PRESENT,10/05/2016,129.73
CHILDREN LOOKED AFTER,Furniture-Domestic Furniture,IKEA ONLINE,10/05/2016,924.00
CHILDREN LOOKED AFTER,Furniture-Domestic Furniture,WORLDSTORES LTD,10/05/2016,-84.99
CHILDREN SAFEGUARDING & ASSESSMENTS,Financial Services,GRO HM PASSPORT OFFICE,10/05/2016,23.40
LIBRARIES & ARCHIVE,Domestic Goods-Other,Amazon UK Marketplace,10/05/2016,49.90
LIBRARIES & ARCHIVE,Education-Other,Amazon UK Marketplace,10/05/2016,52.40
REVENUE & BENEFITS,Consultancy-Business,CRAZY EGG.COM,10/05/2016,420.61
INTERNAL AUDIT,Education-Other,WWW.BONDSOLON.COM,10/05/2016,255.00
POLICY & COMMUNICATIONS,Catering Food & Drink,VILLAGE MASALEH,10/05/2016,"1,000.00"
POLICY & COMMUNICATIONS,Catering Food & Drink,VILLAGE MASALEH,10/05/2016,875.00
HOUSING MANAGEMENT SERVICES,Environmental Services-Forensic,CAMPBELL ASSOCIATE,10/05/2016,139.73
HOUSING MANAGEMENT SERVICES,Legal Services-Other,CAMPBELL ASSOCIATE,10/05/2016,218.38
HOUSING CAPITAL & ASSET MANAGEMENT,HMRC Fees,HMCOURTS-SERVICE.G,10/05/2016,160.00
INTEGRATED DISABILITY,Catering Food & Drink,ASDA STORES LTD 5871,11/05/2016,35.27
PUBLIC HEALTH - ADULTS,Conference Expenses,WESTMINSTER FORUM,11/05/2016,252.00
PUBLIC HEALTH - ADULTS,IT Software-Customised,PATHWAY ANALYITCS,11/05/2016,540.00
BALANCE SHEET,VAT,Amazon UK Retail,11/05/2016,4.83
BALANCE SHEET,VAT,ARGOS,11/05/2016,2.33
BALANCE SHEET,VAT,Amazon UK Retail,11/05/2016,14.69
YOUTH OFFENDING SERVICE,Domestic Goods-Other,ARGOS,11/05/2016,11.66
YOUTH OFFENDING SERVICE,Furniture-Office Furniture,Amazon UK Retail,11/05/2016,73.46
YOUTH OFFENDING SERVICE,Travel/Subsistence,BRIXTONHILL EXPRESS,11/05/2016,50.00
LIBRARIES & ARCHIVE,Books/Publications/Resources,Amazon UK Marketplace,11/05/2016,7.99
LIBRARIES & ARCHIVE,Books/Publications/Resources,Amazon UK Marketplace,11/05/2016,20.70
LIBRARIES & ARCHIVE,Books/Publications/Resources,Amazon UK Retail,11/05/2016,26.39
LIBRARIES & ARCHIVE,Domestic Goods-Other,Amazon UK Marketplace,11/05/2016,13.79
LIBRARIES & ARCHIVE,Books/Publications/Resources,Amazon UK Marketplace,11/05/2016,15.59
HOUSING CAPITAL & ASSET MANAGEMENT,Legal Services-Other,HMCOURTS-SERVICE.G,11/05/2016,320.00
OTHER - ADULTS,Catering Food & Drink,TESCO STORE 2821,12/05/2016,41.76
OTHER - ADULTS,Catering Food & Drink,TESCO STORES 5999,12/05/2016,59.26
OTHER - ADULTS,Domestic Goods-Other,ARGOS RETAIL GROUP,12/05/2016,242.88
BALANCE SHEET,VAT,BRITISH GAS BUSINE,12/05/2016,42.00
PROPERTY & FINANCIAL TRANSACTION SERVICES,Utilities,BRITISH GAS BUSINE,12/05/2016,168.00
FINANCIAL PLANNING AND MANAGEMENT,Use of Public Transport,LUL TICKET MACHINE,12/05/2016,20.00
CHILDREN SAFEGUARDING & ASSESSMENTS,Accommodation,TRAVELODGE WEBSITE,13/05/2016,558.00
CHILDREN SAFEGUARDING & ASSESSMENTS,Domestic Goods-Other,ARGOS DIRECT,13/05/2016,40.93
LIBRARIES & ARCHIVE,Books/Publications/Resources,Amazon UK Marketplace,13/05/2016,41.89
PROPERTY & FINANCIAL TRANSACTION SERVICES,Travel/Subsistence,OYSTER AUTOTOPUP,13/05/2016,20.00
CHILDREN SAFEGUARDING & ASSESSMENTS,Travel/Subsistence,NATIONAL EXPRESS LIMITED,14/05/2016,37.50
LIBRARIES & ARCHIVE,Education-Other,Amazon UK Retail,14/05/2016,9.99
INTERNAL AUDIT,Education-Library Books,Amazon UK Marketplace,16/05/2016,15.24
OTHER - ADULTS,Catering Food & Drink,TESCO STORES 5999,17/05/2016,34.98
OTHER - ADULTS,Domestic Goods-Other,Amazon UK Marketplace,17/05/2016,1.65
OTHER - ADULTS,Domestic Goods-Other,Amazon UK Marketplace,17/05/2016,7.43
OTHER - ADULTS,Domestic Goods-Other,Amazon UK Marketplace,17/05/2016,4.90
OTHER - ADULTS,Domestic Goods-Other,Amazon UK Marketplace,17/05/2016,13.85
OTHER - ADULTS,Domestic Goods-Other,Amazon UK Retail,17/05/2016,6.66
BALANCE SHEET,VAT,Amazon UK Retail,17/05/2016,1.32
BALANCE SHEET,VAT,MENDIP DISTRICT COUNCI,17/05/2016,23.93
CHILDREN SAFEGUARDING & ASSESSMENTS,Domestic Goods-Other,ARGOS DIRECT,17/05/2016,103.94
LIBRARIES & ARCHIVE,Books/Publications/Resources,Amazon UK Marketplace,17/05/2016,-7.99
SCHOOL & EDUCATION IMPROVEMENT SERVICE,Catering Food & Drink,SAINSBURYS S/MKTS,17/05/2016,2.20
SCHOOL & EDUCATION IMPROVEMENT SERVICE,Domestic Goods-Other,POUNDLAND LTD,17/05/2016,9.05
SCHOOL & EDUCATION IMPROVEMENT SERVICE,Domestic Goods-Other,POUNDLAND LTD 1203,17/05/2016,3.20
SCHOOL & EDUCATION IMPROVEMENT SERVICE,Domestic Goods-Other,POUNDLAND LTD 1203,17/05/2016,2.00
HOUSING MANAGEMENT SERVICES,Building-Others,MENDIP DISTRICT COUNCI,17/05/2016,119.63
HOUSING CAPITAL & ASSET MANAGEMENT,Legal Services-Other,HMCOURTS-SERVICE.G,17/05/2016,360.00
LIBRARIES & ARCHIVE,Books/Publications/Resources,Amazon UK Marketplace,18/05/2016,-20.70
LIBRARIES & ARCHIVE,Education-Other,Amazon UK Retail,18/05/2016,-0.01
"WELFARE, EMPLOYMENT & SKILLS",Books/Publications/Resources,VUE*NCS CITB HS&E TEST,18/05/2016,19.50
"WELFARE, EMPLOYMENT & SKILLS",Stationery,WWW.VIKING-DIRECT.CO.U,18/05/2016,662.03
"WELFARE, EMPLOYMENT & SKILLS",Use of Public Transport,LUL TICKET MACHINE,18/05/2016,24.10
"WELFARE, EMPLOYMENT & SKILLS",Use of Public Transport,OYSTER RENEW WEB,18/05/2016,48.20
INTEGRATED DISABILITY,Travel/Subsistence,NEWS AT NINE,19/05/2016,200.00
CHILDREN SAFEGUARDING & ASSESSMENTS,Legal Services-Other,HMCOURTS-SERVICE.G,19/05/2016,15.00
LIBRARIES & ARCHIVE,Education-Library Books,Amazon UK Marketplace,19/05/2016,9.43
LIBRARIES & ARCHIVE,Education-Library Books,Amazon UK Marketplace,19/05/2016,31.50
LIBRARIES & ARCHIVE,Education-Library Books,Amazon UK Marketplace,19/05/2016,16.30
LIBRARIES & ARCHIVE,Education-Library Books,Amazon UK Retail,19/05/2016,-7.69
LIBRARIES & ARCHIVE,Education-Library Books,Amazon UK Retail,19/05/2016,15.50
LIBRARIES & ARCHIVE,Education-Library Books,Amazon UK Retail,19/05/2016,9.03
LIBRARIES & ARCHIVE,Travel/Subsistence,OYSTER BUS AUTOTOP,19/05/2016,20.00
HOMES & COMMUNITIES (HRA),Conference Expenses,WWW.ADDISONLEE.COM,19/05/2016,25.08
DAY CENTRES,Catering Food & Drink,TESCO STORE 2764,20/05/2016,37.14
DAY CENTRES,Financial Services,ROYAL BANK UK /,20/05/2016,400.00
MENTAL HEALTH,Accommodation,TRAVELODGE AGENT,20/05/2016,345.72
MENTAL HEALTH,Accommodation,TRAVELODGE AGENT,20/05/2016,401.83
MENTAL HEALTH,Accommodation,TRAVELODGE AGENT,20/05/2016,362.38
MENTAL HEALTH,Accommodation,TRAVELODGE AGENT,20/05/2016,438.30
MENTAL HEALTH,Accommodation,TRAVELODGE AGENT,20/05/2016,386.83
MENTAL HEALTH,Financial Services,SANTANDER PLC (UK),20/05/2016,100.00
MENTAL HEALTH,Financial Services-Banking,CASH ADVANCE FEE,20/05/2016,2.95
MENTAL HEALTH,Legal Services-Other,HMCOURTS-SERVICE.G,20/05/2016,40.00
MENTAL HEALTH,Legal Services-Other,HMCOURTS-SERVICE.G,20/05/2016,60.00
MENTAL HEALTH,Legal Services-Other,HMCOURTS-SERVICE.G,20/05/2016,20.00
MENTAL HEALTH,Legal Services-Other,HMCOURTS-SERVICE.G,20/05/2016,60.00
MENTAL HEALTH,Legal Services-Other,HMCOURTS-SERVICE.G,20/05/2016,40.00
MENTAL HEALTH,Legal Services-Other,HMCOURTS-SERVICE.G,20/05/2016,20.00
MENTAL HEALTH,Legal Services-Other,HMCOURTS-SERVICE.G,20/05/2016,40.00
MENTAL HEALTH,Taxi Fares,WWW.ADDISONLEE.COM,20/05/2016,152.96
MENTAL HEALTH,Travel/Subsistence,CATFORD STATION,20/05/2016,80.90
MENTAL HEALTH,Travel/Subsistence,LONDON & SOUTH EAS,20/05/2016,34.00
MENTAL HEALTH,Travel/Subsistence,LONDON & SOUTH EAS,20/05/2016,52.20
MENTAL HEALTH,Travel/Subsistence,OYSTER AUTOTOPUP,20/05/2016,20.00
BALANCE SHEET,VAT,POST OFFICE COUNTER,20/05/2016,0.29
BALANCE SHEET,VAT,TRAVELODGE AGENT,20/05/2016,65.58
BALANCE SHEET,VAT,TRAVELODGE AGENT,20/05/2016,75.92
BALANCE SHEET,VAT,TRAVELODGE AGENT,20/05/2016,68.92
BALANCE SHEET,VAT,TRAVELODGE AGENT,20/05/2016,72.92
BALANCE SHEET,VAT,WWW.ADDISONLEE.COM,20/05/2016,30.59
BALANCE SHEET,VAT,HEMMING GROUP LTD,20/05/2016,49.80
CHILDREN LEGAL SERVICES,Domestic Goods-Other,CENTRAL AV LTD,20/05/2016,192.00
CHILDREN LOOKED AFTER,Domestic Goods-Other,ARGOS RETAIL GROUP,20/05/2016,358.93
CHILDREN LOOKED AFTER,Domestic Goods-Other,ARGOS RETAIL GROUP,20/05/2016,953.51
CHILDREN LOOKED AFTER,Financial Services,HM PASSPORT OFFICE,20/05/2016,72.50
CHILDREN LOOKED AFTER,Furniture-Domestic Furniture,DREAMS LTD,20/05/2016,467.00
CHILDREN SAFEGUARDING & ASSESSMENTS,Financial Services,LAMBETH INTERNET PAYM,20/05/2016,14.23
CHILDREN SAFEGUARDING & ASSESSMENTS,Travel/Subsistence,OYSTER RENEW WEB,20/05/2016,25.00
CHILDREN SAFEGUARDING & ASSESSMENTS,Travel/Subsistence,DIAL-A-FLIGHT,20/05/2016,686.61
CHILDREN SAFEGUARDING & ASSESSMENTS,Travel/Subsistence,DIAL-A-FLIGHT,20/05/2016,880.88
CHILDREN SAFEGUARDING & ASSESSMENTS,Travel/Subsistence,DIAL-A-FLIGHT,20/05/2016,880.88
CHILDREN SAFEGUARDING & ASSESSMENTS,Travel/Subsistence,EXPEDIA 112047892001,20/05/2016,"1,398.00"
QUALITY ASSURANCE & PERFORMANCE,Childcare Services,LOVE2SHOP.CO.UK,20/05/2016,10.99
QUALITY ASSURANCE & PERFORMANCE,Financial Services,GLOS COUNTY COUNCIL,20/05/2016,25.00
QUALITY ASSURANCE & PERFORMANCE,Travel/Subsistence,OYSTER BUS AUTOTOP,20/05/2016,40.00
QUALITY ASSURANCE & PERFORMANCE,Travel/Subsistence,OYSTER BUS AUTOTOP,20/05/2016,40.00
QUALITY ASSURANCE & PERFORMANCE,Travel/Subsistence,OYSTER BUS AUTOTOP,20/05/2016,40.00
QUALITY ASSURANCE & PERFORMANCE,Travel/Subsistence,VIRGINTRAINSEC SERVCS,20/05/2016,13.70
QUALITY ASSURANCE & PERFORMANCE,Travel/Subsistence,VIRGINTRAINSEC SERVCS,20/05/2016,155.70
QUALITY ASSURANCE & PERFORMANCE,Travel/Subsistence,VIRGINTRAINSEC SERVCS,20/05/2016,13.50
QUALITY ASSURANCE & PERFORMANCE,Travel/Subsistence,VIRGINTRAINSEC SERVCS,20/05/2016,77.50
QUALITY ASSURANCE & PERFORMANCE,Travel/Subsistence,VIRGINTRAINSEC SERVCS,20/05/2016,26.60
LIBRARIES & ARCHIVE,Catering Food & Drink,ELM PARK DAIRY,20/05/2016,8.63
REVENUE & BENEFITS,Facilities-Market Research,HEMMING GROUP LTD,20/05/2016,249.00
INTERNAL AUDIT,Travel/Subsistence,GOV.UK/DART-CHARGE,20/05/2016,5.00
INTERNAL AUDIT,Travel/Subsistence,OYSTER AUTOTOPUP,20/05/2016,20.00
INTERNAL AUDIT,Travel/Subsistence,OYSTER AUTOTOPUP,20/05/2016,40.00
INTERNAL AUDIT,Travel/Subsistence,OYSTER AUTOTOPUP,20/05/2016,40.00
INTERNAL AUDIT,Travel/Subsistence,OYSTER AUTOTOPUP,20/05/2016,40.00
INTERNAL AUDIT,Travel/Subsistence,OYSTER AUTOTOPUP,20/05/2016,20.00
INTERNAL AUDIT,Travel/Subsistence,OYSTER AUTOTOPUP,20/05/2016,20.00
INTERNAL AUDIT,Travel/Subsistence,OYSTER AUTOTOPUP,20/05/2016,40.00
INTERNAL AUDIT,Travel/Subsistence,OYSTER AUTOTOPUP,20/05/2016,40.00
INTERNAL AUDIT,Travel/Subsistence,OYSTER AUTOTOPUP,20/05/2016,40.00
INTERNAL AUDIT,Travel/Subsistence,OYSTER AUTOTOPUP,20/05/2016,20.00
INTERNAL AUDIT,Travel/Subsistence,OYSTER AUTOTOPUP,20/05/2016,80.00
INTERNAL AUDIT,Travel/Subsistence,OYSTER BUS AUTOTOP,20/05/2016,40.00
INTERNAL AUDIT,Travel/Subsistence,OYSTER BUS AUTOTOP,20/05/2016,20.00
INTERNAL AUDIT,Travel/Subsistence,OYSTER BUS AUTOTOP,20/05/2016,40.00
INTERNAL AUDIT,Travel/Subsistence,OYSTER BUS AUTOTOP,20/05/2016,20.00
INTERNAL AUDIT,Travel/Subsistence,OYSTER ISSUE WEB,20/05/2016,30.00
POLICY & COMMUNICATIONS,IT Software,PC WORLD,20/05/2016,14.99
HOUSING MANAGEMENT SERVICES,Mail Services-Postage,POST OFFICE COUNTER,20/05/2016,1.45
DAY CENTRES,Catering Equipment,Amazon UK Marketplace,22/05/2016,27.77
LIBRARIES & ARCHIVE,Education-Library Books,Amazon UK Retail,22/05/2016,44.75
INTEGRATED DISABILITY,Financial Services,CASH ADVANCE FEE,23/05/2016,11.80
BALANCE SHEET,VAT,WWW.POSTURITE.CO.UK,23/05/2016,29.00
BALANCE SHEET,VAT,CUE MEDIA LTD,23/05/2016,64.80
BALANCE SHEET,VAT,HOOTSUITE MEDIA INC.,23/05/2016,0.00
BALANCE SHEET,VAT,PANTHEON,23/05/2016,0.00
BALANCE SHEET,VAT,THORNSGROUP.CO.UK,23/05/2016,88.60
BALANCE SHEET,VAT,WESTMINSTER FORUM,23/05/2016,42.00
BALANCE SHEET,VAT,WPCHRG.COM,23/05/2016,0.00
BALANCE SHEET,VAT,WWW.BMCOACHES.CO.UK,23/05/2016,0.00
BALANCE SHEET,VAT,TRAVELODGE WEBSITE,23/05/2016,15.00
BALANCE SHEET,VAT,SOUND IN THE CITY,23/05/2016,60.00
LIBRARIES & ARCHIVE,Education-Other,SOUND IN THE CITY,23/05/2016,300.00
ADVENTURE PLAYGROUNDS & ONE O'CLOCK CLUBS,Furniture-Office Furniture,WWW.POSTURITE.CO.UK,23/05/2016,144.99
REVENUE & BENEFITS,Accommodation,TRAVELODGE WEBSITE,23/05/2016,75.00
POLICY & COMMUNICATIONS,Financial Services,THORNSGROUP.CO.UK,23/05/2016,15.95
POLICY & COMMUNICATIONS,Furniture-Domestic Furniture,THORNSGROUP.CO.UK,23/05/2016,443.00
POLICY & COMMUNICATIONS,IT Services,CUE MEDIA LTD,23/05/2016,324.00
POLICY & COMMUNICATIONS,Consultancy-Other,WESTMINSTER FORUM,23/05/2016,210.00
POLICY & COMMUNICATIONS,IT Services,HOOTSUITE MEDIA INC.,23/05/2016,5.15
POLICY & COMMUNICATIONS,IT Services,PANTHEON,23/05/2016,17.69
POLICY & COMMUNICATIONS,IT Services,WPCHRG.COM,23/05/2016,250.00
POLICY & COMMUNICATIONS,Vehicle Hire,WWW.BMCOACHES.CO.UK,23/05/2016,225.00
DAY CENTRES,Catering Equipment,CS-CATERING-EQ,24/05/2016,266.40
PUBLIC HEALTH - ADULTS,Healthcare Services,BUCKINGHAM HOSP NHS TR,24/05/2016,749.45
PUBLIC HEALTH - ADULTS,Healthcare Services,CCI LEGAL SERVICES PP,24/05/2016,195.88
PUBLIC HEALTH - ADULTS,Healthcare Services,COUNTY DURHAM & DARLIN,24/05/2016,143.89
PUBLIC HEALTH - ADULTS,Healthcare Services,EAST SUSSEX HEALTHCARE N,24/05/2016,286.08
PUBLIC HEALTH - ADULTS,Healthcare Services,EAST SUSSEX HEALTHCARE N,24/05/2016,107.54
PUBLIC HEALTH - ADULTS,Healthcare Services,FINACE DEPARTMENT,24/05/2016,138.17
PUBLIC HEALTH - ADULTS,Healthcare Services,FINANCE DEPT RUH,24/05/2016,126.09
PUBLIC HEALTH - ADULTS,Healthcare Services,FRIMLEY PARK NHS CASH,24/05/2016,316.00
PUBLIC HEALTH - ADULTS,Healthcare Services,LCC TELEPHONE PAYMENT,24/05/2016,670.00
PUBLIC HEALTH - ADULTS,Healthcare Services,MID ESSEX HOSPITALS-FINC,24/05/2016,144.00
PUBLIC HEALTH - ADULTS,Healthcare Services,N H S TRUST,24/05/2016,153.27
PUBLIC HEALTH - ADULTS,Healthcare Services,NHS SBS,24/05/2016,251.48
PUBLIC HEALTH - ADULTS,Healthcare Services,TORBAY&SOUTH DEVON NHS,24/05/2016,132.78
PUBLIC HEALTH - ADULTS,Healthcare Services,UHB TREASURY,24/05/2016,140.00
PUBLIC HEALTH - ADULTS,Healthcare Services,UHB TREASURY,24/05/2016,655.00
PUBLIC HEALTH - ADULTS,Healthcare Services,WALSALL HOSP GENERAL,24/05/2016,242.00
CHILDREN LOOKED AFTER,Financial Services,HM PASSPORT OFFICE,24/05/2016,46.00
CHILDREN LOOKED AFTER,Financial Services,HM PASSPORT OFFICE,24/05/2016,46.00
LIBRARIES & ARCHIVE,Books/Publications/Resources,NATIONWIDE /W0278Z,24/05/2016,150.00
HOUSING CAPITAL & ASSET MANAGEMENT,HMRC Fees,HMCOURTS-SERVICE.G,24/05/2016,120.00
HOUSING CAPITAL & ASSET MANAGEMENT,HMRC Fees,HMCOURTS-SERVICE.G,24/05/2016,80.00
DAY CENTRES,Travel/Subsistence,OYSTER AUTOTOPUP,25/05/2016,20.00
DAY CENTRES,Travel/Subsistence,OYSTER AUTOTOPUP,25/05/2016,20.00
BALANCE SHEET,VAT,WWW.POSTURITE.CO.UK,25/05/2016,16.98
BALANCE SHEET,VAT,MAJESTIC HOTEL,25/05/2016,36.33
CHILDREN LOOKED AFTER,Financial Services,GRO HM PASSPORT OFFICE,25/05/2016,27.75
LIBRARIES & ARCHIVE,Books/Publications/Resources,CASH ADVANCE FEE,25/05/2016,4.43
LIBRARIES & ARCHIVE,Catering Food & Drink,CASH ADVANCE FEE,25/05/2016,5.90
LIBRARIES & ARCHIVE,Catering Food & Drink,NATWEST BANK /,25/05/2016,200.00
LIBRARIES & ARCHIVE,Education-Library Books,"Amazon Svcs Europe,SAR",25/05/2016,18.78
LIBRARIES & ARCHIVE,Education-Library Books,Amazon UK Marketplace,25/05/2016,5.81
REVENUE & BENEFITS,Accommodation,MAJESTIC HOTEL,25/05/2016,181.67
REVENUE & BENEFITS,Travel/Subsistence,LONDON & SOUTH EAS,25/05/2016,107.50
HOUSING MANAGEMENT SERVICES,Domestic Goods-Other,Amazon UK Marketplace,25/05/2016,55.95
HOUSING MANAGEMENT SERVICES,Furniture-Office Furniture,WWW.POSTURITE.CO.UK,25/05/2016,84.90
HOUSING MANAGEMENT SERVICES,Travel/Subsistence,LUL TICKET MACHINE,25/05/2016,150.00
HOUSING MANAGEMENT SERVICES,Travel/Subsistence,LUL TICKET MACHINE,25/05/2016,100.00
HOUSING MANAGEMENT SERVICES,Travel/Subsistence,LUL TICKET MACHINE,25/05/2016,100.00
HOUSING CAPITAL & ASSET MANAGEMENT,Legal Services-Other,HMCOURTS-SERVICE.G,25/05/2016,160.00
MENTAL HEALTH,Accommodation,TRAVELODGE AGENT,26/05/2016,632.02
MENTAL HEALTH,Accommodation,TRAVELODGE AGENT,26/05/2016,775.33
MENTAL HEALTH,Legal Services-Other,HMCOURTS-SERVICE.G,26/05/2016,40.00
MENTAL HEALTH,Legal Services-Other,HMCOURTS-SERVICE.G,26/05/2016,20.00
MENTAL HEALTH,Travel/Subsistence,LONDON & SOUTH EAS,26/05/2016,27.50
MENTAL HEALTH,Travel/Subsistence,OYSTER AUTOTOPUP,26/05/2016,20.00
OTHER - ADULTS,Catering Food & Drink,TESCO STORES 5999,26/05/2016,74.88
OTHER - ADULTS,Domestic Goods-Other,Amazon UK Marketplace,26/05/2016,16.74
OTHER - ADULTS,Facilities-Printing,Amazon UK Retail,26/05/2016,28.49
OTHER - ADULTS,Professional & Advisory Services,SKR*one-training.org.uk,26/05/2016,96.00
BALANCE SHEET,VAT,B&Q DIRECT,26/05/2016,10.17
BALANCE SHEET,Personal,Amazon UK Retail,26/05/2016,-3.96
BALANCE SHEET,VAT,Amazon UK Retail,26/05/2016,6.49
BALANCE SHEET,VAT,TRAVELODGE AGENT,26/05/2016,123.73
BALANCE SHEET,VAT,TRAVELODGE AGENT,26/05/2016,146.17
CHILDREN LOOKED AFTER,Financial Services,L B SOUTHWARK - INT,26/05/2016,11.50
CHILDREN LOOKED AFTER,Financial Services,LAMBETH INTERNET PAYM,26/05/2016,10.17
CHILDREN LOOKED AFTER,Horticultural-Seeds & Plants,INTERFLORA BRITISH UNI,26/05/2016,51.98
CHILDREN SAFEGUARDING & ASSESSMENTS,Financial Services,GRO HM PASSPORT OFFICE,26/05/2016,140.40
CHILDREN SAFEGUARDING & ASSESSMENTS,Financial Services,LAMBETH INTERNET PAYM,26/05/2016,20.33
CHILDREN SAFEGUARDING & ASSESSMENTS,Financial Services,GRO HM PASSPORT OFFICE,26/05/2016,-46.80
YOUTH OFFENDING SERVICE,Horticultural-Other,B&Q DIRECT,26/05/2016,50.83
YOUTH OFFENDING SERVICE,Legal Services-Other,NSL LTD RE DVLA,26/05/2016,260.00
YOUTH OFFENDING SERVICE,Legal Services-Other,NSL LTD RE DVLA,26/05/2016,-160.00
LIBRARIES & ARCHIVE,Education-Library Books,Amazon UK Marketplace,26/05/2016,12.63
LIBRARIES & ARCHIVE,Education-Library Books,Amazon UK Retail,26/05/2016,96.16
ADVENTURE PLAYGROUNDS & ONE O'CLOCK CLUBS,Domestic Goods-Other,ARGOS RETAIL GROUP,26/05/2016,68.95
ADVENTURE PLAYGROUNDS & ONE O'CLOCK CLUBS,Domestic Goods-Other,ARGOS RETAIL GROUP,26/05/2016,63.92
BALANCE SHEET,VAT,LONDON LEGAL SUPPORT T,27/05/2016,20.70
BALANCE SHEET,VAT,MBL SEMINARS,27/05/2016,48.00
BALANCE SHEET,VAT,CROXTED MOTORS,27/05/2016,16.77
BALANCE SHEET,VAT,Amazon UK Marketplace,27/05/2016,6.66
BALANCE SHEET,VAT,"INFOGRAM SOFTWARE, INC.",27/05/2016,25.66
BALANCE SHEET,VAT,TESCO STORES 5999,27/05/2016,11.37
CHILDREN LOOKED AFTER,Financial Services,HM PASSPORT OFFICE,27/05/2016,46.00
CORPORATE AFFAIRS,Legal Services-Other,LONDON LEGAL SUPPORT T,27/05/2016,103.49
CORPORATE AFFAIRS,Legal Services-Other,MBL SEMINARS,27/05/2016,240.00
CORPORATE AFFAIRS,Stationery,TESCO STORES 5342,27/05/2016,76.80
CORPORATE AFFAIRS,Travel/Subsistence,LUL TICKET MACHINE,27/05/2016,50.00
CORPORATE AFFAIRS,Travel/Subsistence,LUL TICKET MACHINE,27/05/2016,50.00
CORPORATE AFFAIRS,Travel/Subsistence,TRAINLINE,27/05/2016,178.19
FINANCIAL PLANNING AND MANAGEMENT,Professional subscriptions,ACCA,27/05/2016,85.00
FINANCIAL PLANNING AND MANAGEMENT,Financial Services,LAND REGISTRY,27/05/2016,3.00
FINANCIAL PLANNING AND MANAGEMENT,Financial Services,LAND REGISTRY,27/05/2016,6.00
FINANCIAL PLANNING AND MANAGEMENT,Financial Services,LAND REGISTRY,27/05/2016,6.00
FINANCIAL PLANNING AND MANAGEMENT,Travel/Subsistence,OYSTER AUTOTOPUP,27/05/2016,40.00
ENVIRONMENT,Vehicle Fuel,CROXTED MOTORS,27/05/2016,67.09
HOUSING MANAGEMENT SERVICES,Catering Food & Drink,TESCO STORES 5999,27/05/2016,56.85
HOUSING MANAGEMENT SERVICES,IT Consumables,"INFOGRAM SOFTWARE, INC.",27/05/2016,128.33
HOUSING MANAGEMENT SERVICES,IT Hardware,Amazon UK Marketplace,27/05/2016,33.33
CHILDREN SAFEGUARDING & ASSESSMENTS,Domestic Goods-Other,ARGOS DIRECT,28/05/2016,48.95
LIBRARIES & ARCHIVE,Books/Publications/Resources,Amazon UK Retail,28/05/2016,9.99
DAY CENTRES,Financial Services,SAIN - BRIXTON,31/05/2016,200.00
DAY CENTRES,Catering Food & Drink,MN WEST NORWOOD HALAL,31/05/2016,299.13
OTHER - ADULTS,Catering Food & Drink,TESCO STORES 5999,31/05/2016,45.19
BALANCE SHEET,VAT,Amazon UK Marketplace,31/05/2016,4.92
BALANCE SHEET,VAT,TV LICENSING,31/05/2016,24.25
BALANCE SHEET,VAT,MSFT *<E060025LBZ>,31/05/2016,0.42
BALANCE SHEET,VAT,MSFT *<E060029X7Z>,31/05/2016,0.39
QUALITY ASSURANCE & PERFORMANCE,Accommodation,TRAVELODGE WEBSITE,31/05/2016,312.85
QUALITY ASSURANCE & PERFORMANCE,Childcare Services,LOVE2SHOP.CO.UK,31/05/2016,205.95
QUALITY ASSURANCE & PERFORMANCE,Domestic Goods-Other,ARGOS,31/05/2016,59.99
QUALITY ASSURANCE & PERFORMANCE,Financial Services,LAMBETH INTERNET PAYM,31/05/2016,20.33
QUALITY ASSURANCE & PERFORMANCE,Travel/Subsistence,GOV.UK/DART-CHARGE,31/05/2016,5.00
QUALITY ASSURANCE & PERFORMANCE,Travel/Subsistence,NEW SOUTHERN RAILW,31/05/2016,40.00
QUALITY ASSURANCE & PERFORMANCE,Travel/Subsistence,OYSTER AUTOTOPUP,31/05/2016,40.00
QUALITY ASSURANCE & PERFORMANCE,Travel/Subsistence,VIRGINTRAINSEC SERVCS,31/05/2016,50.10
QUALITY ASSURANCE & PERFORMANCE,Travel/Subsistence,VIRGINTRAINSEC SERVCS,31/05/2016,30.70
LIBRARIES & ARCHIVE,Books/Publications/Resources,Amazon UK Marketplace,31/05/2016,109.18
BUSINESS TRANSFORMATION,IT Software,MSFT *<E060025LBZ>,31/05/2016,2.08
BUSINESS TRANSFORMATION,IT Software,MSFT *<E060029X7Z>,31/05/2016,1.98
HOUSING MANAGEMENT SERVICES,Domestic Goods-Other,TV LICENSING,31/05/2016,121.25
DAY CENTRES,Charges and Penalties,CASH ADVANCE FEE,01/06/2016,5.90
CHILDREN LOOKED AFTER,Financial Services,HM PASSPORT OFFICE,01/06/2016,46.00
LIBRARIES & ARCHIVE,Books/Publications/Resources,Amazon UK Marketplace,01/06/2016,6.64
LIBRARIES & ARCHIVE,Domestic Goods-Commercial,Amazon UK Marketplace,01/06/2016,25.08
LIBRARIES & ARCHIVE,Education-Supplies,SUPREME STORES,01/06/2016,332.97
REVENUE & BENEFITS,Organised Activities,J.B.W. GROUP LTD,01/06/2016,512.00
REVENUE & BENEFITS,Organised Activities,J.B.W. GROUP LTD,01/06/2016,-310.00
REVENUE & BENEFITS,Legal Services-Other,HMCOURTS-SERVICE.G,01/06/2016,"14,157.00"
FINANCIAL PLANNING AND MANAGEMENT,Domestic Goods-Other,Amazon UK Marketplace,01/06/2016,143.64
FINANCIAL PLANNING AND MANAGEMENT,Financial Services,LAMBETH INTERNET PAYM,01/06/2016,10.17
"WELFARE, EMPLOYMENT & SKILLS",Books/Publications/Resources,CITB,01/06/2016,30.00
"WELFARE, EMPLOYMENT & SKILLS",Books/Publications/Resources,CITB,01/06/2016,30.00
"WELFARE, EMPLOYMENT & SKILLS",Books/Publications/Resources,CITB,01/06/2016,30.00
"WELFARE, EMPLOYMENT & SKILLS",Books/Publications/Resources,CITB,01/06/2016,30.00
"WELFARE, EMPLOYMENT & SKILLS",Books/Publications/Resources,GEN REGISTER OFFICE NI,01/06/2016,26.20
DAY CENTRES,Catering Food & Drink,JS ONLINE GROCERY,02/06/2016,359.55
BALANCE SHEET,VAT,MAKRO SELF SERVICE CROYDO,02/06/2016,21.45
CHILDREN LOOKED AFTER,Financial Services,HM PASSPORT OFFICE,02/06/2016,46.00
LIBRARIES & ARCHIVE,Education-Library Books,Amazon UK Marketplace,02/06/2016,2.80
LIBRARIES & ARCHIVE,Education-Library Books,Amazon UK Marketplace,02/06/2016,8.35
LIBRARIES & ARCHIVE,Education-Library Books,Amazon UK Marketplace,02/06/2016,-2.39
LIBRARIES & ARCHIVE,Education-Library Books,Amazon UK Marketplace,02/06/2016,22.52
LIBRARIES & ARCHIVE,Education-Library Books,Amazon UK Marketplace,02/06/2016,4.63
LIBRARIES & ARCHIVE,Education-Library Books,Amazon UK Marketplace,02/06/2016,-7.30
LIBRARIES & ARCHIVE,Education-Library Books,Amazon UK Marketplace,02/06/2016,16.69
LIBRARIES & ARCHIVE,Education-Library Books,Amazon UK Marketplace,02/06/2016,2.81
LIBRARIES & ARCHIVE,Education-Library Books,Amazon UK Retail,02/06/2016,-9.03
LIBRARIES & ARCHIVE,Education-Library Books,Amazon UK Retail,02/06/2016,30.94
LIBRARIES & ARCHIVE,Education-Library Books,Amazon UK Retail,02/06/2016,5.49
LIBRARIES & ARCHIVE,Education-Library Books,Amazon UK Retail,02/06/2016,25.17
LIBRARIES & ARCHIVE,Catering Food & Drink,MAKRO SELF SERVICE CROYDO,02/06/2016,107.24
LIBRARIES & ARCHIVE,Education-Library Books,Amazon UK Retail,02/06/2016,41.94
BALANCE SHEET,VAT,SAINSBURY'S S/MKT,03/06/2016,3.29
LIBRARIES & ARCHIVE,Domestic Goods-Other,Amazon UK Marketplace,03/06/2016,13.98
FINANCIAL PLANNING AND MANAGEMENT,Professional & Advisory Services,COMPANIES HOUSE,03/06/2016,13.00
HOUSING MANAGEMENT SERVICES,Cleaning-Internal,SAINSBURY'S S/MKT,03/06/2016,16.46
LIBRARIES & ARCHIVE,Facilities-Advertising,WH SMITH,04/06/2016,144.72
LIBRARIES & ARCHIVE,Facilities-Advertising,WH SMITH,04/06/2016,144.00
LIBRARIES & ARCHIVE,Facilities-Advertising,WH SMITH,04/06/2016,200.00
LIBRARIES & ARCHIVE,Facilities-Advertising,WH SMITH,04/06/2016,145.09
NEIGHBOURHOODS,Stationery,B & Q 1294,04/06/2016,30.00
DAY CENTRES,Catering Food & Drink,ASDA STORES LTD 5871,06/06/2016,40.05
DAY CENTRES,Financial Services,LBG - BANK CASHPOINT,06/06/2016,300.00
BALANCE SHEET,VAT,LAMBETH INTERNET PAYM,06/06/2016,1.69
CHILDREN LOOKED AFTER,Financial Services,CEN BEDS COUNCIL,06/06/2016,63.12
CHILDREN LOOKED AFTER,Professional subscriptions,LAMBETH INTERNET PAYM,06/06/2016,40.66
HOUSING MANAGEMENT SERVICES,Legal Services-Other,LAMBETH INTERNET PAYM,06/06/2016,8.48
HOUSING CAPITAL & ASSET MANAGEMENT,Legal Services-Other,HMCOURTS-SERVICE.G,06/06/2016,320.00
DAY CENTRES,Financial Services-Banking,CASH ADVANCE FEE,07/06/2016,8.85
BALANCE SHEET,VAT,PARK PLAZA RIVERBANK,07/06/2016,81.67
BALANCE SHEET,VAT,PARK PLAZA RIVERBANK,07/06/2016,81.67
BALANCE SHEET,VAT,PARK PLAZA RIVERBANK,07/06/2016,82.06
BALANCE SHEET,VAT,SURVEYMONKEY.COM,07/06/2016,49.83
BALANCE SHEET,VAT,DEMCO EUROPE,07/06/2016,6.81
CHILDREN LOOKED AFTER,Financial Services,LAMBETH INTERNET PAYM,07/06/2016,40.66
CHILDREN SAFEGUARDING & ASSESSMENTS,Financial Services,WWW.WANDSWORTH.GOV.UK,07/06/2016,11.00
EMPLOYMENT & ENTERPRISE - E&L,Accommodation,PARK PLAZA RIVERBANK,07/06/2016,408.33
EMPLOYMENT & ENTERPRISE - E&L,Accommodation,PARK PLAZA RIVERBANK,07/06/2016,408.33
EMPLOYMENT & ENTERPRISE - E&L,Accommodation,PARK PLAZA RIVERBANK,07/06/2016,410.34
EMPLOYMENT & ENTERPRISE - E&L,Catering Food & Drink,SAINSBURYS S/MKTS,07/06/2016,7.09
EMPLOYMENT & ENTERPRISE - E&L,IT Services,SURVEYMONKEY.COM,07/06/2016,249.17
EMPLOYMENT & ENTERPRISE - E&L,Taxi Fares,WWW.ADDISONLEE.COM,07/06/2016,9.05
EMPLOYMENT & ENTERPRISE - E&L,Travel/Subsistence,OYSTER AUTOTOPUP,07/06/2016,20.00
EMPLOYMENT & ENTERPRISE - E&L,Travel/Subsistence,OYSTER AUTOTOPUP,07/06/2016,20.00
EMPLOYMENT & ENTERPRISE - E&L,Travel/Subsistence,OYSTER BUS AUTOTOP,07/06/2016,20.00
LIBRARIES & ARCHIVE,Furniture-Office Furniture,DEMCO EUROPE,07/06/2016,34.05
DAY CENTRES,Catering Food & Drink,TESCO STORE 3205,08/06/2016,72.05
DAY CENTRES,Financial Services,ROYAL BANK UK /,08/06/2016,400.00
BALANCE SHEET,VAT,Amazon UK Marketplace,08/06/2016,6.15
BALANCE SHEET,VAT,BREWERS,08/06/2016,21.49
BALANCE SHEET,VAT,TP VAUXHALL,08/06/2016,19.76
CHILDREN LOOKED AFTER,Financial Services,HM PASSPORT OFFICE,08/06/2016,72.50
CHILDREN LOOKED AFTER,Domestic Goods-Other,ARGOS DIRECT,08/06/2016,-37.00
CHILDREN LOOKED AFTER,Domestic Goods-Other,ARGOS DIRECT,08/06/2016,807.45
CHILDREN LOOKED AFTER,Domestic Goods-Other,ARGOS DIRECT,08/06/2016,348.99
CHILDREN LOOKED AFTER,Domestic Goods-Other,ARGOS RETAIL GROUP,08/06/2016,279.90
CHILDREN LOOKED AFTER,Domestic Goods-Other,ARGOS RETAIL GROUP,08/06/2016,"1,566.43"
CHILDREN LOOKED AFTER,Domestic Goods-Other,ARGOS RETAIL GROUP,08/06/2016,197.98
CHILDREN LOOKED AFTER,Financial Services,GRO HM PASSPORT OFFICE,08/06/2016,36.00
CHILDREN LOOKED AFTER,Furniture-Domestic Furniture,IKEA ONLINE,08/06/2016,215.00
CHILDREN LOOKED AFTER,Furniture-Domestic Furniture,IKEA ONLINE,08/06/2016,427.00
LIBRARIES & ARCHIVE,Building-General,SCREWFIX DIRECT LT,08/06/2016,76.96
FINANCIAL PLANNING AND MANAGEMENT,Use of Public Transport,LUL TICKET MACHINE,08/06/2016,30.00
HOUSING MANAGEMENT SERVICES,Building-Timber,BREWERS,08/06/2016,107.47
HOUSING MANAGEMENT SERVICES,Building-Timber,TP VAUXHALL,08/06/2016,98.80
HOUSING MANAGEMENT SERVICES,Domestic Goods-Other,Amazon UK Marketplace,08/06/2016,39.95
HOUSING MANAGEMENT SERVICES,Domestic Goods-Other,PRICE BUSTERS - EC,08/06/2016,11.96
HOUSING MANAGEMENT SERVICES,Financial Services,LAMBETH INTERNET PAYM,08/06/2016,10.17
HOUSING MANAGEMENT SERVICES,Financial Services,LAMBETH INTERNET PAYM,08/06/2016,10.17
HOUSING MANAGEMENT SERVICES,Financial Services,LAMBETH INTERNET PAYM,08/06/2016,10.17
HOUSING MANAGEMENT SERVICES,Financial Services,LAMBETH INTERNET PAYM,08/06/2016,10.17
HOUSING MANAGEMENT SERVICES,Financial Services,LAMBETH INTERNET PAYM,08/06/2016,10.17
HOUSING MANAGEMENT SERVICES,Financial Services,LAMBETH INTERNET PAYM,08/06/2016,10.17
HOUSING MANAGEMENT SERVICES,Furniture-Office Furniture,POSTURITE (UK) LTD,08/06/2016,141.00
DAY CENTRES,Building-Others,TESCO STORE 2764,09/06/2016,6.00
DAY CENTRES,Catering Equipment,Amazon UK Marketplace,09/06/2016,73.66
DAY CENTRES,Catering Food & Drink,TESCO STORE 2764,09/06/2016,46.60
DAY CENTRES,Financial Services,CASH ADVANCE FEE,09/06/2016,11.80
BALANCE SHEET,VAT,EB *NLA ANNUAL LECTURE,09/06/2016,0.00
BALANCE SHEET,VAT,MAPBOX,09/06/2016,0.00
BALANCE SHEET,VAT,"STK*SHUTTERSTOCK, INC.",09/06/2016,0.00
BALANCE SHEET,VAT,WWW.GETTYIMAGES.COM,09/06/2016,0.00
CHILDREN LOOKED AFTER,Domestic Goods-Other,ARGOS DIRECT,09/06/2016,-8.95
CHILDREN LOOKED AFTER,Financial Services-Grants,WWW.CORAM.ORG.UK,09/06/2016,215.20
QUALITY ASSURANCE & PERFORMANCE,Travel/Subsistence,OYSTER AUTOSETTLE,09/06/2016,40.00
QUALITY ASSURANCE & PERFORMANCE,Travel/Subsistence,OYSTER RENEW WEB,09/06/2016,90.00
QUALITY ASSURANCE & PERFORMANCE,Travel/Subsistence,OYSTER RENEW WEB,09/06/2016,40.00
QUALITY ASSURANCE & PERFORMANCE,Travel/Subsistence,VIRGINTRAINSEC SERVCS,09/06/2016,54.10
QUALITY ASSURANCE & PERFORMANCE,Travel/Subsistence,VIRGINTRAINSEC SERVCS,09/06/2016,82.40
QUALITY ASSURANCE & PERFORMANCE,Travel/Subsistence,VIRGINTRAINSEC SERVCS,09/06/2016,31.00
QUALITY ASSURANCE & PERFORMANCE,Travel/Subsistence,VIRGINTRAINSEC SERVCS,09/06/2016,167.70
QUALITY ASSURANCE & PERFORMANCE,Travel/Subsistence,VIRGINTRAINSEC SERVCS,09/06/2016,29.90
SCHOOL & EDUCATION IMPROVEMENT SERVICE,Domestic Goods-Other,Amazon UK Marketplace,09/06/2016,120.60
SCHOOL & EDUCATION IMPROVEMENT SERVICE,Domestic Goods-Other,Amazon UK Marketplace,09/06/2016,88.70
SCHOOL & EDUCATION IMPROVEMENT SERVICE,Education-Library Books,"Amazon Svcs Europe,SAR",09/06/2016,34.98
SCHOOL & EDUCATION IMPROVEMENT SERVICE,Education-Library Books,Amazon UK Marketplace,09/06/2016,25.47
SCHOOL & EDUCATION IMPROVEMENT SERVICE,Stationery,Amazon UK Retail,09/06/2016,50.26
POLICY & COMMUNICATIONS,Facilities-Design & Photography,"STK*SHUTTERSTOCK, INC.",09/06/2016,35.03
POLICY & COMMUNICATIONS,IT Consumables,WWW.GETTYIMAGES.COM,09/06/2016,195.00
POLICY & COMMUNICATIONS,Consultancy-Business,EB *NLA ANNUAL LECTURE,09/06/2016,25.00
POLICY & COMMUNICATIONS,IT Services,MAPBOX,09/06/2016,42.26
BALANCE SHEET,VAT,CAMPBELL ASSOCIATE,10/06/2016,14.49
BALANCE SHEET,VAT,B & Q 1162,10/06/2016,58.58
CHILDREN LOOKED AFTER,Building-Timber,B & Q 1162,10/06/2016,292.92
SCHOOL & EDUCATION IMPROVEMENT SERVICE,Domestic Goods-Other,Amazon UK Marketplace,10/06/2016,44.74
SCHOOL & EDUCATION IMPROVEMENT SERVICE,Education-Library Books,Amazon UK Marketplace,10/06/2016,34.00
SCHOOL & EDUCATION IMPROVEMENT SERVICE,Education-Library Books,Amazon UK Marketplace,10/06/2016,10.77
SCHOOL & EDUCATION IMPROVEMENT SERVICE,Education-Library Books,Amazon UK Marketplace,10/06/2016,182.66
SCHOOL & EDUCATION IMPROVEMENT SERVICE,Facilities-Printing,Amazon UK Retail,10/06/2016,567.35
HOUSING MANAGEMENT SERVICES,Environmental Services-Forensic,CAMPBELL ASSOCIATE,10/06/2016,72.45
BALANCE SHEET,VAT,HOOTSUITE MEDIA INC.,11/06/2016,0.00
BALANCE SHEET,VAT,NATIONBUILDER,11/06/2016,0.00
SCHOOL & EDUCATION IMPROVEMENT SERVICE,Domestic Goods-Other,Amazon UK Marketplace,11/06/2016,6.99
SCHOOL & EDUCATION IMPROVEMENT SERVICE,Education-Library Books,Amazon UK Marketplace,11/06/2016,2.59
POLICY & COMMUNICATIONS,IT Services,HOOTSUITE MEDIA INC.,11/06/2016,5.15
POLICY & COMMUNICATIONS,IT Services,NATIONBUILDER,11/06/2016,42.19
BALANCE SHEET,VAT,POST OFFICE COUNTER,12/06/2016,4.93
HOUSING MANAGEMENT SERVICES,Mail Services-Postage,POST OFFICE COUNTER,12/06/2016,24.67
CHILDREN SAFEGUARDING & ASSESSMENTS,Domestic Goods-Other,ARGOS DIRECT,13/06/2016,136.93
CHILDREN SAFEGUARDING & ASSESSMENTS,Couriers,DX SECURE - US EMBASSY,13/06/2016,20.50
CHILDREN SAFEGUARDING & ASSESSMENTS,Domestic Goods-Other,ARGOS DIRECT,13/06/2016,46.94
LIBRARIES & ARCHIVE,Books/Publications/Resources,SANTANDER PLC (UK),13/06/2016,150.00
CORPORATE AFFAIRS,Travel/Subsistence,LUL TICKET MACHINE,13/06/2016,50.00
CORPORATE AFFAIRS,Travel/Subsistence,LUL TICKET MACHINE,13/06/2016,50.00
CORPORATE AFFAIRS,Travel/Subsistence,LUL TICKET MACHINE,13/06/2016,50.00
DAY CENTRES,Catering Food & Drink,TESCO STORE 2764,14/06/2016,50.61
CHILDREN SAFEGUARDING & ASSESSMENTS,Accommodation,TRAVELODGE WEBSITE,14/06/2016,118.95
CHILDREN SAFEGUARDING & ASSESSMENTS,Financial Services,GRO HM PASSPORT OFFICE,14/06/2016,9.25
CHILDREN SAFEGUARDING & ASSESSMENTS,Financial Services,GRO HM PASSPORT OFFICE,14/06/2016,-9.25
LIBRARIES & ARCHIVE,Books/Publications/Resources,CASH ADVANCE FEE,14/06/2016,4.43
SCHOOL & EDUCATION IMPROVEMENT SERVICE,Domestic Goods-Other,Amazon UK Marketplace,14/06/2016,172.30
SCHOOL & EDUCATION IMPROVEMENT SERVICE,Education-Library Books,Amazon UK Marketplace,14/06/2016,13.63
HOUSING CAPITAL & ASSET MANAGEMENT,Legal Services-Other,HMCOURTS-SERVICE.G,14/06/2016,280.00
DAY CENTRES,Financial Services,BRIXTON FOOD AND WINE,15/06/2016,200.00
OTHER - ADULTS,Catering Food & Drink,TESCO STORES 5999,15/06/2016,124.17
OTHER - ADULTS,Domestic Goods-Other,Amazon UK Marketplace,15/06/2016,25.40
OTHER - ADULTS,Education-Arts/Crafts,MORLEY COLLEGE LTD,15/06/2016,230.00
BALANCE SHEET,VAT,LAND REGISTRY,15/06/2016,0.00
BALANCE SHEET,VAT,LAND REGISTRY,15/06/2016,0.00
BALANCE SHEET,VAT,ELEPHANT DISCOUNT FLOO,15/06/2016,61.67
CHILDREN LOOKED AFTER,Building-Floors,ELEPHANT DISCOUNT FLOO,15/06/2016,308.33
QUALITY ASSURANCE & PERFORMANCE,Travel/Subsistence,OYSTER AUTOTOPUP,15/06/2016,40.00
QUALITY ASSURANCE & PERFORMANCE,Travel/Subsistence,OYSTER AUTOTOPUP,15/06/2016,40.00
QUALITY ASSURANCE & PERFORMANCE,Travel/Subsistence,OYSTER AUTOTOPUP,15/06/2016,40.00
QUALITY ASSURANCE & PERFORMANCE,Travel/Subsistence,OYSTER RENEW WEB,15/06/2016,-40.00
QUALITY ASSURANCE & PERFORMANCE,Travel/Subsistence,VIRGINTRAINSEC SERVCS,15/06/2016,166.30
QUALITY ASSURANCE & PERFORMANCE,Travel/Subsistence,VIRGINTRAINSEC SERVCS,15/06/2016,112.40
LIBRARIES & ARCHIVE,Education-Library Books,AMAZON UK RETAIL AMAZON.C,15/06/2016,41.38
FINANCIAL PLANNING AND MANAGEMENT,Travel/Subsistence,OYSTER AUTOTOPUP,15/06/2016,20.00
FINANCIAL PLANNING AND MANAGEMENT,Domestic Goods-Other,ARGOS RETAIL GROUP,15/06/2016,83.94
FINANCIAL PLANNING AND MANAGEMENT,Domestic Goods-Other,ARGOS RETAIL GROUP,15/06/2016,56.39
FINANCIAL PLANNING AND MANAGEMENT,Domestic Goods-Other,Amazon UK Marketplace,15/06/2016,44.97
FINANCIAL PLANNING AND MANAGEMENT,Financial Services,LONDON COUNCILS,15/06/2016,10.00
FINANCIAL PLANNING AND MANAGEMENT,Travel/Subsistence,OYSTER AUTOTOPUP,15/06/2016,20.00
INTERNAL AUDIT,Travel/Subsistence,NCP LTD,15/06/2016,12.50
INTERNAL AUDIT,Travel/Subsistence,OYSTER AUTOTOPUP,15/06/2016,80.00
INTERNAL AUDIT,Travel/Subsistence,OYSTER AUTOTOPUP,15/06/2016,40.00
INTERNAL AUDIT,Travel/Subsistence,OYSTER AUTOTOPUP,15/06/2016,40.00
NEIGHBOURHOODS,Horticultural-Other,LAND REGISTRY,15/06/2016,6.00
NEIGHBOURHOODS,Horticultural-Other,LAND REGISTRY,15/06/2016,6.00
NEIGHBOURHOODS,Education-Arts/Crafts,PAYPAL *CB LTD,15/06/2016,100.75
DAY CENTRES,Financial Services,CASH ADVANCE FEE,16/06/2016,5.90
BALANCE SHEET,VAT,Amazon UK Marketplace,16/06/2016,9.17
BALANCE SHEET,VAT,CHILTERN BTS TELESALES,16/06/2016,6.63
BALANCE SHEET,VAT,HIEX MANCHESTER,16/06/2016,21.00
BALANCE SHEET,VAT,TRAVELODGE WEBSITE,16/06/2016,16.83
BALANCE SHEET,VAT,VIRGINTRAINS.CO.UK,16/06/2016,25.73
BALANCE SHEET,VAT,WWW.MILLMOLL.CO.UK,16/06/2016,7.20
CHILDREN LOOKED AFTER,Financial Services,HM PASSPORT OFFICE,16/06/2016,46.00
CHILDREN LOOKED AFTER,Domestic Goods-Other,ARGOS RETAIL GROUP,16/06/2016,828.86
CHILDREN SAFEGUARDING & ASSESSMENTS,Financial Services,LB BEXLEY PAYMENT BY C,16/06/2016,60.00
YOUTH OFFENDING SERVICE,IT Office Equipment,Amazon UK Marketplace,16/06/2016,45.82
YOUTH OFFENDING SERVICE,Travel/Subsistence,BRIXTONHILL EXPRESS,16/06/2016,50.00
YOUTH OFFENDING SERVICE,Travel/Subsistence,BRIXTONHILL EXPRESS,16/06/2016,50.00
LIBRARIES & ARCHIVE,Education-Library Books,AMAZON UK RETAIL AMAZON.C,16/06/2016,13.99
LIBRARIES & ARCHIVE,Education-Library Books,"Amazon Svcs Europe,SAR",16/06/2016,8.80
LIBRARIES & ARCHIVE,Education-Library Books,Amazon UK Marketplace,16/06/2016,13.05
LIBRARIES & ARCHIVE,Education-Library Books,Amazon UK Marketplace,16/06/2016,3.58
LIBRARIES & ARCHIVE,Education-Library Books,Amazon UK Marketplace,16/06/2016,10.99
LIBRARIES & ARCHIVE,Education-Library Books,Amazon UK Marketplace,16/06/2016,2.80
LIBRARIES & ARCHIVE,Education-Library Books,Amazon UK Marketplace,16/06/2016,21.61
LIBRARIES & ARCHIVE,Education-Library Books,Amazon UK Marketplace,16/06/2016,9.73
LIBRARIES & ARCHIVE,Books/Publications/Resources,Amazon UK Retail,16/06/2016,9.96
LIBRARIES & ARCHIVE,Catering Food & Drink,SAINSBURYS S/MKTS,16/06/2016,6.40
LIBRARIES & ARCHIVE,Education-Library Books,Amazon UK Marketplace,16/06/2016,9.79
LIBRARIES & ARCHIVE,Education-Library Books,Amazon UK Marketplace,16/06/2016,-3.73
LIBRARIES & ARCHIVE,Education-Library Books,Amazon UK Marketplace,16/06/2016,8.79
PROPERTY & FINANCIAL TRANSACTION SERVICES,Facilities-Storage,WWW.MILLMOLL.CO.UK,16/06/2016,36.00
"PLANNING, TRANSPORT & DEVELOPMENT",Arts & Leisure Services,Amazon UK Retail,16/06/2016,200.00
"PLANNING, TRANSPORT & DEVELOPMENT",Catering Food & Drink,TESCO STORES 5342,16/06/2016,48.34
"PLANNING, TRANSPORT & DEVELOPMENT",Conference Expenses,EB *HACKNEY CYCLING CO,16/06/2016,160.00
"PLANNING, TRANSPORT & DEVELOPMENT",Cycles Purchase,Amazon UK Marketplace,16/06/2016,56.99
"PLANNING, TRANSPORT & DEVELOPMENT",Cycles Purchase,SOUTH BANK CYCLES,16/06/2016,15.00
"PLANNING, TRANSPORT & DEVELOPMENT",Education-Library Books,STATIONERY OFFICE BOOK,16/06/2016,65.00
"PLANNING, TRANSPORT & DEVELOPMENT",IT Consumables,WWW.WIFISPARK.COM,16/06/2016,5.00
"PLANNING, TRANSPORT & DEVELOPMENT",Travel/Subsistence,LUL TICKET MACHINE,16/06/2016,75.00
"PLANNING, TRANSPORT & DEVELOPMENT",Travel/Subsistence,OYSTER AUTOTOPUP,16/06/2016,20.00
"PLANNING, TRANSPORT & DEVELOPMENT",Travel/Subsistence,OYSTER AUTOTOPUP,16/06/2016,20.00
"PLANNING, TRANSPORT & DEVELOPMENT",Travel/Subsistence,OYSTER AUTOTOPUP,16/06/2016,20.00
"PLANNING, TRANSPORT & DEVELOPMENT",Travel/Subsistence,TFL CYCLE HIRE,16/06/2016,2.00
HOUSING MANAGEMENT SERVICES,Accommodation,HIEX MANCHESTER,16/06/2016,105.00
HOUSING MANAGEMENT SERVICES,Accommodation,TRAVELODGE WEBSITE,16/06/2016,84.17
HOUSING MANAGEMENT SERVICES,Travel/Subsistence,VIRGINTRAINS.CO.UK,16/06/2016,128.67
HOUSING MANAGEMENT SERVICES,Travel/Subsistence,CHILTERN BTS TELESALES,16/06/2016,33.17
DAY CENTRES,Financial Services,SAIN - BRIXTON,17/06/2016,240.00
CHILDREN SAFEGUARDING & ASSESSMENTS,Financial Services,WANDSWORTH COUNCIL INT,17/06/2016,-11.00
LIBRARIES & ARCHIVE,Catering Food & Drink,CASH ADVANCE FEE,17/06/2016,2.95
LIBRARIES & ARCHIVE,Catering Food & Drink,NATWEST BANK /,17/06/2016,100.00
LIBRARIES & ARCHIVE,Books/Publications/Resources,Amazon UK Marketplace,17/06/2016,3.24
LIBRARIES & ARCHIVE,Education-Arts/Crafts,Amazon UK Marketplace,17/06/2016,4.68
ENVIRONMENT,Books/Publications/Resources,LAND REGISTRY,17/06/2016,6.00
ENVIRONMENT,Books/Publications/Resources,LAND REGISTRY,17/06/2016,6.00
ENVIRONMENT,Books/Publications/Resources,LAND REGISTRY,17/06/2016,6.00
ENVIRONMENT,Use of Public Transport,NEW SOUTHERN RAILW,17/06/2016,30.00
HOUSING MANAGEMENT SERVICES,Accommodation,TRAVELODGE LONDON VAUX,17/06/2016,643.00
HOUSING MANAGEMENT SERVICES,Building-Timber,B & Q 1037,17/06/2016,267.39
LIBRARIES & ARCHIVE,Education-Library Books,Amazon UK Retail,18/06/2016,11.98
BALANCE SHEET,VAT,Amazon UK Retail,19/06/2016,2.32
LIBRARIES & ARCHIVE,Education-Arts/Crafts,Amazon UK Marketplace,19/06/2016,39.43
LIBRARIES & ARCHIVE,Education-Library Books,Amazon UK Retail,19/06/2016,74.39
SCHOOL & EDUCATION IMPROVEMENT SERVICE,Facilities-Printing,Amazon UK Retail,19/06/2016,114.00
DAY CENTRES,Financial Services,CASH ADVANCE FEE,20/06/2016,7.08
CHILDREN LOOKED AFTER,Domestic Goods-Other,ARGOS RETAIL GROUP,20/06/2016,"1,247.18"
CHILDREN LOOKED AFTER,Domestic Goods-Other,ARGOS RETAIL GROUP,20/06/2016,568.92
CHILDREN LOOKED AFTER,Domestic Goods-Other,ARGOS RETAIL GROUP,20/06/2016,"1,159.96"
CHILDREN LOOKED AFTER,Domestic Goods-Other,CURRYS ONLINE,20/06/2016,314.99
CHILDREN LOOKED AFTER,Domestic Goods-Other,TESCO - Tescopay,20/06/2016,53.88
CHILDREN LOOKED AFTER,Domestic Goods-Other,TESCO DIRECT,20/06/2016,529.45
CHILDREN LOOKED AFTER,Facilities-Market Research,WAYFAIR.CO.UK,20/06/2016,-17.60
CHILDREN LOOKED AFTER,Facilities-Retail,www.groupon.co.uk,20/06/2016,429.00
CHILDREN LOOKED AFTER,Facilities-Retail,www.groupon.co.uk,20/06/2016,179.99
CHILDREN LOOKED AFTER,Facilities-Storage,ACCESS SELF STORAG,20/06/2016,107.84
CHILDREN LOOKED AFTER,Furniture-Domestic Furniture,GIOMANI,20/06/2016,299.99
CHILDREN LOOKED AFTER,Furniture-Domestic Furniture,GIOMANI,20/06/2016,299.99
CHILDREN LOOKED AFTER,Furniture-Domestic Furniture,GIOMANI,20/06/2016,-299.99
CHILDREN LOOKED AFTER,Furniture-Domestic Furniture,IKEA ONLINE,20/06/2016,142.90
CHILDREN LOOKED AFTER,Furniture-Domestic Furniture,IKEA ONLINE,20/06/2016,-58.00
CHILDREN LOOKED AFTER,Furniture-Domestic Furniture,WORLDSTORES LTD,20/06/2016,229.98
CHILDREN LOOKED AFTER,Haulage,AUSSIE MAN & VAN L,20/06/2016,189.60
LIBRARIES & ARCHIVE,Books/Publications/Resources,Amazon UK Marketplace,20/06/2016,102.89
FINANCIAL PLANNING AND MANAGEMENT,Financial Services,LAND REGISTRY,20/06/2016,3.00
HOUSING CAPITAL & ASSET MANAGEMENT,HMRC Fees,HMCOURTS-SERVICE.G,20/06/2016,260.00
MENTAL HEALTH,Accommodation,TRAVELODGE AGENT,21/06/2016,397.29
MENTAL HEALTH,Accommodation,TRAVELODGE AGENT,21/06/2016,393.22
MENTAL HEALTH,Accommodation,TRAVELODGE AGENT,21/06/2016,"2,539.18"
MENTAL HEALTH,Legal Services-Other,HMCOURTS-SERVICE.G,21/06/2016,40.00
MENTAL HEALTH,Legal Services-Other,HMCOURTS-SERVICE.G,21/06/2016,60.00
MENTAL HEALTH,Legal Services-Other,HMCOURTS-SERVICE.G,21/06/2016,20.00
MENTAL HEALTH,Legal Services-Other,HMCOURTS-SERVICE.G,21/06/2016,60.00
MENTAL HEALTH,Legal Services-Other,HMCOURTS-SERVICE.G,21/06/2016,20.00
MENTAL HEALTH,Legal Services-Other,HMCOURTS-SERVICE.G,21/06/2016,40.00
MENTAL HEALTH,Legal Services-Other,HMCOURTS-SERVICE.G,21/06/2016,40.00
MENTAL HEALTH,Legal Services-Other,HMCOURTS-SERVICE.G,21/06/2016,20.00
MENTAL HEALTH,Legal Services-Other,HMCOURTS-SERVICE.G,21/06/2016,20.00
MENTAL HEALTH,Legal Services-Other,HMCOURTS-SERVICE.G,21/06/2016,40.00
MENTAL HEALTH,Taxi Fares,WWW.ADDISONLEE.COM,21/06/2016,42.48
MENTAL HEALTH,Travel/Subsistence,LONDON & SOUTH EAS,21/06/2016,171.10
MENTAL HEALTH,Travel/Subsistence,LONDON & SOUTH EAS,21/06/2016,-154.80
MENTAL HEALTH,Travel/Subsistence,OYSTER AUTOTOPUP,21/06/2016,40.00
MENTAL HEALTH,Travel/Subsistence,OYSTER RENEW WEB,21/06/2016,10.00
BALANCE SHEET,VAT,TRAVELODGE AGENT,21/06/2016,79.46
BALANCE SHEET,VAT,TRAVELODGE AGENT,21/06/2016,75.08
BALANCE SHEET,VAT,TRAVELODGE AGENT,21/06/2016,482.92
BALANCE SHEET,VAT,WWW.ADDISONLEE.COM,21/06/2016,8.50
BALANCE SHEET,VAT,CURRYS ONLINE,21/06/2016,51.66
CHILDREN LOOKED AFTER,Domestic Goods-Other,CURRYS ONLINE,21/06/2016,258.31
QUALITY ASSURANCE & PERFORMANCE,Travel/Subsistence,LONDON & SOUTH EAS,21/06/2016,50.00
QUALITY ASSURANCE & PERFORMANCE,Travel/Subsistence,OYSTER AUTOTOPUP,21/06/2016,40.00
QUALITY ASSURANCE & PERFORMANCE,Travel/Subsistence,OYSTER AUTOTOPUP,21/06/2016,40.00
QUALITY ASSURANCE & PERFORMANCE,Travel/Subsistence,VIRGINTRAINSEC SERVCS,21/06/2016,27.50
QUALITY ASSURANCE & PERFORMANCE,Travel/Subsistence,VIRGINTRAINSEC SERVCS,21/06/2016,82.40
QUALITY ASSURANCE & PERFORMANCE,Travel/Subsistence,VIRGINTRAINSEC SERVCS,21/06/2016,82.40
QUALITY ASSURANCE & PERFORMANCE,Travel/Subsistence,VIRGINTRAINSEC SERVCS,21/06/2016,259.60
REVENUE & BENEFITS,Organised Activities,J.B.W. GROUP LTD,21/06/2016,512.00
INTERNAL AUDIT,Travel/Subsistence,TFL CC/LEZ CHARGE,21/06/2016,11.50
BALANCE SHEET,VAT,Amazon UK Marketplace,22/06/2016,1.33
BALANCE SHEET,VAT,Amazon UK Marketplace,22/06/2016,4.49
BALANCE SHEET,VAT,CURRYS ONLINE,22/06/2016,81.66
BALANCE SHEET,VAT,FAST KEY SERVICES LIMI,22/06/2016,2.05
CHILDREN LOOKED AFTER,Taxi Fares,MITCHAM BELLE COAC,22/06/2016,430.50
CHILDREN LOOKED AFTER,Consultancy-Business,FAST KEY SERVICES LIMI,22/06/2016,10.23
CHILDREN LOOKED AFTER,Domestic Goods-Other,CURRYS ONLINE,22/06/2016,408.31
CHILDREN SAFEGUARDING & ASSESSMENTS,Travel/Subsistence,OYSTER RENEW WEB,22/06/2016,25.00
EARLY HELP,Books/Publications/Resources,JD SPORTS INTERNET,22/06/2016,70.00
EARLY HELP,Clothing-Children/Adults,LOVE2SHOP.CO.UK,22/06/2016,203.50
EARLY HELP,Stationery,WWW.REVIVEGIFTCARD,22/06/2016,201.90
YOUTH OFFENDING SERVICE,Education-Library Books,Amazon UK Marketplace,22/06/2016,6.65
YOUTH OFFENDING SERVICE,Education-Library Books,Amazon UK Marketplace,22/06/2016,22.45
LIBRARIES & ARCHIVE,Catering Food & Drink,CASH ADVANCE FEE,22/06/2016,5.90
LIBRARIES & ARCHIVE,Catering Food & Drink,SAINSBURYS CASH,22/06/2016,200.00
LIBRARIES & ARCHIVE,Education-Library Books,AMAZON UK RETAIL AMAZON.C,22/06/2016,15.95
LIBRARIES & ARCHIVE,Education-Library Books,Amazon UK Marketplace,22/06/2016,1.78
LIBRARIES & ARCHIVE,Education-Library Books,Amazon UK Marketplace,22/06/2016,2.81
LIBRARIES & ARCHIVE,Education-Library Books,Amazon UK Retail,22/06/2016,13.55
SCHOOL & EDUCATION IMPROVEMENT SERVICE,Education-Library Books,Amazon UK Marketplace,22/06/2016,17.99
CORPORATE AFFAIRS,Catering Food & Drink,TESCO STORES 5342,22/06/2016,3.00
CORPORATE AFFAIRS,Travel/Subsistence,LUL TICKET MACHINE,22/06/2016,50.00
DAY CENTRES,Catering Food & Drink,TESCO STORE 2764,23/06/2016,156.12
DAY CENTRES,Domestic Goods-Other,TESCO STORE 2764,23/06/2016,61.50
DAY CENTRES,Financial Services,ROYAL BANK UK /,23/06/2016,400.00
BALANCE SHEET,VAT,BRITANNIA,23/06/2016,158.64
BALANCE SHEET,VAT,908 LTD,23/06/2016,22.37
BALANCE SHEET,VAT,ARGOS RETAIL GROUP,23/06/2016,53.16
BALANCE SHEET,VAT,ARGOS RETAIL GROUP,23/06/2016,4.16
BALANCE SHEET,VAT,IKEA,23/06/2016,2.80
BALANCE SHEET,VAT,PARTRIDGE & PRINT,23/06/2016,3.00
CHILDREN LOOKED AFTER,Education-Other,PARTRIDGE & PRINT,23/06/2016,195.00
EARLY HELP,Stationery,RAPIDPHOTO LIMITED,23/06/2016,7.50
LIBRARIES & ARCHIVE,Catering Food & Drink,CASH ADVANCE FEE,23/06/2016,2.95
LIBRARIES & ARCHIVE,Catering Food & Drink,HSBC/BRIXTON RD I1,23/06/2016,100.00
CORPORATE AFFAIRS,Accommodation,BRITANNIA,23/06/2016,793.36
INTERNAL AUDIT,Stationery,Amazon UK Marketplace,23/06/2016,14.95
NEIGHBOURHOODS,Horticultural-Other,908 LTD,23/06/2016,113.10
HOUSING MANAGEMENT SERVICES,Domestic Goods-Other,ARGOS RETAIL GROUP,23/06/2016,265.78
HOUSING MANAGEMENT SERVICES,Domestic Goods-Other,ARGOS RETAIL GROUP,23/06/2016,20.83
HOUSING MANAGEMENT SERVICES,Domestic Goods-Other,IKEA,23/06/2016,14.00
DAY CENTRES,Building-Others,TESCO STORE 2764,24/06/2016,36.00
DAY CENTRES,Catering Food & Drink,TESCO STORE 2764,24/06/2016,87.33
DAY CENTRES,Financial Services,CASH ADVANCE FEE,24/06/2016,11.80
BALANCE SHEET,VAT,CENTRAL HILL FOOD & WI,24/06/2016,2.94
BALANCE SHEET,VAT,FAST KEY SERVICES LIMI,24/06/2016,1.13
CHILDREN LOOKED AFTER,Consultancy-Business,FAST KEY SERVICES LIMI,24/06/2016,5.63
EARLY HELP,Stationery,Amazon UK Retail,24/06/2016,103.14
SCHOOL & EDUCATION IMPROVEMENT SERVICE,Domestic Goods-Other,Amazon UK Marketplace,24/06/2016,9.78
SCHOOL & EDUCATION IMPROVEMENT SERVICE,Catering Food & Drink,MARKS&SPENCER PLC,24/06/2016,245.00
HOUSING MANAGEMENT SERVICES,Building-General,CENTRAL HILL FOOD & WI,24/06/2016,14.72
BALANCE SHEET,VAT,IKEA ONLINE,25/06/2016,30.83
CHILDREN LOOKED AFTER,Furniture-Domestic Furniture,IKEA ONLINE,25/06/2016,154.17
FINANCIAL PLANNING AND MANAGEMENT,Travel/Subsistence,OYSTER AUTOTOPUP,25/06/2016,20.00
BALANCE SHEET,VAT,LONDON DUDLEY HOTE,26/06/2016,7.83
HOUSING MANAGEMENT SERVICES,Accommodation,LONDON DUDLEY HOTE,26/06/2016,39.17
DAY CENTRES,Travel/Subsistence,NEWS AT NINE,27/06/2016,230.00
DAY CENTRES,Financial Services,"SHELL GLOSTER, 117",27/06/2016,250.00
BALANCE SHEET,VAT,CENTRAL HILL STORE,27/06/2016,8.50
BALANCE SHEET,VAT,oceanmedia.co.uk,27/06/2016,153.00
BALANCE SHEET,VAT,AO RETAIL LIMITED,27/06/2016,43.33
BALANCE SHEET,VAT,WORLDSTORES LTD,27/06/2016,54.73
CHILDREN LOOKED AFTER,Domestic Goods-Other,AO RETAIL LIMITED,27/06/2016,216.66
CHILDREN LOOKED AFTER,Domestic Goods-Other,ARGOS RETAIL GROUP,27/06/2016,23.94
CHILDREN LOOKED AFTER,Domestic Goods-Other,ARGOS RETAIL GROUP,27/06/2016,33.94
CHILDREN LOOKED AFTER,Furniture-Domestic Furniture,WORLDSTORES LTD,27/06/2016,273.65
CHILDREN SAFEGUARDING & ASSESSMENTS,Financial Services,GRO HM PASSPORT OFFICE,27/06/2016,56.05
NEIGHBOURHOODS,Travel/Subsistence,LONDON & SOUTH EAS,27/06/2016,2.20
NEIGHBOURHOODS,Travel/Subsistence,LUL TICKET MACHINE,27/06/2016,10.00
NEIGHBOURHOODS,Stationery,ONLINE-ERGONOMICS.,27/06/2016,97.20
NEIGHBOURHOODS,Domestic Goods-Other,THE FLAG SHOP LTD,27/06/2016,35.82
HOMES & COMMUNITIES,Consultancy-Business,oceanmedia.co.uk,27/06/2016,777.85
HOUSING MANAGEMENT SERVICES,Travel/Subsistence,CENTRAL HILL STORE,27/06/2016,42.50
DAY CENTRES,Financial Services-Banking,CASH ADVANCE FEE,28/06/2016,7.38
BALANCE SHEET,VAT,ENHANCED VISION EUROPE,28/06/2016,17.80
BALANCE SHEET,VAT,BRITANNIA,28/06/2016,59.83
BALANCE SHEET,VAT,IKEA ONLINE,28/06/2016,39.16
CHILDREN LOOKED AFTER,Travel/Subsistence,TRAINLINE,28/06/2016,38.25
CHILDREN LOOKED AFTER,Furniture-Domestic Furniture,IKEA ONLINE,28/06/2016,195.84
CHILDREN SAFEGUARDING & ASSESSMENTS,Financial Services,GRO HM PASSPORT OFFICE,28/06/2016,27.75
REVENUE & BENEFITS,Healthcare Equipment,ENHANCED VISION EUROPE,28/06/2016,89.00
CHIEF EXECUTIVE'S OFFICE,Accommodation,BRITANNIA,28/06/2016,299.17
FINANCIAL PLANNING AND MANAGEMENT,Travel/Subsistence,VIRGINTRAINS.CO.UK,28/06/2016,333.00
HOUSING MANAGEMENT SERVICES,Books/Publications/Resources,ARGOS,28/06/2016,19.99
HOUSING MANAGEMENT SERVICES,Books/Publications/Resources,B & Q 1009,28/06/2016,9.90
HOUSING MANAGEMENT SERVICES,Use of Public Transport,LUL TICKET MACHINE,28/06/2016,55.00
HOUSING MANAGEMENT SERVICES,Use of Public Transport,LUL TICKET MACHINE,28/06/2016,50.00
HOUSING MANAGEMENT SERVICES,Use of Public Transport,LUL TICKET MACHINE,28/06/2016,50.00
DAY CENTRES,Catering Food & Drink,TESCO STORE 2764,29/06/2016,40.00
BALANCE SHEET,VAT,DAILY.CO.UK,29/06/2016,2.40
BALANCE SHEET,VAT,PANTHEON,29/06/2016,0.00
BALANCE SHEET,VAT,TRAINLINE,29/06/2016,0.00
BALANCE SHEET,VAT,WESSEX HOTEL,29/06/2016,0.00
BALANCE SHEET,VAT,WWW.HEATBUSTERS.CO,29/06/2016,24.83
CHILDREN LOOKED AFTER,Furniture-Domestic Furniture,WORLDSTORES LTD,29/06/2016,376.88
LIBRARIES & ARCHIVE,Books/Publications/Resources,Amazon UK Marketplace,29/06/2016,32.75
SCHOOL & EDUCATION IMPROVEMENT SERVICE,Domestic Goods-Other,Amazon UK Marketplace,29/06/2016,3.79
SCHOOL & EDUCATION IMPROVEMENT SERVICE,Education-Library Books,Amazon UK Marketplace,29/06/2016,11.24
SCHOOL & EDUCATION IMPROVEMENT SERVICE,Education-Library Books,Amazon UK Marketplace,29/06/2016,10.15
INTERNAL AUDIT,Building-Plumbing,WWW.HEATBUSTERS.CO,29/06/2016,124.17
POLICY & COMMUNICATIONS,Accommodation,WESSEX HOTEL,29/06/2016,90.00
POLICY & COMMUNICATIONS,Accommodation,WESSEX HOTEL,29/06/2016,360.00
POLICY & COMMUNICATIONS,Travel/Subsistence,TRAINLINE,29/06/2016,278.56
POLICY & COMMUNICATIONS,IT Services,DAILY.CO.UK,29/06/2016,11.98
POLICY & COMMUNICATIONS,IT Services,PANTHEON,29/06/2016,18.30
SENIOR MANAGEMENT - NEIGHBOURHOODS & GROWTH,Domestic Goods-Other,Amazon UK Marketplace,29/06/2016,139.97
HOUSING CAPITAL & ASSET MANAGEMENT,Legal Services-Other,HMCOURTS-SERVICE.G,29/06/2016,180.00
HOUSING CAPITAL & ASSET MANAGEMENT,Legal Services-Other,HMCOURTS-SERVICE.G,29/06/2016,20.00
HOUSING CAPITAL & ASSET MANAGEMENT,Legal Services-Other,HMCOURTS-SERVICE.G,29/06/2016,200.00
BALANCE SHEET,VAT,WP-STAMPS DIRECT L,30/06/2016,2.58
BALANCE SHEET,VAT,Amazon UK Marketplace,30/06/2016,3.07
BALANCE SHEET,VAT,ARMOUR LOCK AND SAFE,30/06/2016,3.40
BALANCE SHEET,VAT,JOHN MYLAND LTD,30/06/2016,13.52
BALANCE SHEET,VAT,JOHN MYLAND LTD,30/06/2016,31.28
BALANCE SHEET,VAT,PIRTEK GREENWICH,30/06/2016,8.00
BALANCE SHEET,VAT,PIRTEK GREENWICH,30/06/2016,9.57
BALANCE SHEET,VAT,PIRTEK GREENWICH,30/06/2016,10.00
BALANCE SHEET,VAT,SCREWFIX,30/06/2016,7.66
BALANCE SHEET,VAT,DEMCO EUROPE,30/06/2016,26.09
CHILDREN LOOKED AFTER,Domestic Goods-Other,ARGOS RETAIL GROUP,30/06/2016,37.93
CHILDREN LOOKED AFTER,Domestic Goods-Other,ARGOS RETAIL GROUP,30/06/2016,241.94
CHILDREN LOOKED AFTER,Domestic Goods-Other,ARGOS DIRECT,30/06/2016,439.97
CHILDREN LOOKED AFTER,Facilities-Market Research,ARGOS DIRECT,30/06/2016,250.94
CHILDREN SAFEGUARDING & ASSESSMENTS,Clothing-Children/Adults,DIRECT 2 MUM,30/06/2016,150.00
LIBRARIES & ARCHIVE,Education-Library Books,"Amazon Svcs Europe,SAR",30/06/2016,43.72
LIBRARIES & ARCHIVE,Education-Library Books,Amazon UK Marketplace,30/06/2016,5.80
LIBRARIES & ARCHIVE,Education-Library Books,Amazon UK Marketplace,30/06/2016,13.31
LIBRARIES & ARCHIVE,Education-Library Books,Amazon UK Marketplace,30/06/2016,65.11
LIBRARIES & ARCHIVE,Education-Library Books,Amazon UK Retail,30/06/2016,19.20
LIBRARIES & ARCHIVE,Education-Other,TFL PENALTY CHARGE,30/06/2016,130.00
LIBRARIES & ARCHIVE,Education-Other,www.hannecke.de,30/06/2016,501.61
LIBRARIES & ARCHIVE,Education-Supplies,DEMCO EUROPE,30/06/2016,130.45
LIBRARIES & ARCHIVE,Education-Library Books,Amazon UK Retail,30/06/2016,39.96
LIBRARIES & ARCHIVE,Education-Other,IRISH POST,30/06/2016,71.00
LIBRARIES & ARCHIVE,Books/Publications/Resources,Amazon UK Marketplace,30/06/2016,53.33
SCHOOL & EDUCATION IMPROVEMENT SERVICE,Domestic Goods-Other,Amazon UK Marketplace,30/06/2016,2.09
REVENUE & BENEFITS,Travel/Subsistence,OYSTER BUS AUTOTOP,30/06/2016,20.00
REVENUE & BENEFITS,Travel/Subsistence,OYSTER BUS AUTOTOP,30/06/2016,20.00
REVENUE & BENEFITS,Legal Services-Other,HMCOURTS-SERVICE.G,30/06/2016,"7,260.00"
REVENUE & BENEFITS,Travel/Subsistence,OYSTER AUTOTOPUP,30/06/2016,20.00
CORPORATE AFFAIRS,Catering Food & Drink,SAINSBURYS S/MKTS,30/06/2016,9.00
CORPORATE AFFAIRS,Stationery,WP-STAMPS DIRECT L,30/06/2016,12.89
NEIGHBOURHOODS,Building-Paint,JOHN MYLAND LTD,30/06/2016,54.09
NEIGHBOURHOODS,Building-Paint,JOHN MYLAND LTD,30/06/2016,125.13
NEIGHBOURHOODS,Horticultural-Other,ARMOUR LOCK AND SAFE,30/06/2016,13.60
NEIGHBOURHOODS,Horticultural-Other,PIRTEK GREENWICH,30/06/2016,32.00
NEIGHBOURHOODS,Horticultural-Other,SCREWFIX,30/06/2016,38.32
NEIGHBOURHOODS,Vehicle Maintenance,PIRTEK GREENWICH,30/06/2016,50.00
NEIGHBOURHOODS,Works-Surveys,PIRTEK GREENWICH,30/06/2016,38.27
BALANCE SHEET,VAT,Amazon UK Marketplace,01/07/2016,5.68
CHILDREN LOOKED AFTER,Domestic Goods-Other,ARGOS RETAIL GROUP,01/07/2016,456.04
CHILDREN LOOKED AFTER,Domestic Goods-Other,Amazon UK Marketplace,01/07/2016,863.00
CHILDREN LOOKED AFTER,Education-Library Books,Amazon UK Marketplace,01/07/2016,203.76
EARLY HELP,Stationery,JD SPORTS INTERNET,01/07/2016,135.00
EARLY HELP,Stationery,LOVE2SHOP.CO.UK,01/07/2016,45.00
LIBRARIES & ARCHIVE,Catering Food & Drink,ICELAND,01/07/2016,3.10
LIBRARIES & ARCHIVE,Books/Publications/Resources,Amazon UK Retail,01/07/2016,15.23
FINANCIAL PLANNING AND MANAGEMENT,Use of Public Transport,THE CHILTERN RLYWY,01/07/2016,38.00
HUMAN RESOURCES & ORGANISATIONAL DEVELOPMENT,Domestic Goods-Other,Amazon UK Marketplace,01/07/2016,45.61
HOUSING MANAGEMENT SERVICES,Use of Public Transport,LUL TICKET MACHINE,01/07/2016,212.00
NO RECOURSE TO PUBLIC FUNDS,Domestic Goods-Other,ARGOS DIRECT,01/07/2016,98.94
LIBRARIES & ARCHIVE,Books/Publications/Resources,Amazon UK Retail,02/07/2016,15.23
DAY CENTRES,Travel/Subsistence,OYSTER BUS AUTOTOP,03/07/2016,20.00
QUALITY ASSURANCE & PERFORMANCE,Accommodation,PREMIER INN 44536865,03/07/2016,363.50
QUALITY ASSURANCE & PERFORMANCE,Travel/Subsistence,NATIONAL EXPRESS LIMITED,03/07/2016,37.00
QUALITY ASSURANCE & PERFORMANCE,Travel/Subsistence,OYSTER AUTOTOPUP,03/07/2016,40.00
QUALITY ASSURANCE & PERFORMANCE,Travel/Subsistence,OYSTER AUTOTOPUP,03/07/2016,40.00
QUALITY ASSURANCE & PERFORMANCE,Travel/Subsistence,OYSTER AUTOTOPUP,03/07/2016,40.00
QUALITY ASSURANCE & PERFORMANCE,Travel/Subsistence,OYSTER AUTOTOPUP,03/07/2016,40.00
QUALITY ASSURANCE & PERFORMANCE,Travel/Subsistence,OYSTER BUS AUTOTOP,03/07/2016,40.00
QUALITY ASSURANCE & PERFORMANCE,Travel/Subsistence,RYANAIR 22400000HZS3M,03/07/2016,372.78
QUALITY ASSURANCE & PERFORMANCE,Travel/Subsistence,VIRGINTRAINSEC SERVCS,03/07/2016,-72.40
QUALITY ASSURANCE & PERFORMANCE,Travel/Subsistence,VIRGINTRAINSEC SERVCS,03/07/2016,23.20
BALANCE SHEET,VAT,PIRTEK GREENWICH,04/07/2016,8.00
BALANCE SHEET,VAT,IKEA ONLINE,04/07/2016,41.66
BALANCE SHEET,VAT,TRAVELODGE AGENT,04/07/2016,13.40
BALANCE SHEET,VAT,LAND REGISTRY,04/07/2016,0.50
BALANCE SHEET,VAT,LAND REGISTRY,04/07/2016,0.50
BALANCE SHEET,VAT,LAND REGISTRY,04/07/2016,6.00
BALANCE SHEET,VAT,EMAP LTD-SUBSCRIPTIONS,04/07/2016,29.00
BALANCE SHEET,VAT,NATIONBUILDER,04/07/2016,0.00
BALANCE SHEET,VAT,WP-HEMMING GROUP L,04/07/2016,0.00
BALANCE SHEET,VAT,WWW.INSIDEHOUSING.CO.U,04/07/2016,25.67
CHILDREN LOOKED AFTER,Accommodation,TRAVELODGE AGENT,04/07/2016,67.00
CHILDREN LOOKED AFTER,Domestic Goods-Other,ARGOS DIRECT,04/07/2016,-8.95
CHILDREN LOOKED AFTER,Domestic Goods-Other,ARGOS DIRECT,04/07/2016,-65.00
CHILDREN LOOKED AFTER,Domestic Goods-Other,ARGOS DIRECT,04/07/2016,114.96
CHILDREN LOOKED AFTER,Domestic Goods-Other,ARGOS DIRECT,04/07/2016,-34.99
CHILDREN LOOKED AFTER,Domestic Goods-Other,ARGOS RETAIL GROUP,04/07/2016,"1,166.43"
CHILDREN LOOKED AFTER,Domestic Goods-Other,ARGOS RETAIL GROUP,04/07/2016,457.85
CHILDREN LOOKED AFTER,Domestic Goods-Other,ARGOS RETAIL GROUP,04/07/2016,55.70
CHILDREN LOOKED AFTER,Financial Services,HM PASSPORT OFFICE,04/07/2016,72.50
CHILDREN SAFEGUARDING & ASSESSMENTS,Accommodation,PREMIER INN 44536865,04/07/2016,130.50
EARLY HELP,Furniture-Domestic Furniture,IKEA ONLINE,04/07/2016,208.34
LIBRARIES & ARCHIVE,Books/Publications/Resources,SANTANDER PLC (UK),04/07/2016,150.00
POLICY & COMMUNICATIONS,Books/Publications/Resources,EMAP LTD-SUBSCRIPTIONS,04/07/2016,145.00
POLICY & COMMUNICATIONS,Books/Publications/Resources,WP-HEMMING GROUP L,04/07/2016,140.00
POLICY & COMMUNICATIONS,Books/Publications/Resources,WWW.INSIDEHOUSING.CO.U,04/07/2016,128.33
POLICY & COMMUNICATIONS,IT Services,NATIONBUILDER,04/07/2016,45.93
NEIGHBOURHOODS,Vehicle Maintenance,PIRTEK GREENWICH,04/07/2016,32.00
HOUSING MANAGEMENT SERVICES,Legal Services-General Support,LAND REGISTRY,04/07/2016,2.50
HOUSING MANAGEMENT SERVICES,Legal Services-General Support,LAND REGISTRY,04/07/2016,0.00
HOUSING MANAGEMENT SERVICES,Legal Services-Other,LAND REGISTRY,04/07/2016,2.50
OTHER - ADULTS,Professional & Advisory Services,SKR*one-training.org.uk,05/07/2016,12.00
BALANCE SHEET,VAT,Amazon UK Retail,05/07/2016,24.72
CHILDREN LOOKED AFTER,Domestic Goods-Other,WWW.JOHNLEWIS.COM,05/07/2016,150.00
CHILDREN LOOKED AFTER,Furniture-Domestic Furniture,WWW.DFS.CO.UK,05/07/2016,50.00
CHILDREN SAFEGUARDING & ASSESSMENTS,Financial Services,L B ISLINGTON,05/07/2016,11.00
CHILDREN SAFEGUARDING & ASSESSMENTS,Financial Services,L B ISLINGTON,05/07/2016,11.00
CHILDREN SAFEGUARDING & ASSESSMENTS,Financial Services,LAMBETH INTERNET PAYM,05/07/2016,10.17
CHILDREN SAFEGUARDING & ASSESSMENTS,Financial Services,LAMBETH INTERNET PAYM,05/07/2016,10.17
LIBRARIES & ARCHIVE,Books/Publications/Resources,CASH ADVANCE FEE,05/07/2016,4.43
SCHOOL & EDUCATION IMPROVEMENT SERVICE,Domestic Goods-Other,Amazon UK Marketplace,05/07/2016,54.05
SCHOOL & EDUCATION IMPROVEMENT SERVICE,Facilities-Printing,Amazon UK Retail,05/07/2016,124.03
SCHOOL & EDUCATION IMPROVEMENT SERVICE,Catering Food & Drink,MARKS&SPENCER PLC,05/07/2016,43.99
FINANCIAL PLANNING AND MANAGEMENT,Use of Public Transport,TRAINLINE,05/07/2016,16.78
FINANCIAL PLANNING AND MANAGEMENT,Use of Public Transport,LUL TICKET MACHINE,05/07/2016,30.00
"PLANNING, TRANSPORT & DEVELOPMENT",Consultancy-Business,PIPERS PROJECTS LTD,05/07/2016,216.00
DAY CENTRES,Domestic Goods-Other,CURRYS ONLINE,06/07/2016,179.15
DAY CENTRES,Travel/Subsistence,OYSTER AUTOTOPUP,06/07/2016,20.00
DAY CENTRES,Financial Services,T&A SWEETS LIMITED,06/07/2016,250.00
OTHER - ADULTS,Catering Food & Drink,TESCO STORES 5999,06/07/2016,60.16
OTHER - ADULTS,Domestic Goods-Other,Amazon UK Marketplace,06/07/2016,11.74
OTHER - ADULTS,Domestic Goods-Other,Amazon UK Marketplace,06/07/2016,5.53
OTHER - ADULTS,Education-Library Books,Amazon UK Marketplace,06/07/2016,2.82
BALANCE SHEET,Personal,PIRTEK GREENWICH,06/07/2016,-45.00
BALANCE SHEET,VAT,PIRTEK GREENWICH,06/07/2016,21.01
BALANCE SHEET,VAT,FINANCIAL TIMES LT,06/07/2016,37.18
BALANCE SHEET,VAT,CURRYS ONLINE,06/07/2016,35.83
BALANCE SHEET,VAT,Amazon UK Marketplace,06/07/2016,6.29
BALANCE SHEET,VAT,HIEX MANCHESTER,06/07/2016,21.00
BALANCE SHEET,VAT,HOBBYCRAFT (INTERNET),06/07/2016,7.16
BALANCE SHEET,VAT,TESCO STORES-2143,06/07/2016,0.81
BALANCE SHEET,VAT,WH SMITH,06/07/2016,2.00
BALANCE SHEET,VAT,WWW.BAKERROSS.CO.UK,06/07/2016,8.91
BALANCE SHEET,Personal,CURRYS ONLINE,06/07/2016,-46.50
BALANCE SHEET,Personal,WAYFAIR.CO.UK,06/07/2016,-7.00
BALANCE SHEET,VAT,CURRYS ONLINE,06/07/2016,54.17
BALANCE SHEET,VAT,CURRYS ONLINE,06/07/2016,0.00
BALANCE SHEET,VAT,WAYFAIR.CO.UK,06/07/2016,51.00
CHILDREN LOOKED AFTER,Financial Services,HM PASSPORT OFFICE,06/07/2016,72.50
CHILDREN LOOKED AFTER,Domestic Goods-Other,CURRYS ONLINE,06/07/2016,270.82
CHILDREN LOOKED AFTER,Domestic Goods-Other,CURRYS ONLINE,06/07/2016,232.50
CHILDREN LOOKED AFTER,Facilities-Market Research,WAYFAIR.CO.UK,06/07/2016,247.99
CHILDREN LOOKED AFTER,Works-Construction,CARPET GIANT,06/07/2016,161.00
SCHOOL & EDUCATION IMPROVEMENT SERVICE,Domestic Goods-Other,Amazon UK Marketplace,06/07/2016,19.91
SCHOOL & EDUCATION IMPROVEMENT SERVICE,Domestic Goods-Other,Amazon UK Marketplace,06/07/2016,84.40
SCHOOL & EDUCATION IMPROVEMENT SERVICE,Domestic Goods-Other,Amazon UK Marketplace,06/07/2016,14.14
REVENUE & BENEFITS,Catering Food & Drink,SPONGE AND CREAM,06/07/2016,964.00
INTERNAL AUDIT,Travel/Subsistence,TFL CC/LEZ CHARGE,06/07/2016,11.50
INTERNAL AUDIT,Travel/Subsistence,TFL CC/LEZ CHARGE,06/07/2016,11.50
POLICY & COMMUNICATIONS,Books/Publications/Resources,FINANCIAL TIMES LT,06/07/2016,185.90
NEIGHBOURHOODS,Vehicle Maintenance,PIRTEK GREENWICH,06/07/2016,84.04
HOUSING MANAGEMENT SERVICES,Accommodation,HIEX MANCHESTER,06/07/2016,105.00
HOUSING MANAGEMENT SERVICES,Catering Food & Drink,TESCO STORES-2143,06/07/2016,4.08
HOUSING MANAGEMENT SERVICES,Domestic Goods-Other,Amazon UK Marketplace,06/07/2016,31.44
HOUSING MANAGEMENT SERVICES,Education-Arts/Crafts,HOBBYCRAFT (INTERNET),06/07/2016,35.79
HOUSING MANAGEMENT SERVICES,Education-Arts/Crafts,WWW.BAKERROSS.CO.UK,06/07/2016,44.56
HOUSING MANAGEMENT SERVICES,Facilities-Advertising,WH SMITH,06/07/2016,10.01
DAY CENTRES,Financial Services,CASH ADVANCE FEE,07/07/2016,7.38
BALANCE SHEET,VAT,Amazon UK Retail,07/07/2016,4.40
BALANCE SHEET,VAT,AO RETAIL LIMITED,07/07/2016,49.83
BALANCE SHEET,VAT,WAYFAIR STORES LIM,07/07/2016,16.16
CHILDREN LOOKED AFTER,Domestic Goods-Other,ARGOS RETAIL GROUP,07/07/2016,"1,514.49"
CHILDREN LOOKED AFTER,Domestic Goods-Other,AO RETAIL LIMITED,07/07/2016,249.17
CHILDREN LOOKED AFTER,Domestic Goods-Other,ARGOS DIRECT,07/07/2016,188.94
CHILDREN LOOKED AFTER,Domestic Goods-Other,CURRYS T/SALES,07/07/2016,614.97
CHILDREN LOOKED AFTER,Domestic Goods-Other,JOHN LEWIS,07/07/2016,250.00
CHILDREN LOOKED AFTER,Facilities-Market Research,WAYFAIR STORES LIM,07/07/2016,80.83
EARLY YEARS QUALITY IMPROVEMENT,Facilities-Market Research,MAGSUBCRIPTIONS COM,07/07/2016,216.00
LIBRARIES & ARCHIVE,Catering Food & Drink,SAINSBURYS S/MKTS,07/07/2016,6.34
LIBRARIES & ARCHIVE,Education-Other,Amazon UK Marketplace,07/07/2016,3.99
LIBRARIES & ARCHIVE,Education-Other,Amazon UK Marketplace,07/07/2016,16.48
LIBRARIES & ARCHIVE,Books/Publications/Resources,Amazon UK Marketplace,07/07/2016,10.81
LIBRARIES & ARCHIVE,Stationery,Amazon UK Marketplace,07/07/2016,25.75
FINANCIAL PLANNING AND MANAGEMENT,Domestic Goods-Other,Amazon UK Marketplace,07/07/2016,90.55
FINANCIAL PLANNING AND MANAGEMENT,Facilities-Printing,Amazon UK Retail,07/07/2016,8.13
INTERNAL AUDIT,Facilities-Printing,Amazon UK Retail,07/07/2016,22.02
DAY CENTRES,Stationery,Amazon UK Retail,08/07/2016,55.34
BALANCE SHEET,VAT,B & Q 1009,08/07/2016,6.32
BALANCE SHEET,VAT,SCREWFIX,08/07/2016,17.44
BALANCE SHEET,VAT,TP TRADING CO LTD,08/07/2016,8.22
BALANCE SHEET,VAT,CHERWELL DISTRICT COUN,08/07/2016,26.42
BALANCE SHEET,VAT,DEMCO EUROPE,08/07/2016,41.00
CHILDREN SAFEGUARDING & ASSESSMENTS,Clothing-Children/Adults,DIRECT 2 MUM,08/07/2016,-150.00
CHILDREN SAFEGUARDING & ASSESSMENTS,Clothing-Children/Adults,DIRECT 2 MUM LTD,08/07/2016,150.00
LIBRARIES & ARCHIVE,Furniture-Office Furniture,DEMCO EUROPE,08/07/2016,205.00
FINANCIAL PLANNING AND MANAGEMENT,Use of Public Transport,LUL TICKET MACHINE,08/07/2016,50.00
NEIGHBOURHOODS,Building-Paint,B & Q 1009,08/07/2016,25.26
NEIGHBOURHOODS,Building-Plumbing,TP TRADING CO LTD,08/07/2016,41.14
NEIGHBOURHOODS,Horticultural-Other,SCREWFIX,08/07/2016,87.36
HOUSING MANAGEMENT SERVICES,Building-General,CHERWELL DISTRICT COUN,08/07/2016,132.13
BALANCE SHEET,VAT,Amazon UK Retail,09/07/2016,4.16
BALANCE SHEET,VAT,Amazon UK Retail,09/07/2016,-4.16
LIBRARIES & ARCHIVE,Travel/Subsistence,OYSTER BUS AUTOTOP,09/07/2016,40.00
LIBRARIES & ARCHIVE,Books/Publications/Resources,Amazon UK Retail,09/07/2016,44.94
LIBRARIES & ARCHIVE,Books/Publications/Resources,Amazon UK Retail,09/07/2016,-44.94
LIBRARIES & ARCHIVE,Books/Publications/Resources,Amazon UK Retail,09/07/2016,31.84
LIBRARIES & ARCHIVE,Books/Publications/Resources,Amazon UK Retail,09/07/2016,-31.84
BALANCE SHEET,VAT,CURRYS T/SALES,11/07/2016,186.50
BALANCE SHEET,VAT,MOTHERCARE DIRECT-MOTO,11/07/2016,1.90
CHILDREN LOOKED AFTER,Domestic Goods-Other,MOTHERCARE DIRECT-MOTO,11/07/2016,42.05
CHILDREN LOOKED AFTER,Domestic Goods-Other,CURRYS T/SALES,11/07/2016,872.48
LIBRARIES & ARCHIVE,Books/Publications/Resources,Amazon UK Marketplace,11/07/2016,9.50
SCHOOL & EDUCATION IMPROVEMENT SERVICE,Catering Food & Drink,MARKS&SPENCER PLC,11/07/2016,-3.99
SCHOOL & EDUCATION IMPROVEMENT SERVICE,Catering Food & Drink,MARKS&SPENCER PLC,11/07/2016,-10.00
INTERNAL AUDIT,Arts & Leisure Services,THE CIVIC CENTRE C,11/07/2016,6.00
INTERNAL AUDIT,Travel/Subsistence,NCP LIMITED,11/07/2016,12.00
INTERNAL AUDIT,Travel/Subsistence,NCP LTD,11/07/2016,12.50
INTERNAL AUDIT,Travel/Subsistence,NCP LTD,11/07/2016,12.50
INTERNAL AUDIT,Travel/Subsistence,NCP LTD,11/07/2016,4.50
INTERNAL AUDIT,Travel/Subsistence,NCP LTD,11/07/2016,4.50
INTERNAL AUDIT,Travel/Subsistence,NCP LTD,11/07/2016,4.50
INTERNAL AUDIT,Travel/Subsistence,OYSTER AUTOTOPUP,11/07/2016,40.00
INTERNAL AUDIT,Travel/Subsistence,OYSTER AUTOTOPUP,11/07/2016,40.00
INTERNAL AUDIT,Travel/Subsistence,OYSTER AUTOTOPUP,11/07/2016,20.00
INTERNAL AUDIT,Travel/Subsistence,OYSTER AUTOTOPUP,11/07/2016,40.00
INTERNAL AUDIT,Travel/Subsistence,OYSTER BUS AUTOTOP,11/07/2016,40.00
MENTAL HEALTH,Accommodation,TRAVELODGE AGENT,12/07/2016,"2,172.52"
